{"text_format":"1","workbook":"xlsx","n_sheets":8,"sheets":["Read Me","Instructions","CFP Quantification","Customized Embodied EF","Customized Process Factors","Customized Fuel EF","Customized Fuel LHV","Default EF&LHV References "],"not_rendered":{"charts":0,"images":1,"macros":1,"external_links":0,"defined_names":9,"comments":2,"pivot_tables":0},"unopened":[],"bounds":{"document_bytes":16777216,"sheet_cells":100000,"rows_first":2000,"rows_last":500,"rows_between":2000,"halvings":0,"cell_chars":16384,"cell_head_chars":4096},"cells_cut":0,"cells_raw":0,"read":"whole","date_system":"1900"}

{"sheet":"Read Me","index":0,"n_rows":40,"n_cols":4,"rows_kept":40,"cut":false,"hidden":false,"merged":[[24,1,24,7],[21,1,21,7],[22,1,22,7],[23,1,23,7],[0,1,0,7],[2,1,2,7],[6,3,6,6],[18,1,18,7],[19,1,19,7],[20,1,20,7]]}
[null,"CFP Quantification Tool - Glazing"]
[]
[null,"Colour Codes, Notes & FAQ"]
[]
[]
[null,"Tool Sections :"]
[null,"G : General Information Section ","=","General information of the certifying Glazing product(s) that required user input"]
[null,"A : Assessment Section","=","Calculation of the carbon emission for each Glazing product(s)"]
[null,"P : Performance Section ","=","Summary of each of the Glazing Carbon emission performance "]
[]
[null,"Colour Code of Cells :",null,"Colour Code of Sheets :"]
[null,"Input cell",null,"Instruction"]
[null,"Calculated value",null,"Calculation Tool"]
[null,"Information ( Title , units, item nos. etc)",null," Factor for Calculation"]
[null,"Not used ",null,"Default Factor References"]
[null,"Click me"]
[]
["Notes to users:"]
["-","Users should refer to the relevant Assessment Guide issued by the Construction Industry Council's (CIC) for the principles, requirements, and guides for the quantification and reporting the carbon footprint of products (CFP) under the CIC Green Product Certification.  Any manufacturers applying for the CIC's  Green Product Certification should comply with all relevant requirements on CFP quantification stated in the Assessment Guide."]
["-","The goal of carrying out a CFP quantification is to calculate the potential contribution of a particular product to global warming expressed as CO2e by quantifying all significant GHG emissions and removals over the product’s life cycle."]
["- ","This CFP quantification tool is currently applicable to annealed glass and processed glass. The processed glass include but not limited to insulating glass unit (IGU), low-E glass, laminated glass, fire-rated glass, decorative glass and fritted glass etc. as described in the Assessment Guide.  The tool is developed with reference to ISO 14067:2018."]
["- ","According to the principles of the LCA methodology provided in ISO 14040:2006 with Amendment 1:2020 and ISO 14044:2006 with Amendment 2:2020, the quantification and reporting of a CFP should be relevant, complete, consistent, accurate and transparent. The assessment of carbon footprint of glazing under the CIC Green Product Certification shall be based on a “cradle-to-gate” approach, covering all GHG emissions and removals arising from raw material acquisition through production, and transportation of the raw materials to the plant, and manufacturing process. Please note that the GHG emission from transportation of glazing to site (Module A4) is excluded from the system boundary of this assessment. The user input for A4 emission is provided for reporting purpose only and does not affect the benchmarking and rating of the certified product."]
["-","Users are required to complete the worksheet \"CFP Quantification\" to access the product's carbon footprint. Guides are provided in the \"Instruction\" worksheet. Please ensure ALL input cells (i.e. empty light green cells) in the \"CFP Quantification\" are filled out. User shall fill the worksheet from top to bottom."]
["-","All the units of \"t/reporting period\" in this tool refers to \"tonne/year\", where 1 tonne = 1000 kg."]
["-","If \"Default\" factor is selected, Applicants shall review the references of the default values to ensure their applicability prior to use.\n\nApplicants are encouraged to prioritize the use of specific life cycle data. In cases where such data is not readily accessible, data from national databases, regional databases, or other recognized sources may be utilized. "]
["Frequently Asked Questions:"]
["-","Question: \"Why do many self-calculating cells in my worksheet display a calculation error (for example, \"#VALUE\" displayed)?"]
[null,"Answer: \"#VALUE\" appears as long as some necessary input cells have not been completed (i.e., some cells have been left blank)."]
["-","Question: \"Why do many self-calculating cells in my worksheet display a \"Factor error\" ?"]
[null,"Answer: \"Factor error\" appears as the energy commodity / material was not found in the factor sheets."]
[]
[null,"© 2025 All rights reserved by CIC"]
[]
[null,"Scheme Owned by Construction Industry Council"]
[null,"38/F, COS Centre, 56 Tsun Yip Street, Kwun Tong, Kowloon, Hong Kong"]
[]
[null,"Operated by Hong Kong Green Building Council"]
[null,"1/F, Jockey Club Environmental Building, 77 Tat Chee Avenue, Kowloon Tong, Hong Kong"]
[null,"Phone: +852 3994 8888"]
[null,"Email: cicgpc@hkgbc.org.hk"]

{"sheet":"Instructions","index":1,"n_rows":128,"n_cols":18,"rows_kept":128,"cut":false,"hidden":false,"merged":[[9,5,9,9],[10,5,10,9],[11,5,11,9],[11,10,11,17],[0,0,0,17],[2,8,2,9],[3,8,3,9],[5,1,6,1],[5,2,6,17],[7,1,17,1],[7,2,7,9],[7,10,7,17],[8,5,8,9],[12,6,17,9],[8,10,10,17],[12,10,17,17],[24,5,24,7],[24,8,24,9],[25,5,25,7],[25,8,25,9],[22,5,22,7],[22,8,22,9],[23,5,23,7],[23,8,23,9],[18,1,25,1],[18,2,18,17],[19,5,19,7],[19,8,19,9],[20,5,20,7],[20,8,20,9],[21,5,21,7],[21,8,21,9],[19,10,25,17],[26,1,28,1],[26,2,26,8],[26,10,26,11],[27,10,27,11],[28,10,28,11],[29,1,49,1],[29,2,29,8],[29,10,29,11],[30,10,30,11],[31,10,31,11],[38,10,38,11],[39,10,39,11],[50,1,52,1],[50,2,50,8],[50,10,50,11],[51,10,51,11],[52,10,52,11],[32,10,32,11],[33,10,33,11],[34,10,34,11],[35,10,35,11],[36,10,36,11],[37,10,37,11],[40,10,40,11],[70,10,70,11],[54,2,54,17],[55,2,55,17],[56,2,56,8],[56,10,56,11],[57,2,57,3],[57,5,57,8],[57,10,57,11],[58,2,58,3],[64,10,64,11],[65,10,65,11],[66,10,66,11],[61,10,61,11],[62,10,62,11],[63,10,63,11],[58,5,58,6],[58,7,58,8],[79,2,79,3],[79,5,79,7],[79,10,79,11],[80,1,84,1],[80,2,80,17],[81,2,81,8],[81,10,81,11],[82,2,82,3],[82,5,82,8],[83,5,83,8],[84,2,84,3],[84,5,84,7],[84,10,84,11],[83,10,83,11],[55,1,79,1],[59,10,59,11],[60,10,60,11],[76,10,76,11],[77,10,77,11],[78,10,78,11],[73,5,78,6],[73,8,78,8],[73,10,73,11],[74,10,74,11],[109,2,109,3],[109,5,109,8],[109,10,109,11],[117,2,117,8],[117,10,117,11],[110,2,110,3],[110,5,110,7],[110,10,110,11],[90,5,90,7],[90,10,90,11],[94,10,94,11],[95,5,95,6],[96,5,96,7],[96,10,96,11],[108,2,108,3],[108,5,108,8],[108,10,108,11],[106,5,107,5],[106,6,107,6],[104,2,104,3],[104,5,104,8],[104,10,104,11],[105,7,105,8],[106,10,106,11],[111,1,115,1],[111,2,111,17],[112,2,112,8],[112,10,112,11],[113,2,113,3],[113,5,113,8],[113,10,113,17],[85,1,110,1],[85,2,85,17],[86,2,86,8],[86,10,86,11],[87,2,87,3],[87,5,87,8],[98,2,98,3],[98,5,98,8],[98,10,98,11],[99,7,99,8],[100,10,100,11],[89,5,89,6],[88,10,88,11],[92,5,92,6],[115,2,115,3],[115,5,115,7],[115,10,115,11],[118,1,127,1],[118,10,118,11],[119,5,119,8],[119,10,119,11],[120,5,120,8],[120,10,120,11],[121,5,121,8],[121,10,121,11],[122,5,122,8],[122,10,122,11],[127,5,127,8],[127,10,127,11],[123,10,123,11],[124,5,124,8],[124,10,124,11],[125,5,125,8],[125,10,125,11],[126,5,126,8],[126,10,126,11],[107,10,107,11],[101,10,101,11],[102,10,102,11],[103,10,103,11],[97,10,97,11],[87,10,87,11],[114,12,114,17],[83,12,83,17],[100,5,103,5],[100,6,103,6],[100,7,103,8],[106,7,107,8],[93,5,93,7],[93,10,93,11],[91,10,91,11],[114,5,114,8],[114,10,114,11],[75,10,75,11],[27,12,27,17],[30,12,41,17],[43,10,46,10],[67,10,67,11],[68,10,68,11],[52,12,52,17],[41,10,41,11],[42,5,42,6],[43,5,43,6],[44,5,44,6],[45,5,45,6],[46,5,46,6],[43,8,46,8],[53,1,53,17],[48,8,49,8],[48,12,49,17],[71,2,71,3],[71,5,71,8],[71,10,71,11],[72,2,72,3],[72,5,72,6],[72,7,72,8],[59,5,70,6]]}
["CFP Quantification -  Glazing"]
["Product category 1: Aluminium extrusion"]
["Product category 2: Aluminium sheet","Date of latest update",null,null,null,null,null,null,"2025-03-24"]
[null,"Reporting period",null,null,null,null,null,null,"Please provide corresponding information"]
[]
[null,"G","GENERAL INFORMATION"]
[]
[null,"G1","G1 General Plant Information",null,null,null,null,null,null,null,"Description"]
[null,null,{"$f":"LEFT($C$8,2)&\".\"","v":"G1."},1,null,"Plant",null,null,null,null,"Please provide corresponding information"]
[null,null,"G1.",2,null,"Company"]
[null,null,"G1.",3,null,"Country / Region"]
[null,null,"G1.",4,null,"Recycling content",null,null,null,null,"Please provide recycling content of the product(s)"]
[null,null,"G1.",5,null,"Product 1","Please select the product category:\n1) Category 1: Annealed glass\n2) Category 2: Processed glass",null,null,null,"Please provide corresponding product information (name, product classification and grade via applicable product standards, product specifications, key technical parameters, and application scenarios, etc.) to be applied under this category.\nExample: Annealed glass, float glass according to EN 572-2, with a thickness of 6mm and visible light transmittance of 85.5%, primarily used in the production of coated glass for architectural applications."]
[null,null,"G1.",6,null,"Product 2"]
[null,null,"G1.",7,null,"Product 3"]
[null,null,"G1.",8,null,"Product 4"]
[null,null,"G1.",9,null,"Product 5"]
[null,null,"G1.",10,null,"Product 6"]
[null,"G2","G2 System Boundary"]
[null,null,{"$f":"LEFT($C$19,2)&\".\"","v":"G2."},1,null,"Raw Material extraction and upstream production",null,null,"[yes, no or n.a.]",null,"\"Yes\" means that the GHG emissions arising from the process are reported.\n\"No\" means that the associated data are not reported. Please provide explanation in a note in the cell for why \"No\" was selected.\n\"n.a.\" (not applicable) means that emissions are never generated from this source, or the source does not exist at this plant."]
[null,null,"G2.",2,null,"Off-site transportation of raw materials to manufacturing plant",null,null,"[yes, no or n.a.]"]
[null,null,"G2.",3,null,"Product manufacturing - stationary combustion",null,null,"[yes, no or n.a.]"]
[null,null,"G2.",4,null,"Product manufacturing - mobile combustion ",null,null,"[yes, no or n.a.]"]
[null,null,"G2.",5,null,"Indirect emission from purchased energy ",null,null,"[yes, no or n.a.]"]
[null,null,"G2.",6,null,"Off-site transportation of  product to construction site [for reference only, excluded from assessment boundary]",null,null,"[yes, no or n.a.]"]
[null,null,"G2.",7,null,"(add other processes as appropriate)",null,null,"[yes, no or n.a.]"]
[null,"G3","G3 Glazing Product Production",null,null,null,null,null,null,"unit","Total",null,"Product 1","Product 2","Product 3","Product 4","Product 5","Product 6"]
[null,null,{"$f":"LEFT($C$27,2)&\".\"","v":"G3."},1,null,"Glazing production in weight",null,null,null,"[t/reporting period]",{"$f":"IF(SUM(M28:R28)=0,\"\",SUM(M28:R28))","v":""},null,"Quantity in weight of each product produced. If there are more than six products within any category, feel free to add additional columns as needed. To add more products, simply copy the entire columns of the last category and insert them between the product columns."]
[null,null,{"$f":"LEFT($C$27,2)&\".\"","v":"G3."},2,null,"Proportion",null,null,null,"%",{"$f":"IF(SUM(M29:R29)=0,\"\",SUM(M29:R29))","v":""},null,null,{"$f":"IF(N28=\"\",\"\",N28/$K$28)","v":""},"","","",""]
[null,"G4","G4 Purchased Raw Materials Used to Produce Glazing Products (on-site produced materials shall be excluded)",null,null,null,null,null,null,"unit","Total",null,"Product 1","Product 2","Product 3","Product 4","Product 5","Product 6"]
[null,null,{"$f":"LEFT($C$30,2)&\".\"","v":"G4."},1,null,"Sandstone",null,null,null,"[t/reporting period, dry weight]",{"$f":"IF(SUM(M31:R31)=0,\"\",SUM(M31:R31))","v":""},null,"Please input the consumption of bought raw materials for the production of each product. On-site produced materials shall be excluded, to avoid double counting."]
[null,null,"G4.",2,null,"Limestone, CaCO₃",null,null,null,"[t/reporting period, dry weight]",{"$f":"IF(SUM(M32:R32)=0,\"\",SUM(M32:R32))","v":""}]
[null,null,"G4.",3,null,"Dolomite, CaMg(CO₃)₂",null,null,null,"[t/reporting period, dry weight]",""]
[null,null,"G4.",4,null,"Soda Ash (Sodium Carbonate, Na₂CO₃)",null,null,null,"[t/reporting period, dry weight]",""]
[null,null,"G4.",5,null,"Sodium Sulfate (Na₂SO₄)",null,null,null,"[t/reporting period, dry weight]",""]
[null,null,"G4.",6,null,"Flat Glass",null,null,null,"[t/reporting period, dry weight]",""]
[null,null,"G4.",7,null,"EVA Film",null,null,null,"[t/reporting period, dry weight]",""]
[null,null,"G4.",8,null,"Silver (Ag)",null,null,null,"[t/reporting period, dry weight]",""]
[null,null,"G4.",9,null,"Nickel (Ni)",null,null,null,"[t/reporting period, dry weight]",""]
[null,null,"G4.",10,null,"Nitrogen (N₂)",null,null,null,"[m3/reporting period, dry weight]",""]
[null,null,"G4.",11,null,"Carbon Powder",null,null,null,"[t/reporting period, dry weight]",{"$f":"IF(SUM(M41:R41)=0,\"\",SUM(M41:R41))","v":""}]
[null,null,"G4.",12,null,"Applicant can add raw materials, if applicable.\n\nApplicants shall include customized raw materials for calculation purposes in the worksheet titled \"Customized Embodied EF\" ","Others, if applicable",null,null,"[t/reporting period, dry weight]",{"$f":"IF(SUM(M42:R42)=0,\"\",SUM(M42:R42))","v":""}]
[null,null,"G4.",12,null,"Energy commodity used in stationary combustion",null,"Energy Commodity usage type : ","Proportionally Allocated"]
[null,null,"G4.",{"$f":"D43","v":12},".1","Stationary combustion source",null,"Energy commodity :","Please select the appropriate type of energy commodity.\n\nApplicants are permitted to include customized energy commodities for calculation purposes in the worksheets titled \"Customized Embodied EF,\" \"Customized Fuel EF,\" and \"Customized Fuel LHV.\" \n\nIf additional energy commodities need to be included, kindly insert more rows as necessary.","[t/reporting period]","If \"Proportionally Allocated\" is selected, please enter the total consumption for each of the energy commodity.",{"$f":"IF(I$43=\"user input\",SUM(M44:R44),\"\")","v":""},{"$f":"IFERROR(IF(#REF!=\"Proportionally Allocated\", $K44*$M37, \"\"),\"\")","v":""},{"$f":"IFERROR(IF(#REF!=\"Proportionally Allocated\", $K44*$N37, \"\"),\"\")","v":""},{"$f":"IFERROR(IF(#REF!=\"Proportionally Allocated\", $K44*$O37, \"\"),\"\")","v":""},{"$f":"IFERROR(IF(#REF!=\"Proportionally Allocated\", $K44*$P37, \"\"),\"\")","v":""},{"$f":"IFERROR(IF(#REF!=\"Proportionally Allocated\", $K44*$Q37, \"\"),\"\")","v":""},{"$f":"IFERROR(IF(#REF!=\"Proportionally Allocated\", $K44*$R37, \"\"),\"\")","v":""}]
[null,null,"G4.",{"$f":"D44","v":12},".2","Stationary combustion source",null,"Energy commodity :",null,"[t/reporting period]",null,{"$f":"IF(I$43=\"user input\",SUM(M45:R45),\"\")","v":""},{"$f":"IFERROR(IF(#REF!=\"Proportionally Allocated\", $K45*$M38, \"\"),\"\")","v":""},{"$f":"IFERROR(IF(#REF!=\"Proportionally Allocated\", $K45*$N38, \"\"),\"\")","v":""},{"$f":"IFERROR(IF(#REF!=\"Proportionally Allocated\", $K45*$O38, \"\"),\"\")","v":""},{"$f":"IFERROR(IF(#REF!=\"Proportionally Allocated\", $K45*$P38, \"\"),\"\")","v":""},{"$f":"IFERROR(IF(#REF!=\"Proportionally Allocated\", $K45*$Q38, \"\"),\"\")","v":""},{"$f":"IFERROR(IF(#REF!=\"Proportionally Allocated\", $K45*$R38, \"\"),\"\")","v":""}]
[null,null,"G4.",{"$f":"D45","v":12},".3","Stationary combustion source",null,"Energy commodity :",null,"[t/reporting period]",null,{"$f":"IF(I$43=\"user input\",SUM(M46:R46),\"\")","v":""},{"$f":"IFERROR(IF(#REF!=\"Proportionally Allocated\", $K46*$M39, \"\"),\"\")","v":""},{"$f":"IFERROR(IF(#REF!=\"Proportionally Allocated\", $K46*$N39, \"\"),\"\")","v":""},{"$f":"IFERROR(IF(#REF!=\"Proportionally Allocated\", $K46*$O39, \"\"),\"\")","v":""},{"$f":"IFERROR(IF(#REF!=\"Proportionally Allocated\", $K46*$P39, \"\"),\"\")","v":""},{"$f":"IFERROR(IF(#REF!=\"Proportionally Allocated\", $K46*$Q39, \"\"),\"\")","v":""},{"$f":"IFERROR(IF(#REF!=\"Proportionally Allocated\", $K46*$R39, \"\"),\"\")","v":""}]
[null,null,"G4.",{"$f":"D46","v":12},".4","Stationary combustion source",null,"Energy commodity :",null,"[t/reporting period]",null,{"$f":"IF(I$43=\"user input\",SUM(M47:R47),\"\")","v":""},{"$f":"IFERROR(IF(#REF!=\"Proportionally Allocated\", $K47*$M40, \"\"),\"\")","v":""},{"$f":"IFERROR(IF(#REF!=\"Proportionally Allocated\", $K47*$N40, \"\"),\"\")","v":""},{"$f":"IFERROR(IF(#REF!=\"Proportionally Allocated\", $K47*$O40, \"\"),\"\")","v":""},{"$f":"IFERROR(IF(#REF!=\"Proportionally Allocated\", $K47*$P40, \"\"),\"\")","v":""},{"$f":"IFERROR(IF(#REF!=\"Proportionally Allocated\", $K47*$Q40, \"\"),\"\")","v":""},{"$f":"IFERROR(IF(#REF!=\"Proportionally Allocated\", $K47*$R40, \"\"),\"\")","v":""}]
[null,null,"G4.",13,null,"On-site transportation",null,"Energy Commodity usage type : ","User Input"]
[null,null,"G4.",{"$f":"D48","v":13},".1","Mobile combustion source",null,"Energy commodity :","Please select the appropriate type of energy commodity.\n\nApplicants are permitted to include customized energy commodities for calculation purposes in the worksheets titled \"Customized Embodied EF,\" \"Customized Fuel EF,\" and \"Customized Fuel LHV.\" \n\nIf additional energy commodities need to be included, kindly insert more rows as necessary.","[t/reporting period]",null,null,"If \"User Input\" is selected, please enter the individual consumption energy commodity for each product."]
[null,null,"G4.",{"$f":"D49","v":13},".2","Mobile combustion source",null,"Energy commodity :",null,"[t/reporting period]"]
[null,"G5","G5. Power Consumption of Purchased Energy",null,null,null,null,null,null,"unit","Total",null,"Product 1","Product 2","Product 3","Product 4","Product 5","Product 6"]
[null,null,{"$f":"LEFT($C$51,2)&\".\"","v":"G5."},1,null,"Consumption of electricity produced externally",null,null,null,"[MWh/reporting period]","Please enter the total consumption of electricity produced externally ",null,{"$f":"IFERROR(IF($K52=\"\",\"\",$K52*M29),\"\")","v":""},"","","","",""]
[null,null,{"$f":"LEFT($C$51,2)&\".\"","v":"G5."},2,null,"CO2e per unit of electricity produced externally",null,null,null,"[kg CO2e/MWh]","Please enter the specific carbon emission factor for electricity produced externally. \n\nApplicants may obtain the carbon emission factor from their power supplier or from relevant national authorities."]
[]
[null,"A","ASSESSMENT"]
[null,"A1","PROJECT LIFE CYCLE STAGE : A1 RAW MATERIAL EXTRACTION AND UPSTREAM PRODUCTION"]
[null,null,"A1.1 CO2e EMISSIONS ",null,null,null,null,null,null,"unit","Total",null,"Product 1","Product 2","Product 3","Product 4","Product 5","Product 6"]
[null,null,"A1.1.1",null,null,"CO2e from bought raw materials (on-site produced materials shall be excluded)",null,null,null,"[t CO2e/reporting period]"]
[null,null,null,null,null,"Adopting CO2e Factors "]
[null,null,null,{"$f":"C58","v":"A1.1.1"},1,"Select the type of embodied emissions factor (EF) for calculation:\n1) Default \n2) Customized\n\nIf \"Customized\" is selected, please enter / add customized EF for each of the product under worksheet \"Customized Embodied EF\".\n\nIf \"Default\" is selected, Applicants shall review the references of the default values to ensure their applicability prior to use.\n\nApplicants are encouraged to prioritize the use of specific life cycle data. In cases where such data is not readily accessible, data from national databases, regional databases, or other recognized sources may be utilized. ",null,{"$f":"F31","v":"Sandstone"},{"$f":"G31","v":0},"[t CO2e/reporting period]"]
[null,null,null,{"$f":"C58","v":"A1.1.1"},2,null,null,"Limestone, CaCO₃",0,"[t CO2e/reporting period]"]
[null,null,null,{"$f":"C58","v":"A1.1.1"},3,null,null,"Dolomite, CaMg(CO₃)₂",0,"[t CO2e/reporting period]"]
[null,null,null,{"$f":"C58","v":"A1.1.1"},4,null,null,"Soda Ash (Sodium Carbonate, Na₂CO₃)",0,"[t CO2e/reporting period]"]
[null,null,null,{"$f":"D63","v":"A1.1.1"},5,null,null,"Sodium Sulfate (Na₂SO₄)",0,"[t CO2e/reporting period]"]
[null,null,null,{"$f":"D64","v":"A1.1.1"},6,null,null,"Flat Glass",0,"[t CO2e/reporting period]"]
[null,null,null,{"$f":"D65","v":"A1.1.1"},7,null,null,"EVA Film",0,"[t CO2e/reporting period]"]
[null,null,null,{"$f":"D66","v":"A1.1.1"},8,null,null,"Silver (Ag)",0,"[t CO2e/reporting period]"]
[null,null,null,"A1.1.1",9,null,null,"Nickel (Ni)",0,"[t CO2e/reporting period]"]
[null,null,null,"A1.1.1",10,null,null,"Nitrogen (N₂)",0,"[m3 CO2e/reporting period]"]
[null,null,null,"A1.1.1",11,null,null,"Carbon Powder",null,"[t CO2e/reporting period]"]
[null,null,null,{"$f":"D69","v":"A1.1.1"},12,null,null,"Applicant can add bought raw materials, if applicable","[refer to section G4]","[t CO2e/reporting period]"]
[null,null,"A1.1.2",null,null,"CO2e from bought energy commodity",null,null,null,"[t CO2e/reporting period]"]
[null,null,null,null,null,"Adopting CO2e Factors ",null,"[Please insert additional rows if more energy commodities are included]"]
[null,null,null,{"$f":"C72","v":"A1.1.2"},".1","Select the type of embodied EF for calculation:\n1) Default \n2) Customized\n\nIf \"Customized\" is selected, please enter / add customized EF for each of the product under worksheet \"Customized Embodied EF\".\n\nIf \"Default\" is selected, Applicants shall review the references of the default values to ensure their applicability prior to use.\n\nApplicants are encouraged to prioritize the use of specific life cycle data. In cases where such data is not readily accessible, data from national databases, regional databases, or other recognized sources may be utilized. ",null,{"$f":"H49","v":"Energy commodity :"},"Please copy energy commodity from G4.22 to G4.23.\n\nPlease insert additional rows if more energy commodities are included","[t CO2e/reporting period]"]
[null,null,null,{"$f":"D74","v":"A1.1.2"},".2",null,null,{"$f":"H50","v":"Energy commodity :"},null,"[t CO2e/reporting period]"]
[null,null,null,{"$f":"D75","v":"A1.1.2"},".3",null,null,{"$f":"H75","v":"Energy commodity :"},null,"[t CO2e/reporting period]"]
[null,null,null,{"$f":"D76","v":"A1.1.2"},".4",null,null,{"$f":"H76","v":"Energy commodity :"},null,"[t CO2e/reporting period]"]
[null,null,null,"A1.1.2",".5",null,null,"Energy commodity :",null,"[t CO2e/reporting period]"]
[null,null,null,{"$f":"D78","v":"A1.1.2"},".6",null,null,{"$f":"H50","v":"Energy commodity :"},null,"[t CO2e/reporting period]"]
[null,null,"A1.2.5",null,null,null,null,null,"Total CO2e in Stage A1","[t CO2e/reporting period]"]
[null,"A2","PROJECT LIFE CYCLE STAGE: A2 OFF-SITE TRANSPORTATION OF RAW MATERIALS TO MANUFACTURING PLANT"]
[null,null,"A2.1 CO2e EMISSIONS ",null,null,null,null,null,null,"unit","Total",null,"Product 1","Product 2","Product 3","Product 4","Product 5","Product 6"]
[null,null,"A2.1.1",null,null,"CO2e from off-site transportation of raw material to manufacturing plant"]
[null,null,null,{"$f":"C83","v":"A2.1.1"},".1","CO2e calculated using either 1) WRI & WBCSD's protocol OR 2) EPD & EMSD's carbon audit tool)",null,null,null,"[t CO2e/reporting period]",null,null,"Please enter the GHG emission from stage A2 (from off-site transportation of raw material to manufacturing plant) for each of the product. \n\nGHG emission can be calculated by required information such as mode of transport, travelled distance, fuel used with following tool:\n1) WRI & WBCSD's protocol, namely “GHG Emissions from Transport or Mobile Sources” which can be accessible at: https://ghgprotocol.org/calculation-tools-and-guidance, or \n2) EPD & EMSD carbon audit tool, which can be accessible at: https://cnsd.gov.hk/en/green-business-and-industry/carbon-audit/\n\nIf the travelled distance needs to be entered into a separate tool, please use the actual travelled distance rather than the straight-line distance. Additionally, kindly provide supporting documentation, such as a map indicating the distance, for verification purposes."]
[null,null,"A2.1.2",null,null,null,null,null,"Total CO2e in Stage A2","[t CO2e/reporting period]",null,null,null,{"$f":"IF(AND(N84=\"\"),\"\",(N84))","v":""},{"$f":"IF(AND(O84=\"\"),\"\",(O84))","v":""},"","",""]
[null,"A3","PROJECT LIFE CYCLE STAGE: A3 PRODUCT MANUFACTURING AND FABRICATION (WITHOUT WASTAGE)"]
[null,null,"A3.1 CO2e EMISSIONS ",null,null,null,null,null,null,"unit","Total",null,"Product 1","Product 2","Product 3","Product 4","Product 5","Product 6"]
[null,null,"A3.1.1",null,null,"CO2e from industrial processes "]
[null,null,null,{"$f":"C88","v":"A3.1.1"},".1","CO2e from carbonate decomposition"]
[null,null,null,{"$f":"D89&E89","v":"A3.1.1.1"},".1","Adopting Dolomite CaMg(CO₃)₂ as raw materials",null,null,"Adopting CO2e Factors"]
[null,null,null,{"$f":"D90","v":"A3.1.1.1"},".2","Please indicate if Dolomite CaMg(CO₃)₂ is used in raw materials\n1) \"Y\" means yes\n2) \"N\" means no",null,null,"Select the type of GHG emission factor for calculation:\n1) Default \n2) Customized\n\nIf \"Customized\" is selected, please enter / add customized EF for each of the product under worksheet \"Customized Process Factors\".\n\nIf \"Default\" is selected, Applicants shall review the references of the default values to ensure their applicability prior to use.\n\nApplicants are encouraged to prioritize the use of specific life cycle data. In cases where such data is not readily accessible, data from national databases, regional databases, or other recognized sources may be utilized. ","[t CO2e/reporting period]"]
[null,null,null,{"$f":"C88","v":"A3.1.1"},".2","CO2e from carbonate decomposition"]
[null,null,null,{"$f":"D92&E92","v":"A3.1.1.2"},".1","Adopting Soda Ash as raw materials",null,null,"Adopting CO2e Factors"]
[null,null,null,{"$f":"D93","v":"A3.1.1.2"},".2","Please indicate if the auxiliary process -  petroleum coke production is included in manufacturing\n1) \"Y\" means yes\n2) \"N\" means no",null,null,"Select the type of GHG emission factor for calculation:\n1) Default \n2) Customized\n\nIf \"Customized\" is selected, please enter / add customized EF for each of the product under worksheet \"Customized Process Factors\".\n\nIf \"Default\" is selected, Applicants shall review the references of the default values to ensure their applicability prior to use.\n\nApplicants are encouraged to prioritize the use of specific life cycle data. In cases where such data is not readily accessible, data from national databases, regional databases, or other recognized sources may be utilized. ","[t CO2e/reporting period]"]
[null,null,null,{"$f":"D89","v":"A3.1.1"},".3","CO2e from Carbon powder oxidation"]
[null,null,null,{"$f":"D95&E95","v":"A3.1.1.3"},".1","Adopting Carbon powder as raw materials",null,null,"Adopting CO2e Factors"]
[null,null,null,{"$f":"D96","v":"A3.1.1.3"},".2","Please indicate if the auxiliary process -  petroleum coke production is included in manufacturing\n1) \"Y\" means yes\n2) \"N\" means no",null,null,"Select the type of GHG emission factor for calculation:\n1) Default \n2) Customized\n\nIf \"Customized\" is selected, please enter / add customized EF for each of the product under worksheet \"Customized Process Factors\".\n\nIf \"Default\" is selected, Applicants shall review the references of the default values to ensure their applicability prior to use.\n\nApplicants are encouraged to prioritize the use of specific life cycle data. In cases where such data is not readily accessible, data from national databases, regional databases, or other recognized sources may be utilized. ","[t CO2e/reporting period]"]
[null,null,null,{"$f":"C$88","v":"A3.1.1"},".4","CO2e from lime production (auxiliary process)",null,"[please refer to worksheet \"3.1.1 Lime Production\"]",null,"[t CO2e/reporting period]"]
[null,null,"A3.1.2",null,null,"CO2e from product manufacturing (stationary combustion sources)",null,null,null,"[t CO2e/reporting period]"]
[null,null,null,null,null,"Adopting CO2e Factors ","Adopting LHV Factors ","[Please insert additional rows if more energy commodities are included]"]
[null,null,null,{"$f":"C99","v":"A3.1.2"},".1","Select the type of GHG emission factor for calculation:\n1) Default \n2) Customized\n\nIf \"Customized\" is selected, please enter / add customized EF for each of the product under worksheet \"Customized Fuel EF\".\n\nIf \"Default\" is selected, Applicants shall review the references of the default values to ensure their applicability prior to use.\n\nApplicants are encouraged to prioritize the use of specific life cycle data. In cases where such data is not readily accessible, data from national databases, regional databases, or other recognized sources may be utilized. ","Select the type of LHV factor for calculation:\n1) Default \n2) Customized\n\nIf \"Customized\" is selected, please enter / add customized LHV for each of the product under worksheet \"Customized Fuel LHV\".\n\nIf \"Default\" is selected, Applicants shall review the references of the default values to ensure their applicability prior to use.\n\nApplicants are encouraged to prioritize the use of specific life cycle data. In cases where such data is not readily accessible, data from national databases, regional databases, or other recognized sources may be utilized. ","Please enter the type of energy commodity utilized from stationary combustion sources for production manufacturing, including but not limited to, alumina refining, electrolysis, ingot casting, scrap remelting & casting, semi-fabrication & finishing (forging, casting, extrusion, rolling, heat treatment, surface treatment, coating, etc), on-site power generation, on-site gas generation, equipment, and room heating / cooling.",null,"[t CO2e/reporting period]"]
[null,null,null,{"$f":"D101","v":"A3.1.2"},".2",null,null,null,null,"[t CO2e/reporting period]"]
[null,null,null,{"$f":"D102","v":"A3.1.2"},".3",null,null,null,null,"[t CO2e/reporting period]"]
[null,null,null,{"$f":"C99","v":"A3.1.2"},".4",null,null,null,null,"[t CO2e/reporting period]"]
[null,null,"A3.1.3",null,null,"CO2e from on-site transportation (mobile combustion sources)",null,"CO2e from on-site power generation","CO2e from on-site power generation","[t CO2e/reporting period]"]
[null,null,null,null,null,"Adopting CO2e Factors ","Adopting LHV Factors ","[Please insert additional rows if more energy commodities are included]"]
[null,null,null,{"$f":"C105","v":"A3.1.3"},".1","Select the type of  GHG emission factor for calculation:\n1) Default \n2) Customized\n\nIf \"Customized\" is selected, please enter / add customized EF for each of the product under worksheet \"Customized Fuel EF\".\n\nIf \"Default\" is selected, Applicants shall review the references of the default values to ensure their applicability prior to use.\n\nApplicants are encouraged to prioritize the use of specific life cycle data. In cases where such data is not readily accessible, data from national databases, regional databases, or other recognized sources may be utilized. ","Select the type of LHV factor for calculation:\n1) Default \n2) Customized\n\nIf \"Customized\" is selected, please enter / add customized LHV for each of the product under worksheet \"Customized Fuel LHV\".\n\nIf \"Default\" is selected, Applicants shall review the references of the default values to ensure their applicability prior to use.\n\nApplicants are encouraged to prioritize the use of specific life cycle data. In cases where such data is not readily accessible, data from national databases, regional databases, or other recognized sources may be utilized. ","Please enter the type of energy commodity utilized from mobile combustion sources for on-site transportation.",null,"[t CO2e/reporting period]"]
[null,null,null,{"$f":"C105","v":"A3.1.3"},".2",null,null,null,null,"[t CO2e/reporting period]"]
[null,null,"A3.1.4",null,null,"Total CO2e from fuels combustion",null,null,null,"[t CO2e/reporting period]"]
[null,null,"A3.1.5",null,null,"CO2e from external electricity production",null,null,null,"[t CO2e/reporting period]"]
[null,null,"A3.1.6",null,null,null,null,null,"Total CO2e in Stage A3","[t CO2e/reporting period]"]
[null,"A4","PROJECT LIFE CYCLE STAGE: A4 OFF-SITE TRANSPORTATION OF PRODUCT TO CONSTRUCTION SITE "]
[null,null,"A4.1 CO2e EMISSIONS ",null,null,null,null,null,null,"unit","Total",null,"Product 1","Product 2","Product 3","Product 4","Product 5","Product 6"]
[null,null,"A4.1.1",null,null,"CO2e from off-site transportation of product to construction site (excluded from assessment boundary)"]
[null,null,null,{"$f":"C114","v":"A4.1.1"},".1","CO2e calculated using either 1) WRI & WBCSD's protocol OR 2) EPD & EMSD's carbon audit tool)",null,null,null,"[t CO2e/reporting period]",null,null,"Please enter the GHG emission from stage A4 (from off-site transportation of product to construction site) for each of the product. \n\nGHG emission can be calculated by required information such as mode of transport, travelled distance, fuel used with following tool:\n1) WRI & WBCSD's protocol, namely “GHG Emissions from Transport or Mobile Sources” which can be accessible at: https://ghgprotocol.org/calculation-tools-and-guidance, or\n2) EPD & EMSD carbon audit tool, which can be accessible at: https://cnsd.gov.hk/en/green-business-and-industry/carbon-audit/\n\nIf the travelled distance needs to be entered into a separate tool, please use the actual travelled distance rather than the straight-line distance. Additionally, kindly provide supporting documentation, such as a map indicating the distance, for verification purposes."]
[null,null,"A4.1.2",null,null,null,null,null,"Total CO2e in Stage A4","[t CO2e/reporting period]"]
[]
[null,"P ","PERFORMANCE INDICATORS",null,null,null,null,null,null,"unit","Total",null,"Product 1","Product 2","Product 3","Product 4","Product 5","Product 6"]
[null,"P",{"$f":"LEFT($B$118,2)","v":"P "},1,null,"Gross CO2e (A1-A3)",null,null,null,"[t CO2e/reporting period]"]
[null,null,"P ",{"$f":"D119","v":1},".1","A1 Raw material extraction and upstream production",null,null,null,"[t CO2e/reporting period]"]
[null,null,"P ",{"$f":"D120","v":1},".2","A2 Off-site transportation of raw materials to manufacturing plant",null,null,null,"[t CO2e/reporting period]"]
[null,null,"P ",{"$f":"D121","v":1},".3","A3 Product manufacturing and fabrication (without wastage)",null,null,null,"[t CO2e/reporting period]"]
[null,null,"P ",{"$f":"D122","v":1},".4","A4 Off-site transportation of product to construction site (for reference only, excluded from assessment boundary)",null,null,null,"[t CO2e/reporting period]"]
[null,null,"P ",2,null,"Specific gross CO2e per t of glazing product produced (A1-A3)",null,null,null,"[t CO2e/t Glazing]",{"$f":"IF(K119=\"\",\"\",(K119/$K$28))","v":""},null,{"$f":"IF(M$28=0,\"n.a.\",IF(M119=\"\",\"\",(M119/M$28)))","v":""},{"$f":"IF(N$28=0,\"n.a.\",IF(N119=\"\",\"\",(N119/N$28)))","v":"n.a."},"n.a.","n.a.","n.a.",{"$f":"IF(R$28=0,\"n.a.\",IF(R119=\"\",\"\",(R119/R$28)))","v":"n.a."}]
[null,null,"P ",{"$f":"D124","v":2},".1","A1 Raw material extraction and upstream production",null,null,null,"[t CO2e/t Glazing]"]
[null,null,"P ",{"$f":"D125","v":2},".2","A2 Off-site transportation of raw materials to manufacturing plant",null,null,null,"[t CO2e/t Glazing]"]
[null,null,"P ",{"$f":"D125","v":2},".3","A3 Product manufacturing and fabrication (without wastage)",null,null,null,"[t CO2e/t Glazing]"]
[null,null,"P ",{"$f":"D126","v":2},".4","A4 Off-site transportation of product to construction site (for reference only, excluded from assessment boundary)",null,null,null,"[t CO2e/t Glazing]"]

{"sheet":"CFP Quantification","index":2,"n_rows":127,"n_cols":18,"rows_kept":127,"cut":false,"hidden":false,"merged":[[55,1,79,1],[55,2,55,17],[59,10,59,11],[60,5,60,6],[60,10,60,11],[57,2,57,3],[58,7,58,8],[101,10,101,11],[100,10,100,11],[91,10,91,11],[93,10,93,11],[94,10,94,11],[100,7,100,8],[101,7,101,8],[95,5,95,6],[96,5,96,7],[96,10,96,11],[66,5,66,6],[67,5,67,6],[68,5,68,6],[89,5,89,6],[92,5,92,6],[77,5,77,6],[74,10,74,11],[54,2,54,17],[52,12,52,17],[14,10,14,17],[15,10,15,17],[16,10,16,17],[17,10,17,17],[24,10,24,17],[21,10,21,17],[22,10,22,17],[23,10,23,17],[38,10,38,11],[44,5,44,6],[45,5,45,6],[53,1,53,17],[50,2,50,8],[50,10,50,11],[51,10,51,11],[52,10,52,11],[50,1,52,1],[28,10,28,11],[29,1,49,1],[29,2,29,8],[29,10,29,11],[43,5,43,6],[97,10,97,11],[88,10,88,11],[90,10,90,11],[79,2,79,3],[71,2,71,3],[72,2,72,3],[63,5,63,6],[63,10,63,11],[64,5,64,6],[74,5,74,6],[75,5,75,6],[72,5,72,6],[72,7,72,8],[79,10,79,11],[66,10,66,11],[67,10,67,11],[68,10,68,11],[69,10,69,11],[90,5,90,7],[93,5,93,7],[77,10,77,11],[64,10,64,11],[70,10,70,11],[75,10,75,11],[117,1,126,1],[117,10,117,11],[118,5,118,8],[118,10,118,11],[119,5,119,8],[119,10,119,11],[120,5,120,8],[124,5,124,8],[124,10,124,11],[125,5,125,8],[125,10,125,11],[121,5,121,8],[121,10,121,11],[122,10,122,11],[123,5,123,8],[123,10,123,11],[114,2,114,3],[114,5,114,7],[114,10,114,11],[116,2,116,8],[116,10,116,11],[112,2,112,3],[112,5,112,8],[126,5,126,8],[126,10,126,11],[120,10,120,11],[110,1,114,1],[110,2,110,17],[111,2,111,8],[111,10,111,11],[113,5,113,8],[113,10,113,11],[84,10,84,11],[108,2,108,3],[108,5,108,8],[108,10,108,11],[109,2,109,3],[109,5,109,7],[109,10,109,11],[104,7,104,8],[105,7,105,8],[105,10,105,11],[106,7,106,8],[106,10,106,11],[107,2,107,3],[107,5,107,8],[107,10,107,11],[98,7,98,8],[87,2,87,3],[87,10,87,11],[85,1,109,1],[85,2,85,17],[86,2,86,8],[86,10,86,11],[82,2,82,3],[82,5,82,8],[80,1,84,1],[80,2,80,17],[81,2,81,8],[81,10,81,11],[103,2,103,3],[103,5,103,8],[103,10,103,11],[97,2,97,3],[97,5,97,8],[83,5,83,8],[83,10,83,11],[99,7,99,8],[99,10,99,11],[102,7,102,8],[102,10,102,11],[87,5,87,8],[84,2,84,3],[84,5,84,7],[56,2,56,8],[56,10,56,11],[73,5,73,6],[73,10,73,11],[78,5,78,6],[78,10,78,11],[79,5,79,7],[65,5,65,6],[65,10,65,11],[76,5,76,6],[71,5,71,8],[71,10,71,11],[61,5,61,6],[61,10,61,11],[62,5,62,6],[62,10,62,11],[70,5,70,6],[69,5,69,6],[57,5,57,8],[57,10,57,11],[58,2,58,3],[58,5,58,6],[59,5,59,6],[76,10,76,11],[46,5,46,6],[26,1,28,1],[26,2,26,8],[27,10,27,11],[26,10,26,11],[31,10,31,11],[32,10,32,11],[33,10,33,11],[34,10,34,11],[35,10,35,11],[36,10,36,11],[37,10,37,11],[41,10,41,11],[30,10,30,11],[42,5,42,6],[39,10,39,11],[40,10,40,11],[18,1,25,1],[18,2,18,17],[19,8,19,9],[19,10,19,17],[20,8,20,9],[20,10,20,17],[19,5,19,7],[20,5,20,7],[21,5,21,7],[22,5,22,7],[23,5,23,7],[25,5,25,7],[25,8,25,9],[25,10,25,17],[24,5,24,7],[24,8,24,9],[21,8,21,9],[22,8,22,9],[23,8,23,9],[9,5,9,9],[10,5,10,9],[0,0,0,17],[2,8,2,9],[3,8,3,9],[5,1,6,1],[5,2,6,17],[7,1,17,1],[7,2,7,9],[7,10,7,17],[8,5,8,9],[8,10,8,17],[9,10,9,17],[10,10,10,17],[12,10,12,17],[12,6,12,9],[13,6,13,9],[14,6,14,9],[11,5,11,9],[11,10,11,17],[15,6,15,9],[16,6,16,9],[17,6,17,9],[13,10,13,17]]}
["CFP Quantification -  Glazing"]
["Product category 1: Annealed glass"]
["Product category 2: Processed glass","Date of latest update",null,null,null,null,null,null,"2025-03-24"]
[null,"Reporting period"]
[]
[null,"G","GENERAL INFORMATION"]
[]
[null,"G1","G1 General Plant Information",null,null,null,null,null,null,null,"Description"]
[null,null,{"$f":"LEFT($C$8,2)&\".\"","v":"G1."},1,null,"Plant"]
[null,null,"G1.",2,null,"Company"]
[null,null,"G1.",3,null,"Country / Region"]
[null,null,"G1.",4,null,"Recycling content"]
[null,null,"G1.",5,null,"Product 1"]
[null,null,"G1.",6,null,"Product 2"]
[null,null,"G1.",7,null,"Product 3"]
[null,null,"G1.",8,null,"Product 4"]
[null,null,"G1.",9,null,"Product 5"]
[null,null,"G1.",10,null,"Product 6"]
[null,"G2","G2 System Boundary"]
[null,null,{"$f":"LEFT($C$19,2)&\".\"","v":"G2."},1,null,"Raw Material extraction and upstream production",null,null,"[yes, no or n.a.]"]
[null,null,"G2.",2,null,"Off-site transportation of raw materials to manufacturing plant",null,null,"[yes, no or n.a.]"]
[null,null,"G2.",3,null,"Product manufacturing - stationary combustion",null,null,"[yes, no or n.a.]"]
[null,null,"G2.",4,null,"Product manufacturing - mobile combustion ",null,null,"[yes, no or n.a.]"]
[null,null,"G2.",5,null,"Indirect emission from purchased energy ",null,null,"[yes, no or n.a.]"]
[null,null,"G2.",6,null,"Off-site transportation of  product to construction site [for reference only, excluded from assessment boundary]",null,null,"[yes, no or n.a.]"]
[null,null,"G2.",7,null,"(add other processes as appropriate)",null,null,"[yes, no or n.a.]"]
[null,"G3","G3 Glazing Product Production",null,null,null,null,null,null,"unit","Total",null,"Product 1","Product 2","Product 3","Product 4","Product 5","Product 6"]
[null,null,{"$f":"LEFT($C$27,2)&\".\"","v":"G3."},1,null,"Glazing production in weight",null,null,null,"[t/reporting period]",{"$f":"IF(SUM(M28:R28)=0,\"\",SUM(M28:R28))","v":""}]
[null,null,{"$f":"LEFT($C$27,2)&\".\"","v":"G3."},2,null,"Proportion",null,null,null,"%",{"$f":"IF(SUM(M29:R29)=0,\"\",SUM(M29:R29))","v":""},null,{"$f":"IF(M28=\"\",\"\",M28/$K$28)","v":""},"","","","",""]
[null,"G4","G4 Purchased Raw Materials Used to Produce Glazing Products (on-site produced materials shall be excluded)",null,null,null,null,null,null,"unit","Total",null,"Product 1","Product 2","Product 3","Product 4","Product 5","Product 6"]
[null,null,{"$f":"LEFT($C$30,2)&\".\"","v":"G4."},1,null,"Sandstone",null,null,null,"[t/reporting period, dry weight]",{"$f":"IF(SUM(M31:R31)=0,\"\",SUM(M31:R31))","v":""}]
[null,null,"G4.",2,null,"Limestone, CaCO₃",null,null,null,"[t/reporting period, dry weight]",""]
[null,null,"G4.",3,null,"Dolomite, CaMg(CO₃)₂",null,null,null,"[t/reporting period, dry weight]",""]
[null,null,"G4.",4,null,"Soda Ash (Sodium Carbonate, Na₂CO₃)",null,null,null,"[t/reporting period, dry weight]",""]
[null,null,"G4.",5,null,"Sodium Sulfate (Na₂SO₄)",null,null,null,"[t/reporting period, dry weight]",""]
[null,null,"G4.",6,null,"Flat Glass",null,null,null,"[t/reporting period, dry weight]",""]
[null,null,"G4.",7,null,"EVA Film",null,null,null,"[t/reporting period, dry weight]",""]
[null,null,"G4.",8,null,"Silver (Ag)",null,null,null,"[t/reporting period, dry weight]",""]
[null,null,{"$f":"LEFT($C$30,2)&\".\"","v":"G4."},9,null,"Nickel (Ni)",null,null,null,"[t/reporting period, dry weight]",""]
[null,null,"G4.",10,null,"Nitrogen (N₂)",null,null,null,"[m3/reporting period, dry weight]",""]
[null,null,"G4.",11,null,"Carbon Powder",null,null,null,"[t/reporting period, dry weight]",""]
[null,null,"G4.",12,null,null,"Others, if applicable","[refer to \"Customized Embodied EF\"]",null,"[t/reporting period, dry weight]",""]
[null,null,{"$f":"LEFT($C$30,2)&\".\"","v":"G4."},12,null,"Energy commodity used in stationary combustion",null,"Energy Commodity usage type : "]
[null,null,"G4.",{"$f":"D43","v":12},".1","Stationary combustion source",null,"Energy commodity :",null,"[t/reporting period]",null,{"$f":"IF(I$43=\"user input\",SUM(M44:R44),\"\")","v":""},{"$f":"IFERROR(IF($I$43=\"Proportionally Allocated\", $K44*$M29, \"\"),\"\")","v":""},{"$f":"IFERROR(IF($I$43=\"Proportionally Allocated\", $K44*$N29, \"\"),\"\")","v":""},{"$f":"IFERROR(IF($I$43=\"Proportionally Allocated\", $K44*$O29, \"\"),\"\")","v":""},{"$f":"IFERROR(IF($I$43=\"Proportionally Allocated\", $K44*$P29, \"\"),\"\")","v":""},{"$f":"IFERROR(IF($I$43=\"Proportionally Allocated\", $K44*$Q29, \"\"),\"\")","v":""},{"$f":"IFERROR(IF($I$43=\"Proportionally Allocated\", $K44*$R29, \"\"),\"\")","v":""}]
[null,null,"G4.",{"$f":"D44","v":12},".2","Stationary combustion source",null,"Energy commodity :",null,"[t/reporting period]",null,{"$f":"IF(I$43=\"user input\",SUM(M45:R45),\"\")","v":""},{"$f":"IFERROR(IF($I$43=\"Proportionally Allocated\", $K45*$M29, \"\"),\"\")","v":""},{"$f":"IFERROR(IF($I$43=\"Proportionally Allocated\", $K45*$N29, \"\"),\"\")","v":""},{"$f":"IFERROR(IF($I$43=\"Proportionally Allocated\", $K45*$O29, \"\"),\"\")","v":""},{"$f":"IFERROR(IF($I$43=\"Proportionally Allocated\", $K45*$P29, \"\"),\"\")","v":""},{"$f":"IFERROR(IF($I$43=\"Proportionally Allocated\", $K45*$Q29, \"\"),\"\")","v":""},{"$f":"IFERROR(IF($I$43=\"Proportionally Allocated\", $K45*$R29, \"\"),\"\")","v":""}]
[null,null,"G4.",{"$f":"D45","v":12},".3","Stationary combustion source",null,"Energy commodity :",null,"[t/reporting period]",null,{"$f":"IF(I$43=\"user input\",SUM(M46:R46),\"\")","v":""},{"$f":"IFERROR(IF($I$43=\"Proportionally Allocated\", $K46*$M29, \"\"),\"\")","v":""},{"$f":"IFERROR(IF($I$43=\"Proportionally Allocated\", $K46*$N29, \"\"),\"\")","v":""},{"$f":"IFERROR(IF($I$43=\"Proportionally Allocated\", $K46*$O29, \"\"),\"\")","v":""},{"$f":"IFERROR(IF($I$43=\"Proportionally Allocated\", $K46*$P29, \"\"),\"\")","v":""},{"$f":"IFERROR(IF($I$43=\"Proportionally Allocated\", $K46*$Q29, \"\"),\"\")","v":""},{"$f":"IFERROR(IF($I$43=\"Proportionally Allocated\", $K46*$R29, \"\"),\"\")","v":""}]
[null,null,"G4.",{"$f":"D46","v":12},".4","Stationary combustion source",null,"Energy commodity :",null,"[t/reporting period]",null,{"$f":"IF(I$43=\"user input\",SUM(M47:R47),\"\")","v":""},{"$f":"IFERROR(IF($I$43=\"Proportionally Allocated\", $K47*$M29, \"\"),\"\")","v":""},{"$f":"IFERROR(IF($I$43=\"Proportionally Allocated\", $K47*$N29, \"\"),\"\")","v":""},{"$f":"IFERROR(IF($I$43=\"Proportionally Allocated\", $K47*$O29, \"\"),\"\")","v":""},{"$f":"IFERROR(IF($I$43=\"Proportionally Allocated\", $K47*$P29, \"\"),\"\")","v":""},{"$f":"IFERROR(IF($I$43=\"Proportionally Allocated\", $K47*$Q29, \"\"),\"\")","v":""},{"$f":"IFERROR(IF($I$43=\"Proportionally Allocated\", $K47*$R29, \"\"),\"\")","v":""}]
[null,null,"G4.",13,null,"On-site transportation",null,"Energy Commodity usage type : "]
[null,null,"G4.",{"$f":"D48","v":13},".1","Mobile combustion source",null,"Energy commodity :",null,"[t/reporting period]",null,{"$f":"IF(I$48=\"user input\",SUM(M49:R49),\"\")","v":""},{"$f":"IFERROR(IF($I$48=\"Proportionally Allocated\", $K49*$M29, \"\"),\"\")","v":""},{"$f":"IFERROR(IF($I$48=\"Proportionally Allocated\", $K49*$N29, \"\"),\"\")","v":""},{"$f":"IFERROR(IF($I$48=\"Proportionally Allocated\", $K49*$O29, \"\"),\"\")","v":""},{"$f":"IFERROR(IF($I$48=\"Proportionally Allocated\", $K49*$P29, \"\"),\"\")","v":""},{"$f":"IFERROR(IF($I$48=\"Proportionally Allocated\", $K49*$Q29, \"\"),\"\")","v":""},{"$f":"IFERROR(IF($I$48=\"Proportionally Allocated\", $K49*$R29, \"\"),\"\")","v":""}]
[null,null,"G4.",{"$f":"D49","v":13},".2","Mobile combustion source",null,"Energy commodity :",null,"[t/reporting period]",null,{"$f":"IF(I$48=\"user input\",SUM(M50:R50),\"\")","v":""},{"$f":"IFERROR(IF($I$48=\"Proportionally Allocated\", $K50*$M29, \"\"),\"\")","v":""},{"$f":"IFERROR(IF($I$48=\"Proportionally Allocated\", $K50*$N29, \"\"),\"\")","v":""},{"$f":"IFERROR(IF($I$48=\"Proportionally Allocated\", $K50*$O29, \"\"),\"\")","v":""},{"$f":"IFERROR(IF($I$48=\"Proportionally Allocated\", $K50*$P29, \"\"),\"\")","v":""},{"$f":"IFERROR(IF($I$48=\"Proportionally Allocated\", $K50*$Q29, \"\"),\"\")","v":""},{"$f":"IFERROR(IF($I$48=\"Proportionally Allocated\", $K50*$R29, \"\"),\"\")","v":""}]
[null,"G5","G5. Power Consumption of Purchased Energy",null,null,null,null,null,null,"unit","Total",null,"Product 1","Product 2","Product 3","Product 4","Product 5","Product 6"]
[null,null,{"$f":"LEFT($C$51,2)&\".\"","v":"G5."},1,null,"Consumption of electricity produced externally",null,null,null,"[MWh/reporting period]",null,null,{"$f":"IFERROR(IF($K52=\"\",\"\",$K52*M29),\"\")","v":""},"","","","",""]
[null,null,{"$f":"LEFT($C$51,2)&\".\"","v":"G5."},2,null,"CO2e per unit of electricity produced externally",null,null,null,"[kg CO2e/MWh]"]
[]
[null,"A","ASSESSMENT"]
[null,"A1","PROJECT LIFE CYCLE STAGE : A1 RAW MATERIAL EXTRACTION AND UPSTREAM PRODUCTION"]
[null,null,"A1.1 CO2e EMISSIONS ",null,null,null,null,null,null,"unit","Total",null,"Product 1","Product 2","Product 3","Product 4","Product 5","Product 6"]
[null,null,"A1.1.1",null,null,"CO2e from bought raw materials (on-site produced materials shall be excluded)",null,null,null,"[t CO2e/reporting period]",{"$f":"SUM(M58:R58)","v":0},null,{"$f":"SUMIF($D:$D,$C58,M:M)","v":0},{"$f":"SUMIF($D:$D,$C58,N:N)","v":0},0,0,0,0]
[null,null,null,null,null,"Adopting CO2e Factors "]
[null,null,null,{"$f":"C58","v":"A1.1.1"},1,null,null,{"$f":"F31","v":"Sandstone"},{"$f":"G31","v":0},"[t CO2e/reporting period]",{"$f":"IF(SUM(M60:R60)=0,\"\",SUM(M60:R60))","v":""},null,{"$f":"IFERROR(IF(OR($H60='Customized Embodied EF'!$B:$B),SUMIFS(M:M,$F:$F,$H60,$C:$C,\"G4.\")*IF($F60=\"Customized\",(_xlfn.XLOOKUP($H60,'Customized Embodied EF'!$B:$B,'Customized Embodied EF'!E:E,\"error\",0)),_xlfn.XLOOKUP($H60,'Customized Embodied EF'!$B:$B,'Customized Embodied EF'!$D:$D,\"error\",0)),\"Factor error\"),\"Factor error\")","v":0},{"$f":"IFERROR(IF(OR($H60='Customized Embodied EF'!$B:$B),SUMIFS(N:N,$F:$F,$H60,$C:$C,\"G4.\")*IF($F60=\"Customized\",(_xlfn.XLOOKUP($H60,'Customized Embodied EF'!$B:$B,'Customized Embodied EF'!F:F,\"error\",0)),_xlfn.XLOOKUP($H60,'Customized Embodied EF'!$B:$B,'Customized Embodied EF'!$D:$D,\"error\",0)),\"Factor error\"),\"Factor error\")","v":0},{"$f":"IFERROR(IF(OR($H60='Customized Embodied EF'!$B:$B),SUMIFS(O:O,$F:$F,$H60,$C:$C,\"G4.\")*IF($F60=\"Customized\",(_xlfn.XLOOKUP($H60,'Customized Embodied EF'!$B:$B,'Customized Embodied EF'!G:G,\"error\",0)),_xlfn.XLOOKUP($H60,'Customized Embodied EF'!$B:$B,'Customized Embodied EF'!$D:$D,\"error\",0)),\"Factor error\"),\"Factor error\")","v":0},{"$f":"IFERROR(IF(OR($H60='Customized Embodied EF'!$B:$B),SUMIFS(P:P,$F:$F,$H60,$C:$C,\"G4.\")*IF($F60=\"Customized\",(_xlfn.XLOOKUP($H60,'Customized Embodied EF'!$B:$B,'Customized Embodied EF'!H:H,\"error\",0)),_xlfn.XLOOKUP($H60,'Customized Embodied EF'!$B:$B,'Customized Embodied EF'!$D:$D,\"error\",0)),\"Factor error\"),\"Factor error\")","v":0},{"$f":"IFERROR(IF(OR($H60='Customized Embodied EF'!$B:$B),SUMIFS(Q:Q,$F:$F,$H60,$C:$C,\"G4.\")*IF($F60=\"Customized\",(_xlfn.XLOOKUP($H60,'Customized Embodied EF'!$B:$B,'Customized Embodied EF'!I:I,\"error\",0)),_xlfn.XLOOKUP($H60,'Customized Embodied EF'!$B:$B,'Customized Embodied EF'!$D:$D,\"error\",0)),\"Factor error\"),\"Factor error\")","v":0},{"$f":"IFERROR(IF(OR($H60='Customized Embodied EF'!$B:$B),SUMIFS(R:R,$F:$F,$H60,$C:$C,\"G4.\")*IF($F60=\"Customized\",(_xlfn.XLOOKUP($H60,'Customized Embodied EF'!$B:$B,'Customized Embodied EF'!J:J,\"error\",0)),_xlfn.XLOOKUP($H60,'Customized Embodied EF'!$B:$B,'Customized Embodied EF'!$D:$D,\"error\",0)),\"Factor error\"),\"Factor error\")","v":0}]
[null,null,null,{"$f":"C58","v":"A1.1.1"},2,null,null,"Limestone, CaCO₃",0,"[t CO2e/reporting period]","",null,{"$f":"IFERROR(IF(OR($H61='Customized Embodied EF'!$B:$B),SUMIFS(M:M,$F:$F,$H61,$C:$C,\"G4.\")*IF($F61=\"Customized\",(_xlfn.XLOOKUP($H61,'Customized Embodied EF'!$B:$B,'Customized Embodied EF'!E:E,\"error\",0)),_xlfn.XLOOKUP($H61,'Customized Embodied EF'!$B:$B,'Customized Embodied EF'!$D:$D,\"error\",0)),\"Factor error\"),\"Factor error\")","v":0},{"$f":"IFERROR(IF(OR($H61='Customized Embodied EF'!$B:$B),SUMIFS(N:N,$F:$F,$H61,$C:$C,\"G4.\")*IF($F61=\"Customized\",(_xlfn.XLOOKUP($H61,'Customized Embodied EF'!$B:$B,'Customized Embodied EF'!F:F,\"error\",0)),_xlfn.XLOOKUP($H61,'Customized Embodied EF'!$B:$B,'Customized Embodied EF'!$D:$D,\"error\",0)),\"Factor error\"),\"Factor error\")","v":0},{"$f":"IFERROR(IF(OR($H61='Customized Embodied EF'!$B:$B),SUMIFS(O:O,$F:$F,$H61,$C:$C,\"G4.\")*IF($F61=\"Customized\",(_xlfn.XLOOKUP($H61,'Customized Embodied EF'!$B:$B,'Customized Embodied EF'!G:G,\"error\",0)),_xlfn.XLOOKUP($H61,'Customized Embodied EF'!$B:$B,'Customized Embodied EF'!$D:$D,\"error\",0)),\"Factor error\"),\"Factor error\")","v":0},{"$f":"IFERROR(IF(OR($H61='Customized Embodied EF'!$B:$B),SUMIFS(P:P,$F:$F,$H61,$C:$C,\"G4.\")*IF($F61=\"Customized\",(_xlfn.XLOOKUP($H61,'Customized Embodied EF'!$B:$B,'Customized Embodied EF'!H:H,\"error\",0)),_xlfn.XLOOKUP($H61,'Customized Embodied EF'!$B:$B,'Customized Embodied EF'!$D:$D,\"error\",0)),\"Factor error\"),\"Factor error\")","v":0},{"$f":"IFERROR(IF(OR($H61='Customized Embodied EF'!$B:$B),SUMIFS(Q:Q,$F:$F,$H61,$C:$C,\"G4.\")*IF($F61=\"Customized\",(_xlfn.XLOOKUP($H61,'Customized Embodied EF'!$B:$B,'Customized Embodied EF'!I:I,\"error\",0)),_xlfn.XLOOKUP($H61,'Customized Embodied EF'!$B:$B,'Customized Embodied EF'!$D:$D,\"error\",0)),\"Factor error\"),\"Factor error\")","v":0},{"$f":"IFERROR(IF(OR($H61='Customized Embodied EF'!$B:$B),SUMIFS(R:R,$F:$F,$H61,$C:$C,\"G4.\")*IF($F61=\"Customized\",(_xlfn.XLOOKUP($H61,'Customized Embodied EF'!$B:$B,'Customized Embodied EF'!J:J,\"error\",0)),_xlfn.XLOOKUP($H61,'Customized Embodied EF'!$B:$B,'Customized Embodied EF'!$D:$D,\"error\",0)),\"Factor error\"),\"Factor error\")","v":0}]
[null,null,null,{"$f":"C58","v":"A1.1.1"},3,null,null,"Dolomite, CaMg(CO₃)₂",0,"[t CO2e/reporting period]","",null,{"$f":"IFERROR(IF(OR($H62='Customized Embodied EF'!$B:$B),SUMIFS(M:M,$F:$F,$H62,$C:$C,\"G4.\")*IF($F62=\"Customized\",(_xlfn.XLOOKUP($H62,'Customized Embodied EF'!$B:$B,'Customized Embodied EF'!E:E,\"error\",0)),_xlfn.XLOOKUP($H62,'Customized Embodied EF'!$B:$B,'Customized Embodied EF'!$D:$D,\"error\",0)),\"Factor error\"),\"Factor error\")","v":0},{"$f":"IFERROR(IF(OR($H62='Customized Embodied EF'!$B:$B),SUMIFS(N:N,$F:$F,$H62,$C:$C,\"G4.\")*IF($F62=\"Customized\",(_xlfn.XLOOKUP($H62,'Customized Embodied EF'!$B:$B,'Customized Embodied EF'!F:F,\"error\",0)),_xlfn.XLOOKUP($H62,'Customized Embodied EF'!$B:$B,'Customized Embodied EF'!$D:$D,\"error\",0)),\"Factor error\"),\"Factor error\")","v":0},{"$f":"IFERROR(IF(OR($H62='Customized Embodied EF'!$B:$B),SUMIFS(O:O,$F:$F,$H62,$C:$C,\"G4.\")*IF($F62=\"Customized\",(_xlfn.XLOOKUP($H62,'Customized Embodied EF'!$B:$B,'Customized Embodied EF'!G:G,\"error\",0)),_xlfn.XLOOKUP($H62,'Customized Embodied EF'!$B:$B,'Customized Embodied EF'!$D:$D,\"error\",0)),\"Factor error\"),\"Factor error\")","v":0},{"$f":"IFERROR(IF(OR($H62='Customized Embodied EF'!$B:$B),SUMIFS(P:P,$F:$F,$H62,$C:$C,\"G4.\")*IF($F62=\"Customized\",(_xlfn.XLOOKUP($H62,'Customized Embodied EF'!$B:$B,'Customized Embodied EF'!H:H,\"error\",0)),_xlfn.XLOOKUP($H62,'Customized Embodied EF'!$B:$B,'Customized Embodied EF'!$D:$D,\"error\",0)),\"Factor error\"),\"Factor error\")","v":0},{"$f":"IFERROR(IF(OR($H62='Customized Embodied EF'!$B:$B),SUMIFS(Q:Q,$F:$F,$H62,$C:$C,\"G4.\")*IF($F62=\"Customized\",(_xlfn.XLOOKUP($H62,'Customized Embodied EF'!$B:$B,'Customized Embodied EF'!I:I,\"error\",0)),_xlfn.XLOOKUP($H62,'Customized Embodied EF'!$B:$B,'Customized Embodied EF'!$D:$D,\"error\",0)),\"Factor error\"),\"Factor error\")","v":0},{"$f":"IFERROR(IF(OR($H62='Customized Embodied EF'!$B:$B),SUMIFS(R:R,$F:$F,$H62,$C:$C,\"G4.\")*IF($F62=\"Customized\",(_xlfn.XLOOKUP($H62,'Customized Embodied EF'!$B:$B,'Customized Embodied EF'!J:J,\"error\",0)),_xlfn.XLOOKUP($H62,'Customized Embodied EF'!$B:$B,'Customized Embodied EF'!$D:$D,\"error\",0)),\"Factor error\"),\"Factor error\")","v":0}]
[null,null,null,{"$f":"C58","v":"A1.1.1"},4,null,null,"Soda Ash (Sodium Carbonate, Na₂CO₃)",0,"[t CO2e/reporting period]",{"$f":"IF(SUM(M63:R63)=0,\"\",SUM(M63:R63))","v":""},null,{"$f":"IFERROR(IF(OR($H63='Customized Embodied EF'!$B:$B),SUMIFS(M:M,$F:$F,$H63,$C:$C,\"G4.\")*IF($F63=\"Customized\",(_xlfn.XLOOKUP($H63,'Customized Embodied EF'!$B:$B,'Customized Embodied EF'!E:E,\"error\",0)),_xlfn.XLOOKUP($H63,'Customized Embodied EF'!$B:$B,'Customized Embodied EF'!$D:$D,\"error\",0)),\"Factor error\"),\"Factor error\")","v":0},{"$f":"IFERROR(IF(OR($H63='Customized Embodied EF'!$B:$B),SUMIFS(N:N,$F:$F,$H63,$C:$C,\"G4.\")*IF($F63=\"Customized\",(_xlfn.XLOOKUP($H63,'Customized Embodied EF'!$B:$B,'Customized Embodied EF'!F:F,\"error\",0)),_xlfn.XLOOKUP($H63,'Customized Embodied EF'!$B:$B,'Customized Embodied EF'!$D:$D,\"error\",0)),\"Factor error\"),\"Factor error\")","v":0},{"$f":"IFERROR(IF(OR($H63='Customized Embodied EF'!$B:$B),SUMIFS(O:O,$F:$F,$H63,$C:$C,\"G4.\")*IF($F63=\"Customized\",(_xlfn.XLOOKUP($H63,'Customized Embodied EF'!$B:$B,'Customized Embodied EF'!G:G,\"error\",0)),_xlfn.XLOOKUP($H63,'Customized Embodied EF'!$B:$B,'Customized Embodied EF'!$D:$D,\"error\",0)),\"Factor error\"),\"Factor error\")","v":0},{"$f":"IFERROR(IF(OR($H63='Customized Embodied EF'!$B:$B),SUMIFS(P:P,$F:$F,$H63,$C:$C,\"G4.\")*IF($F63=\"Customized\",(_xlfn.XLOOKUP($H63,'Customized Embodied EF'!$B:$B,'Customized Embodied EF'!H:H,\"error\",0)),_xlfn.XLOOKUP($H63,'Customized Embodied EF'!$B:$B,'Customized Embodied EF'!$D:$D,\"error\",0)),\"Factor error\"),\"Factor error\")","v":0},{"$f":"IFERROR(IF(OR($H63='Customized Embodied EF'!$B:$B),SUMIFS(Q:Q,$F:$F,$H63,$C:$C,\"G4.\")*IF($F63=\"Customized\",(_xlfn.XLOOKUP($H63,'Customized Embodied EF'!$B:$B,'Customized Embodied EF'!I:I,\"error\",0)),_xlfn.XLOOKUP($H63,'Customized Embodied EF'!$B:$B,'Customized Embodied EF'!$D:$D,\"error\",0)),\"Factor error\"),\"Factor error\")","v":0},{"$f":"IFERROR(IF(OR($H63='Customized Embodied EF'!$B:$B),SUMIFS(R:R,$F:$F,$H63,$C:$C,\"G4.\")*IF($F63=\"Customized\",(_xlfn.XLOOKUP($H63,'Customized Embodied EF'!$B:$B,'Customized Embodied EF'!J:J,\"error\",0)),_xlfn.XLOOKUP($H63,'Customized Embodied EF'!$B:$B,'Customized Embodied EF'!$D:$D,\"error\",0)),\"Factor error\"),\"Factor error\")","v":0}]
[null,null,null,{"$f":"D63","v":"A1.1.1"},5,null,null,"Sodium Sulfate (Na₂SO₄)",0,"[t CO2e/reporting period]","",null,{"$f":"IFERROR(IF(OR($H64='Customized Embodied EF'!$B:$B),SUMIFS(M:M,$F:$F,$H64,$C:$C,\"G4.\")*IF($F64=\"Customized\",(_xlfn.XLOOKUP($H64,'Customized Embodied EF'!$B:$B,'Customized Embodied EF'!E:E,\"error\",0)),_xlfn.XLOOKUP($H64,'Customized Embodied EF'!$B:$B,'Customized Embodied EF'!$D:$D,\"error\",0)),\"Factor error\"),\"Factor error\")","v":0},{"$f":"IFERROR(IF(OR($H64='Customized Embodied EF'!$B:$B),SUMIFS(N:N,$F:$F,$H64,$C:$C,\"G4.\")*IF($F64=\"Customized\",(_xlfn.XLOOKUP($H64,'Customized Embodied EF'!$B:$B,'Customized Embodied EF'!F:F,\"error\",0)),_xlfn.XLOOKUP($H64,'Customized Embodied EF'!$B:$B,'Customized Embodied EF'!$D:$D,\"error\",0)),\"Factor error\"),\"Factor error\")","v":0},{"$f":"IFERROR(IF(OR($H64='Customized Embodied EF'!$B:$B),SUMIFS(O:O,$F:$F,$H64,$C:$C,\"G4.\")*IF($F64=\"Customized\",(_xlfn.XLOOKUP($H64,'Customized Embodied EF'!$B:$B,'Customized Embodied EF'!G:G,\"error\",0)),_xlfn.XLOOKUP($H64,'Customized Embodied EF'!$B:$B,'Customized Embodied EF'!$D:$D,\"error\",0)),\"Factor error\"),\"Factor error\")","v":0},{"$f":"IFERROR(IF(OR($H64='Customized Embodied EF'!$B:$B),SUMIFS(P:P,$F:$F,$H64,$C:$C,\"G4.\")*IF($F64=\"Customized\",(_xlfn.XLOOKUP($H64,'Customized Embodied EF'!$B:$B,'Customized Embodied EF'!H:H,\"error\",0)),_xlfn.XLOOKUP($H64,'Customized Embodied EF'!$B:$B,'Customized Embodied EF'!$D:$D,\"error\",0)),\"Factor error\"),\"Factor error\")","v":0},{"$f":"IFERROR(IF(OR($H64='Customized Embodied EF'!$B:$B),SUMIFS(Q:Q,$F:$F,$H64,$C:$C,\"G4.\")*IF($F64=\"Customized\",(_xlfn.XLOOKUP($H64,'Customized Embodied EF'!$B:$B,'Customized Embodied EF'!I:I,\"error\",0)),_xlfn.XLOOKUP($H64,'Customized Embodied EF'!$B:$B,'Customized Embodied EF'!$D:$D,\"error\",0)),\"Factor error\"),\"Factor error\")","v":0},{"$f":"IFERROR(IF(OR($H64='Customized Embodied EF'!$B:$B),SUMIFS(R:R,$F:$F,$H64,$C:$C,\"G4.\")*IF($F64=\"Customized\",(_xlfn.XLOOKUP($H64,'Customized Embodied EF'!$B:$B,'Customized Embodied EF'!J:J,\"error\",0)),_xlfn.XLOOKUP($H64,'Customized Embodied EF'!$B:$B,'Customized Embodied EF'!$D:$D,\"error\",0)),\"Factor error\"),\"Factor error\")","v":0}]
[null,null,null,{"$f":"D64","v":"A1.1.1"},6,null,null,"Flat Glass",0,"[t CO2e/reporting period]","",null,{"$f":"IFERROR(IF(OR($H65='Customized Embodied EF'!$B:$B),SUMIFS(M:M,$F:$F,$H65,$C:$C,\"G4.\")*IF($F65=\"Customized\",(_xlfn.XLOOKUP($H65,'Customized Embodied EF'!$B:$B,'Customized Embodied EF'!E:E,\"error\",0)),_xlfn.XLOOKUP($H65,'Customized Embodied EF'!$B:$B,'Customized Embodied EF'!$D:$D,\"error\",0)),\"Factor error\"),\"Factor error\")","v":0},{"$f":"IFERROR(IF(OR($H65='Customized Embodied EF'!$B:$B),SUMIFS(N:N,$F:$F,$H65,$C:$C,\"G4.\")*IF($F65=\"Customized\",(_xlfn.XLOOKUP($H65,'Customized Embodied EF'!$B:$B,'Customized Embodied EF'!F:F,\"error\",0)),_xlfn.XLOOKUP($H65,'Customized Embodied EF'!$B:$B,'Customized Embodied EF'!$D:$D,\"error\",0)),\"Factor error\"),\"Factor error\")","v":0},{"$f":"IFERROR(IF(OR($H65='Customized Embodied EF'!$B:$B),SUMIFS(O:O,$F:$F,$H65,$C:$C,\"G4.\")*IF($F65=\"Customized\",(_xlfn.XLOOKUP($H65,'Customized Embodied EF'!$B:$B,'Customized Embodied EF'!G:G,\"error\",0)),_xlfn.XLOOKUP($H65,'Customized Embodied EF'!$B:$B,'Customized Embodied EF'!$D:$D,\"error\",0)),\"Factor error\"),\"Factor error\")","v":0},{"$f":"IFERROR(IF(OR($H65='Customized Embodied EF'!$B:$B),SUMIFS(P:P,$F:$F,$H65,$C:$C,\"G4.\")*IF($F65=\"Customized\",(_xlfn.XLOOKUP($H65,'Customized Embodied EF'!$B:$B,'Customized Embodied EF'!H:H,\"error\",0)),_xlfn.XLOOKUP($H65,'Customized Embodied EF'!$B:$B,'Customized Embodied EF'!$D:$D,\"error\",0)),\"Factor error\"),\"Factor error\")","v":0},{"$f":"IFERROR(IF(OR($H65='Customized Embodied EF'!$B:$B),SUMIFS(Q:Q,$F:$F,$H65,$C:$C,\"G4.\")*IF($F65=\"Customized\",(_xlfn.XLOOKUP($H65,'Customized Embodied EF'!$B:$B,'Customized Embodied EF'!I:I,\"error\",0)),_xlfn.XLOOKUP($H65,'Customized Embodied EF'!$B:$B,'Customized Embodied EF'!$D:$D,\"error\",0)),\"Factor error\"),\"Factor error\")","v":0},{"$f":"IFERROR(IF(OR($H65='Customized Embodied EF'!$B:$B),SUMIFS(R:R,$F:$F,$H65,$C:$C,\"G4.\")*IF($F65=\"Customized\",(_xlfn.XLOOKUP($H65,'Customized Embodied EF'!$B:$B,'Customized Embodied EF'!J:J,\"error\",0)),_xlfn.XLOOKUP($H65,'Customized Embodied EF'!$B:$B,'Customized Embodied EF'!$D:$D,\"error\",0)),\"Factor error\"),\"Factor error\")","v":0}]
[null,null,null,{"$f":"D65","v":"A1.1.1"},7,null,null,"EVA Film",0,"[t CO2e/reporting period]","",null,{"$f":"IFERROR(IF(OR($H66='Customized Embodied EF'!$B:$B),SUMIFS(M:M,$F:$F,$H66,$C:$C,\"G4.\")*IF($F66=\"Customized\",(_xlfn.XLOOKUP($H66,'Customized Embodied EF'!$B:$B,'Customized Embodied EF'!E:E,\"error\",0)),_xlfn.XLOOKUP($H66,'Customized Embodied EF'!$B:$B,'Customized Embodied EF'!$D:$D,\"error\",0)),\"Factor error\"),\"Factor error\")","v":0},{"$f":"IFERROR(IF(OR($H66='Customized Embodied EF'!$B:$B),SUMIFS(N:N,$F:$F,$H66,$C:$C,\"G4.\")*IF($F66=\"Customized\",(_xlfn.XLOOKUP($H66,'Customized Embodied EF'!$B:$B,'Customized Embodied EF'!F:F,\"error\",0)),_xlfn.XLOOKUP($H66,'Customized Embodied EF'!$B:$B,'Customized Embodied EF'!$D:$D,\"error\",0)),\"Factor error\"),\"Factor error\")","v":0},{"$f":"IFERROR(IF(OR($H66='Customized Embodied EF'!$B:$B),SUMIFS(O:O,$F:$F,$H66,$C:$C,\"G4.\")*IF($F66=\"Customized\",(_xlfn.XLOOKUP($H66,'Customized Embodied EF'!$B:$B,'Customized Embodied EF'!G:G,\"error\",0)),_xlfn.XLOOKUP($H66,'Customized Embodied EF'!$B:$B,'Customized Embodied EF'!$D:$D,\"error\",0)),\"Factor error\"),\"Factor error\")","v":0},{"$f":"IFERROR(IF(OR($H66='Customized Embodied EF'!$B:$B),SUMIFS(P:P,$F:$F,$H66,$C:$C,\"G4.\")*IF($F66=\"Customized\",(_xlfn.XLOOKUP($H66,'Customized Embodied EF'!$B:$B,'Customized Embodied EF'!H:H,\"error\",0)),_xlfn.XLOOKUP($H66,'Customized Embodied EF'!$B:$B,'Customized Embodied EF'!$D:$D,\"error\",0)),\"Factor error\"),\"Factor error\")","v":0},{"$f":"IFERROR(IF(OR($H66='Customized Embodied EF'!$B:$B),SUMIFS(Q:Q,$F:$F,$H66,$C:$C,\"G4.\")*IF($F66=\"Customized\",(_xlfn.XLOOKUP($H66,'Customized Embodied EF'!$B:$B,'Customized Embodied EF'!I:I,\"error\",0)),_xlfn.XLOOKUP($H66,'Customized Embodied EF'!$B:$B,'Customized Embodied EF'!$D:$D,\"error\",0)),\"Factor error\"),\"Factor error\")","v":0},{"$f":"IFERROR(IF(OR($H66='Customized Embodied EF'!$B:$B),SUMIFS(R:R,$F:$F,$H66,$C:$C,\"G4.\")*IF($F66=\"Customized\",(_xlfn.XLOOKUP($H66,'Customized Embodied EF'!$B:$B,'Customized Embodied EF'!J:J,\"error\",0)),_xlfn.XLOOKUP($H66,'Customized Embodied EF'!$B:$B,'Customized Embodied EF'!$D:$D,\"error\",0)),\"Factor error\"),\"Factor error\")","v":0}]
[null,null,null,{"$f":"D66","v":"A1.1.1"},8,null,null,"Silver (Ag)",0,"[t CO2e/reporting period]","",null,{"$f":"IFERROR(IF(OR($H67='Customized Embodied EF'!$B:$B),SUMIFS(M:M,$F:$F,$H67,$C:$C,\"G4.\")*IF($F67=\"Customized\",(_xlfn.XLOOKUP($H67,'Customized Embodied EF'!$B:$B,'Customized Embodied EF'!E:E,\"error\",0)),_xlfn.XLOOKUP($H67,'Customized Embodied EF'!$B:$B,'Customized Embodied EF'!$D:$D,\"error\",0)),\"Factor error\"),\"Factor error\")","v":0},{"$f":"IFERROR(IF(OR($H67='Customized Embodied EF'!$B:$B),SUMIFS(N:N,$F:$F,$H67,$C:$C,\"G4.\")*IF($F67=\"Customized\",(_xlfn.XLOOKUP($H67,'Customized Embodied EF'!$B:$B,'Customized Embodied EF'!F:F,\"error\",0)),_xlfn.XLOOKUP($H67,'Customized Embodied EF'!$B:$B,'Customized Embodied EF'!$D:$D,\"error\",0)),\"Factor error\"),\"Factor error\")","v":0},{"$f":"IFERROR(IF(OR($H67='Customized Embodied EF'!$B:$B),SUMIFS(O:O,$F:$F,$H67,$C:$C,\"G4.\")*IF($F67=\"Customized\",(_xlfn.XLOOKUP($H67,'Customized Embodied EF'!$B:$B,'Customized Embodied EF'!G:G,\"error\",0)),_xlfn.XLOOKUP($H67,'Customized Embodied EF'!$B:$B,'Customized Embodied EF'!$D:$D,\"error\",0)),\"Factor error\"),\"Factor error\")","v":0},{"$f":"IFERROR(IF(OR($H67='Customized Embodied EF'!$B:$B),SUMIFS(P:P,$F:$F,$H67,$C:$C,\"G4.\")*IF($F67=\"Customized\",(_xlfn.XLOOKUP($H67,'Customized Embodied EF'!$B:$B,'Customized Embodied EF'!H:H,\"error\",0)),_xlfn.XLOOKUP($H67,'Customized Embodied EF'!$B:$B,'Customized Embodied EF'!$D:$D,\"error\",0)),\"Factor error\"),\"Factor error\")","v":0},{"$f":"IFERROR(IF(OR($H67='Customized Embodied EF'!$B:$B),SUMIFS(Q:Q,$F:$F,$H67,$C:$C,\"G4.\")*IF($F67=\"Customized\",(_xlfn.XLOOKUP($H67,'Customized Embodied EF'!$B:$B,'Customized Embodied EF'!I:I,\"error\",0)),_xlfn.XLOOKUP($H67,'Customized Embodied EF'!$B:$B,'Customized Embodied EF'!$D:$D,\"error\",0)),\"Factor error\"),\"Factor error\")","v":0},{"$f":"IFERROR(IF(OR($H67='Customized Embodied EF'!$B:$B),SUMIFS(R:R,$F:$F,$H67,$C:$C,\"G4.\")*IF($F67=\"Customized\",(_xlfn.XLOOKUP($H67,'Customized Embodied EF'!$B:$B,'Customized Embodied EF'!J:J,\"error\",0)),_xlfn.XLOOKUP($H67,'Customized Embodied EF'!$B:$B,'Customized Embodied EF'!$D:$D,\"error\",0)),\"Factor error\"),\"Factor error\")","v":0}]
[null,null,null,"A1.1.1",9,null,null,"Nickel (Ni)",0,"[t CO2e/reporting period]","",null,{"$f":"IFERROR(IF(OR($H68='Customized Embodied EF'!$B:$B),SUMIFS(M:M,$F:$F,$H68,$C:$C,\"G4.\")*IF($F68=\"Customized\",(_xlfn.XLOOKUP($H68,'Customized Embodied EF'!$B:$B,'Customized Embodied EF'!E:E,\"error\",0)),_xlfn.XLOOKUP($H68,'Customized Embodied EF'!$B:$B,'Customized Embodied EF'!$D:$D,\"error\",0)),\"Factor error\"),\"Factor error\")","v":0},{"$f":"IFERROR(IF(OR($H68='Customized Embodied EF'!$B:$B),SUMIFS(N:N,$F:$F,$H68,$C:$C,\"G4.\")*IF($F68=\"Customized\",(_xlfn.XLOOKUP($H68,'Customized Embodied EF'!$B:$B,'Customized Embodied EF'!F:F,\"error\",0)),_xlfn.XLOOKUP($H68,'Customized Embodied EF'!$B:$B,'Customized Embodied EF'!$D:$D,\"error\",0)),\"Factor error\"),\"Factor error\")","v":0},{"$f":"IFERROR(IF(OR($H68='Customized Embodied EF'!$B:$B),SUMIFS(O:O,$F:$F,$H68,$C:$C,\"G4.\")*IF($F68=\"Customized\",(_xlfn.XLOOKUP($H68,'Customized Embodied EF'!$B:$B,'Customized Embodied EF'!G:G,\"error\",0)),_xlfn.XLOOKUP($H68,'Customized Embodied EF'!$B:$B,'Customized Embodied EF'!$D:$D,\"error\",0)),\"Factor error\"),\"Factor error\")","v":0},{"$f":"IFERROR(IF(OR($H68='Customized Embodied EF'!$B:$B),SUMIFS(P:P,$F:$F,$H68,$C:$C,\"G4.\")*IF($F68=\"Customized\",(_xlfn.XLOOKUP($H68,'Customized Embodied EF'!$B:$B,'Customized Embodied EF'!H:H,\"error\",0)),_xlfn.XLOOKUP($H68,'Customized Embodied EF'!$B:$B,'Customized Embodied EF'!$D:$D,\"error\",0)),\"Factor error\"),\"Factor error\")","v":0},{"$f":"IFERROR(IF(OR($H68='Customized Embodied EF'!$B:$B),SUMIFS(Q:Q,$F:$F,$H68,$C:$C,\"G4.\")*IF($F68=\"Customized\",(_xlfn.XLOOKUP($H68,'Customized Embodied EF'!$B:$B,'Customized Embodied EF'!I:I,\"error\",0)),_xlfn.XLOOKUP($H68,'Customized Embodied EF'!$B:$B,'Customized Embodied EF'!$D:$D,\"error\",0)),\"Factor error\"),\"Factor error\")","v":0},{"$f":"IFERROR(IF(OR($H68='Customized Embodied EF'!$B:$B),SUMIFS(R:R,$F:$F,$H68,$C:$C,\"G4.\")*IF($F68=\"Customized\",(_xlfn.XLOOKUP($H68,'Customized Embodied EF'!$B:$B,'Customized Embodied EF'!J:J,\"error\",0)),_xlfn.XLOOKUP($H68,'Customized Embodied EF'!$B:$B,'Customized Embodied EF'!$D:$D,\"error\",0)),\"Factor error\"),\"Factor error\")","v":0}]
[null,null,null,"A1.1.1",10,null,null,"Nitrogen (N₂)",0,"[t CO2e/reporting period]","",null,{"$f":"IFERROR(IF(OR($H69='Customized Embodied EF'!$B:$B),SUMIFS(M:M,$F:$F,$H69,$C:$C,\"G4.\")*IF($F69=\"Customized\",(_xlfn.XLOOKUP($H69,'Customized Embodied EF'!$B:$B,'Customized Embodied EF'!E:E,\"error\",0)),_xlfn.XLOOKUP($H69,'Customized Embodied EF'!$B:$B,'Customized Embodied EF'!$D:$D,\"error\",0)),\"Factor error\"),\"Factor error\")","v":0},{"$f":"IFERROR(IF(OR($H69='Customized Embodied EF'!$B:$B),SUMIFS(N:N,$F:$F,$H69,$C:$C,\"G4.\")*IF($F69=\"Customized\",(_xlfn.XLOOKUP($H69,'Customized Embodied EF'!$B:$B,'Customized Embodied EF'!F:F,\"error\",0)),_xlfn.XLOOKUP($H69,'Customized Embodied EF'!$B:$B,'Customized Embodied EF'!$D:$D,\"error\",0)),\"Factor error\"),\"Factor error\")","v":0},{"$f":"IFERROR(IF(OR($H69='Customized Embodied EF'!$B:$B),SUMIFS(O:O,$F:$F,$H69,$C:$C,\"G4.\")*IF($F69=\"Customized\",(_xlfn.XLOOKUP($H69,'Customized Embodied EF'!$B:$B,'Customized Embodied EF'!G:G,\"error\",0)),_xlfn.XLOOKUP($H69,'Customized Embodied EF'!$B:$B,'Customized Embodied EF'!$D:$D,\"error\",0)),\"Factor error\"),\"Factor error\")","v":0},{"$f":"IFERROR(IF(OR($H69='Customized Embodied EF'!$B:$B),SUMIFS(P:P,$F:$F,$H69,$C:$C,\"G4.\")*IF($F69=\"Customized\",(_xlfn.XLOOKUP($H69,'Customized Embodied EF'!$B:$B,'Customized Embodied EF'!H:H,\"error\",0)),_xlfn.XLOOKUP($H69,'Customized Embodied EF'!$B:$B,'Customized Embodied EF'!$D:$D,\"error\",0)),\"Factor error\"),\"Factor error\")","v":0},{"$f":"IFERROR(IF(OR($H69='Customized Embodied EF'!$B:$B),SUMIFS(Q:Q,$F:$F,$H69,$C:$C,\"G4.\")*IF($F69=\"Customized\",(_xlfn.XLOOKUP($H69,'Customized Embodied EF'!$B:$B,'Customized Embodied EF'!I:I,\"error\",0)),_xlfn.XLOOKUP($H69,'Customized Embodied EF'!$B:$B,'Customized Embodied EF'!$D:$D,\"error\",0)),\"Factor error\"),\"Factor error\")","v":0},{"$f":"IFERROR(IF(OR($H69='Customized Embodied EF'!$B:$B),SUMIFS(R:R,$F:$F,$H69,$C:$C,\"G4.\")*IF($F69=\"Customized\",(_xlfn.XLOOKUP($H69,'Customized Embodied EF'!$B:$B,'Customized Embodied EF'!J:J,\"error\",0)),_xlfn.XLOOKUP($H69,'Customized Embodied EF'!$B:$B,'Customized Embodied EF'!$D:$D,\"error\",0)),\"Factor error\"),\"Factor error\")","v":0}]
[null,null,null,"A1.1.1",11,null,null,"Carbon Powder",0,"[t CO2e/reporting period]",{"$f":"IF(SUM(M70:R70)=0,\"\",SUM(M70:R70))","v":""},null,{"$f":"IFERROR(IF(OR($H70='Customized Embodied EF'!$B:$B),SUMIFS(M:M,$F:$F,$H70,$C:$C,\"G4.\")*IF($F70=\"Customized\",(_xlfn.XLOOKUP($H70,'Customized Embodied EF'!$B:$B,'Customized Embodied EF'!E:E,\"error\",0)),_xlfn.XLOOKUP($H70,'Customized Embodied EF'!$B:$B,'Customized Embodied EF'!$D:$D,\"error\",0)),\"Factor error\"),\"Factor error\")","v":"Factor error"},{"$f":"IFERROR(IF(OR($H70='Customized Embodied EF'!$B:$B),SUMIFS(N:N,$F:$F,$H70,$C:$C,\"G4.\")*IF($F70=\"Customized\",(_xlfn.XLOOKUP($H70,'Customized Embodied EF'!$B:$B,'Customized Embodied EF'!F:F,\"error\",0)),_xlfn.XLOOKUP($H70,'Customized Embodied EF'!$B:$B,'Customized Embodied EF'!$D:$D,\"error\",0)),\"Factor error\"),\"Factor error\")","v":"Factor error"},{"$f":"IFERROR(IF(OR($H70='Customized Embodied EF'!$B:$B),SUMIFS(O:O,$F:$F,$H70,$C:$C,\"G4.\")*IF($F70=\"Customized\",(_xlfn.XLOOKUP($H70,'Customized Embodied EF'!$B:$B,'Customized Embodied EF'!G:G,\"error\",0)),_xlfn.XLOOKUP($H70,'Customized Embodied EF'!$B:$B,'Customized Embodied EF'!$D:$D,\"error\",0)),\"Factor error\"),\"Factor error\")","v":"Factor error"},{"$f":"IFERROR(IF(OR($H70='Customized Embodied EF'!$B:$B),SUMIFS(P:P,$F:$F,$H70,$C:$C,\"G4.\")*IF($F70=\"Customized\",(_xlfn.XLOOKUP($H70,'Customized Embodied EF'!$B:$B,'Customized Embodied EF'!H:H,\"error\",0)),_xlfn.XLOOKUP($H70,'Customized Embodied EF'!$B:$B,'Customized Embodied EF'!$D:$D,\"error\",0)),\"Factor error\"),\"Factor error\")","v":"Factor error"},{"$f":"IFERROR(IF(OR($H70='Customized Embodied EF'!$B:$B),SUMIFS(Q:Q,$F:$F,$H70,$C:$C,\"G4.\")*IF($F70=\"Customized\",(_xlfn.XLOOKUP($H70,'Customized Embodied EF'!$B:$B,'Customized Embodied EF'!I:I,\"error\",0)),_xlfn.XLOOKUP($H70,'Customized Embodied EF'!$B:$B,'Customized Embodied EF'!$D:$D,\"error\",0)),\"Factor error\"),\"Factor error\")","v":"Factor error"},{"$f":"IFERROR(IF(OR($H70='Customized Embodied EF'!$B:$B),SUMIFS(R:R,$F:$F,$H70,$C:$C,\"G4.\")*IF($F70=\"Customized\",(_xlfn.XLOOKUP($H70,'Customized Embodied EF'!$B:$B,'Customized Embodied EF'!J:J,\"error\",0)),_xlfn.XLOOKUP($H70,'Customized Embodied EF'!$B:$B,'Customized Embodied EF'!$D:$D,\"error\",0)),\"Factor error\"),\"Factor error\")","v":"Factor error"}]
[null,null,null,{"$f":"D69","v":"A1.1.1"},12,null,null,null,"[refer to section G4]","[t CO2e/reporting period]",{"$f":"IF(SUM(M71:R71)=0,\"\",SUM(M71:R71))","v":""},null,{"$f":"IFERROR(IF(OR($H71='Customized Embodied EF'!$B:$B),SUMIFS(M:M,$F:$F,$H71,$C:$C,\"G4.\")*IF($F71=\"Customized\",(_xlfn.XLOOKUP($H71,'Customized Embodied EF'!$B:$B,'Customized Embodied EF'!E:E,\"error\",0)),_xlfn.XLOOKUP($H71,'Customized Embodied EF'!$B:$B,'Customized Embodied EF'!$D:$D,\"error\",0)),\"Factor error\"),\"Factor error\")","v":0},{"$f":"IFERROR(IF(OR($H71='Customized Embodied EF'!$B:$B),SUMIFS(N:N,$F:$F,$H71,$C:$C,\"G4.\")*IF($F71=\"Customized\",(_xlfn.XLOOKUP($H71,'Customized Embodied EF'!$B:$B,'Customized Embodied EF'!F:F,\"error\",0)),_xlfn.XLOOKUP($H71,'Customized Embodied EF'!$B:$B,'Customized Embodied EF'!$D:$D,\"error\",0)),\"Factor error\"),\"Factor error\")","v":0},{"$f":"IFERROR(IF(OR($H71='Customized Embodied EF'!$B:$B),SUMIFS(O:O,$F:$F,$H71,$C:$C,\"G4.\")*IF($F71=\"Customized\",(_xlfn.XLOOKUP($H71,'Customized Embodied EF'!$B:$B,'Customized Embodied EF'!G:G,\"error\",0)),_xlfn.XLOOKUP($H71,'Customized Embodied EF'!$B:$B,'Customized Embodied EF'!$D:$D,\"error\",0)),\"Factor error\"),\"Factor error\")","v":0},{"$f":"IFERROR(IF(OR($H71='Customized Embodied EF'!$B:$B),SUMIFS(P:P,$F:$F,$H71,$C:$C,\"G4.\")*IF($F71=\"Customized\",(_xlfn.XLOOKUP($H71,'Customized Embodied EF'!$B:$B,'Customized Embodied EF'!H:H,\"error\",0)),_xlfn.XLOOKUP($H71,'Customized Embodied EF'!$B:$B,'Customized Embodied EF'!$D:$D,\"error\",0)),\"Factor error\"),\"Factor error\")","v":0},{"$f":"IFERROR(IF(OR($H71='Customized Embodied EF'!$B:$B),SUMIFS(Q:Q,$F:$F,$H71,$C:$C,\"G4.\")*IF($F71=\"Customized\",(_xlfn.XLOOKUP($H71,'Customized Embodied EF'!$B:$B,'Customized Embodied EF'!I:I,\"error\",0)),_xlfn.XLOOKUP($H71,'Customized Embodied EF'!$B:$B,'Customized Embodied EF'!$D:$D,\"error\",0)),\"Factor error\"),\"Factor error\")","v":0},{"$f":"IFERROR(IF(OR($H71='Customized Embodied EF'!$B:$B),SUMIFS(R:R,$F:$F,$H71,$C:$C,\"G4.\")*IF($F71=\"Customized\",(_xlfn.XLOOKUP($H71,'Customized Embodied EF'!$B:$B,'Customized Embodied EF'!J:J,\"error\",0)),_xlfn.XLOOKUP($H71,'Customized Embodied EF'!$B:$B,'Customized Embodied EF'!$D:$D,\"error\",0)),\"Factor error\"),\"Factor error\")","v":0}]
[null,null,"A1.1.2",null,null,"CO2e from bought energy commodity",null,null,null,"[t CO2e/reporting period]","",null,{"$f":"SUMIF($D:$D,$C72,M:M)","v":0},0,0,0,0,0]
[null,null,null,null,null,"Adopting CO2e Factors ",null,"[Please insert additional rows if more energy commodities are included]"]
[null,null,null,{"$f":"C72","v":"A1.1.2"},".1",null,null,{"$f":"H49","v":"Energy commodity :"},null,"[t CO2e/reporting period]",{"$f":"SUM(M74:R74)","v":0},null,{"$f":"IFERROR(IF(OR($I74='Customized Embodied EF'!$B:$B),SUMIFS(M:M,$I:$I,$I74,$C:$C,\"G4.\")*IF($F74=\"Customized\",(_xlfn.XLOOKUP($I74,'Customized Embodied EF'!$B:$B,'Customized Embodied EF'!E:E,\"error\",0)),_xlfn.XLOOKUP($I74,'Customized Embodied EF'!$B:$B,'Customized Embodied EF'!$D:$D,\"error\",0)),\"Factor error\"),\"Factor error\")","v":0},{"$f":"IFERROR(IF(OR($I74='Customized Embodied EF'!$B:$B),SUMIFS(N:N,$I:$I,$I74,$C:$C,\"G4.\")*IF($F74=\"Customized\",(_xlfn.XLOOKUP($I74,'Customized Embodied EF'!$B:$B,'Customized Embodied EF'!F:F,\"error\",0)),_xlfn.XLOOKUP($I74,'Customized Embodied EF'!$B:$B,'Customized Embodied EF'!$D:$D,\"error\",0)),\"Factor error\"),\"Factor error\")","v":0},{"$f":"IFERROR(IF(OR($I74='Customized Embodied EF'!$B:$B),SUMIFS(O:O,$I:$I,$I74,$C:$C,\"G4.\")*IF($F74=\"Customized\",(_xlfn.XLOOKUP($I74,'Customized Embodied EF'!$B:$B,'Customized Embodied EF'!G:G,\"error\",0)),_xlfn.XLOOKUP($I74,'Customized Embodied EF'!$B:$B,'Customized Embodied EF'!$D:$D,\"error\",0)),\"Factor error\"),\"Factor error\")","v":0},{"$f":"IFERROR(IF(OR($I74='Customized Embodied EF'!$B:$B),SUMIFS(P:P,$I:$I,$I74,$C:$C,\"G4.\")*IF($F74=\"Customized\",(_xlfn.XLOOKUP($I74,'Customized Embodied EF'!$B:$B,'Customized Embodied EF'!H:H,\"error\",0)),_xlfn.XLOOKUP($I74,'Customized Embodied EF'!$B:$B,'Customized Embodied EF'!$D:$D,\"error\",0)),\"Factor error\"),\"Factor error\")","v":0},{"$f":"IFERROR(IF(OR($I74='Customized Embodied EF'!$B:$B),SUMIFS(Q:Q,$I:$I,$I74,$C:$C,\"G4.\")*IF($F74=\"Customized\",(_xlfn.XLOOKUP($I74,'Customized Embodied EF'!$B:$B,'Customized Embodied EF'!I:I,\"error\",0)),_xlfn.XLOOKUP($I74,'Customized Embodied EF'!$B:$B,'Customized Embodied EF'!$D:$D,\"error\",0)),\"Factor error\"),\"Factor error\")","v":0},{"$f":"IFERROR(IF(OR($I74='Customized Embodied EF'!$B:$B),SUMIFS(R:R,$I:$I,$I74,$C:$C,\"G4.\")*IF($F74=\"Customized\",(_xlfn.XLOOKUP($I74,'Customized Embodied EF'!$B:$B,'Customized Embodied EF'!J:J,\"error\",0)),_xlfn.XLOOKUP($I74,'Customized Embodied EF'!$B:$B,'Customized Embodied EF'!$D:$D,\"error\",0)),\"Factor error\"),\"Factor error\")","v":0}]
[null,null,null,{"$f":"D74","v":"A1.1.2"},".2",null,null,{"$f":"H50","v":"Energy commodity :"},null,"[t CO2e/reporting period]",{"$f":"SUM(M75:R75)","v":0},null,{"$f":"IFERROR(IF(OR($I75='Customized Embodied EF'!$B:$B),SUMIFS(M:M,$I:$I,$I75,$C:$C,\"G4.\")*IF($F75=\"Customized\",(_xlfn.XLOOKUP($I75,'Customized Embodied EF'!$B:$B,'Customized Embodied EF'!E:E,\"error\",0)),_xlfn.XLOOKUP($I75,'Customized Embodied EF'!$B:$B,'Customized Embodied EF'!$D:$D,\"error\",0)),\"Factor error\"),\"Factor error\")","v":0},{"$f":"IFERROR(IF(OR($I75='Customized Embodied EF'!$B:$B),SUMIFS(N:N,$I:$I,$I75,$C:$C,\"G4.\")*IF($F75=\"Customized\",(_xlfn.XLOOKUP($I75,'Customized Embodied EF'!$B:$B,'Customized Embodied EF'!F:F,\"error\",0)),_xlfn.XLOOKUP($I75,'Customized Embodied EF'!$B:$B,'Customized Embodied EF'!$D:$D,\"error\",0)),\"Factor error\"),\"Factor error\")","v":0},{"$f":"IFERROR(IF(OR($I75='Customized Embodied EF'!$B:$B),SUMIFS(O:O,$I:$I,$I75,$C:$C,\"G4.\")*IF($F75=\"Customized\",(_xlfn.XLOOKUP($I75,'Customized Embodied EF'!$B:$B,'Customized Embodied EF'!G:G,\"error\",0)),_xlfn.XLOOKUP($I75,'Customized Embodied EF'!$B:$B,'Customized Embodied EF'!$D:$D,\"error\",0)),\"Factor error\"),\"Factor error\")","v":0},{"$f":"IFERROR(IF(OR($I75='Customized Embodied EF'!$B:$B),SUMIFS(P:P,$I:$I,$I75,$C:$C,\"G4.\")*IF($F75=\"Customized\",(_xlfn.XLOOKUP($I75,'Customized Embodied EF'!$B:$B,'Customized Embodied EF'!H:H,\"error\",0)),_xlfn.XLOOKUP($I75,'Customized Embodied EF'!$B:$B,'Customized Embodied EF'!$D:$D,\"error\",0)),\"Factor error\"),\"Factor error\")","v":0},{"$f":"IFERROR(IF(OR($I75='Customized Embodied EF'!$B:$B),SUMIFS(Q:Q,$I:$I,$I75,$C:$C,\"G4.\")*IF($F75=\"Customized\",(_xlfn.XLOOKUP($I75,'Customized Embodied EF'!$B:$B,'Customized Embodied EF'!I:I,\"error\",0)),_xlfn.XLOOKUP($I75,'Customized Embodied EF'!$B:$B,'Customized Embodied EF'!$D:$D,\"error\",0)),\"Factor error\"),\"Factor error\")","v":0},{"$f":"IFERROR(IF(OR($I75='Customized Embodied EF'!$B:$B),SUMIFS(R:R,$I:$I,$I75,$C:$C,\"G4.\")*IF($F75=\"Customized\",(_xlfn.XLOOKUP($I75,'Customized Embodied EF'!$B:$B,'Customized Embodied EF'!J:J,\"error\",0)),_xlfn.XLOOKUP($I75,'Customized Embodied EF'!$B:$B,'Customized Embodied EF'!$D:$D,\"error\",0)),\"Factor error\"),\"Factor error\")","v":0}]
[null,null,null,{"$f":"D75","v":"A1.1.2"},".3",null,null,{"$f":"H75","v":"Energy commodity :"},null,"[t CO2e/reporting period]",0,null,{"$f":"IFERROR(IF(OR($I76='Customized Embodied EF'!$B:$B),SUMIFS(M:M,$I:$I,$I76,$C:$C,\"G4.\")*IF($F76=\"Customized\",(_xlfn.XLOOKUP($I76,'Customized Embodied EF'!$B:$B,'Customized Embodied EF'!E:E,\"error\",0)),_xlfn.XLOOKUP($I76,'Customized Embodied EF'!$B:$B,'Customized Embodied EF'!$D:$D,\"error\",0)),\"Factor error\"),\"Factor error\")","v":0},{"$f":"IFERROR(IF(OR($I76='Customized Embodied EF'!$B:$B),SUMIFS(N:N,$I:$I,$I76,$C:$C,\"G4.\")*IF($F76=\"Customized\",(_xlfn.XLOOKUP($I76,'Customized Embodied EF'!$B:$B,'Customized Embodied EF'!F:F,\"error\",0)),_xlfn.XLOOKUP($I76,'Customized Embodied EF'!$B:$B,'Customized Embodied EF'!$D:$D,\"error\",0)),\"Factor error\"),\"Factor error\")","v":0},{"$f":"IFERROR(IF(OR($I76='Customized Embodied EF'!$B:$B),SUMIFS(O:O,$I:$I,$I76,$C:$C,\"G4.\")*IF($F76=\"Customized\",(_xlfn.XLOOKUP($I76,'Customized Embodied EF'!$B:$B,'Customized Embodied EF'!G:G,\"error\",0)),_xlfn.XLOOKUP($I76,'Customized Embodied EF'!$B:$B,'Customized Embodied EF'!$D:$D,\"error\",0)),\"Factor error\"),\"Factor error\")","v":0},{"$f":"IFERROR(IF(OR($I76='Customized Embodied EF'!$B:$B),SUMIFS(P:P,$I:$I,$I76,$C:$C,\"G4.\")*IF($F76=\"Customized\",(_xlfn.XLOOKUP($I76,'Customized Embodied EF'!$B:$B,'Customized Embodied EF'!H:H,\"error\",0)),_xlfn.XLOOKUP($I76,'Customized Embodied EF'!$B:$B,'Customized Embodied EF'!$D:$D,\"error\",0)),\"Factor error\"),\"Factor error\")","v":0},{"$f":"IFERROR(IF(OR($I76='Customized Embodied EF'!$B:$B),SUMIFS(Q:Q,$I:$I,$I76,$C:$C,\"G4.\")*IF($F76=\"Customized\",(_xlfn.XLOOKUP($I76,'Customized Embodied EF'!$B:$B,'Customized Embodied EF'!I:I,\"error\",0)),_xlfn.XLOOKUP($I76,'Customized Embodied EF'!$B:$B,'Customized Embodied EF'!$D:$D,\"error\",0)),\"Factor error\"),\"Factor error\")","v":0},{"$f":"IFERROR(IF(OR($I76='Customized Embodied EF'!$B:$B),SUMIFS(R:R,$I:$I,$I76,$C:$C,\"G4.\")*IF($F76=\"Customized\",(_xlfn.XLOOKUP($I76,'Customized Embodied EF'!$B:$B,'Customized Embodied EF'!J:J,\"error\",0)),_xlfn.XLOOKUP($I76,'Customized Embodied EF'!$B:$B,'Customized Embodied EF'!$D:$D,\"error\",0)),\"Factor error\"),\"Factor error\")","v":0}]
[null,null,null,{"$f":"D76","v":"A1.1.2"},".4",null,null,{"$f":"H76","v":"Energy commodity :"},null,"[t CO2e/reporting period]",0,null,{"$f":"IFERROR(IF(OR($I77='Customized Embodied EF'!$B:$B),SUMIFS(M:M,$I:$I,$I77,$C:$C,\"G4.\")*IF($F77=\"Customized\",(_xlfn.XLOOKUP($I77,'Customized Embodied EF'!$B:$B,'Customized Embodied EF'!E:E,\"error\",0)),_xlfn.XLOOKUP($I77,'Customized Embodied EF'!$B:$B,'Customized Embodied EF'!$D:$D,\"error\",0)),\"Factor error\"),\"Factor error\")","v":0},{"$f":"IFERROR(IF(OR($I77='Customized Embodied EF'!$B:$B),SUMIFS(N:N,$I:$I,$I77,$C:$C,\"G4.\")*IF($F77=\"Customized\",(_xlfn.XLOOKUP($I77,'Customized Embodied EF'!$B:$B,'Customized Embodied EF'!F:F,\"error\",0)),_xlfn.XLOOKUP($I77,'Customized Embodied EF'!$B:$B,'Customized Embodied EF'!$D:$D,\"error\",0)),\"Factor error\"),\"Factor error\")","v":0},{"$f":"IFERROR(IF(OR($I77='Customized Embodied EF'!$B:$B),SUMIFS(O:O,$I:$I,$I77,$C:$C,\"G4.\")*IF($F77=\"Customized\",(_xlfn.XLOOKUP($I77,'Customized Embodied EF'!$B:$B,'Customized Embodied EF'!G:G,\"error\",0)),_xlfn.XLOOKUP($I77,'Customized Embodied EF'!$B:$B,'Customized Embodied EF'!$D:$D,\"error\",0)),\"Factor error\"),\"Factor error\")","v":0},{"$f":"IFERROR(IF(OR($I77='Customized Embodied EF'!$B:$B),SUMIFS(P:P,$I:$I,$I77,$C:$C,\"G4.\")*IF($F77=\"Customized\",(_xlfn.XLOOKUP($I77,'Customized Embodied EF'!$B:$B,'Customized Embodied EF'!H:H,\"error\",0)),_xlfn.XLOOKUP($I77,'Customized Embodied EF'!$B:$B,'Customized Embodied EF'!$D:$D,\"error\",0)),\"Factor error\"),\"Factor error\")","v":0},{"$f":"IFERROR(IF(OR($I77='Customized Embodied EF'!$B:$B),SUMIFS(Q:Q,$I:$I,$I77,$C:$C,\"G4.\")*IF($F77=\"Customized\",(_xlfn.XLOOKUP($I77,'Customized Embodied EF'!$B:$B,'Customized Embodied EF'!I:I,\"error\",0)),_xlfn.XLOOKUP($I77,'Customized Embodied EF'!$B:$B,'Customized Embodied EF'!$D:$D,\"error\",0)),\"Factor error\"),\"Factor error\")","v":0},{"$f":"IFERROR(IF(OR($I77='Customized Embodied EF'!$B:$B),SUMIFS(R:R,$I:$I,$I77,$C:$C,\"G4.\")*IF($F77=\"Customized\",(_xlfn.XLOOKUP($I77,'Customized Embodied EF'!$B:$B,'Customized Embodied EF'!J:J,\"error\",0)),_xlfn.XLOOKUP($I77,'Customized Embodied EF'!$B:$B,'Customized Embodied EF'!$D:$D,\"error\",0)),\"Factor error\"),\"Factor error\")","v":0}]
[null,null,null,"A1.1.2",".5",null,null,"Energy commodity :",null,"[t CO2e/reporting period]",{"$f":"SUM(M78:R78)","v":0},null,{"$f":"IFERROR(IF(OR($I78='Customized Embodied EF'!$B:$B),SUMIFS(M:M,$I:$I,$I78,$C:$C,\"G4.\")*IF($F78=\"Customized\",(_xlfn.XLOOKUP($I78,'Customized Embodied EF'!$B:$B,'Customized Embodied EF'!E:E,\"error\",0)),_xlfn.XLOOKUP($I78,'Customized Embodied EF'!$B:$B,'Customized Embodied EF'!$D:$D,\"error\",0)),\"Factor error\"),\"Factor error\")","v":0},{"$f":"IFERROR(IF(OR($I78='Customized Embodied EF'!$B:$B),SUMIFS(N:N,$I:$I,$I78,$C:$C,\"G4.\")*IF($F78=\"Customized\",(_xlfn.XLOOKUP($I78,'Customized Embodied EF'!$B:$B,'Customized Embodied EF'!F:F,\"error\",0)),_xlfn.XLOOKUP($I78,'Customized Embodied EF'!$B:$B,'Customized Embodied EF'!$D:$D,\"error\",0)),\"Factor error\"),\"Factor error\")","v":0},{"$f":"IFERROR(IF(OR($I78='Customized Embodied EF'!$B:$B),SUMIFS(O:O,$I:$I,$I78,$C:$C,\"G4.\")*IF($F78=\"Customized\",(_xlfn.XLOOKUP($I78,'Customized Embodied EF'!$B:$B,'Customized Embodied EF'!G:G,\"error\",0)),_xlfn.XLOOKUP($I78,'Customized Embodied EF'!$B:$B,'Customized Embodied EF'!$D:$D,\"error\",0)),\"Factor error\"),\"Factor error\")","v":0},{"$f":"IFERROR(IF(OR($I78='Customized Embodied EF'!$B:$B),SUMIFS(P:P,$I:$I,$I78,$C:$C,\"G4.\")*IF($F78=\"Customized\",(_xlfn.XLOOKUP($I78,'Customized Embodied EF'!$B:$B,'Customized Embodied EF'!H:H,\"error\",0)),_xlfn.XLOOKUP($I78,'Customized Embodied EF'!$B:$B,'Customized Embodied EF'!$D:$D,\"error\",0)),\"Factor error\"),\"Factor error\")","v":0},{"$f":"IFERROR(IF(OR($I78='Customized Embodied EF'!$B:$B),SUMIFS(Q:Q,$I:$I,$I78,$C:$C,\"G4.\")*IF($F78=\"Customized\",(_xlfn.XLOOKUP($I78,'Customized Embodied EF'!$B:$B,'Customized Embodied EF'!I:I,\"error\",0)),_xlfn.XLOOKUP($I78,'Customized Embodied EF'!$B:$B,'Customized Embodied EF'!$D:$D,\"error\",0)),\"Factor error\"),\"Factor error\")","v":0},{"$f":"IFERROR(IF(OR($I78='Customized Embodied EF'!$B:$B),SUMIFS(R:R,$I:$I,$I78,$C:$C,\"G4.\")*IF($F78=\"Customized\",(_xlfn.XLOOKUP($I78,'Customized Embodied EF'!$B:$B,'Customized Embodied EF'!J:J,\"error\",0)),_xlfn.XLOOKUP($I78,'Customized Embodied EF'!$B:$B,'Customized Embodied EF'!$D:$D,\"error\",0)),\"Factor error\"),\"Factor error\")","v":0}]
[null,null,null,{"$f":"D78","v":"A1.1.2"},".6",null,null,{"$f":"H50","v":"Energy commodity :"},null,"[t CO2e/reporting period]",{"$f":"SUM(M79:R79)","v":0},null,{"$f":"IFERROR(IF(OR($I79='Customized Embodied EF'!$B:$B),SUMIFS(M:M,$I:$I,$I79,$C:$C,\"G4.\")*IF($F79=\"Customized\",(_xlfn.XLOOKUP($I79,'Customized Embodied EF'!$B:$B,'Customized Embodied EF'!E:E,\"error\",0)),_xlfn.XLOOKUP($I79,'Customized Embodied EF'!$B:$B,'Customized Embodied EF'!$D:$D,\"error\",0)),\"Factor error\"),\"Factor error\")","v":0},{"$f":"IFERROR(IF(OR($I79='Customized Embodied EF'!$B:$B),SUMIFS(N:N,$I:$I,$I79,$C:$C,\"G4.\")*IF($F79=\"Customized\",(_xlfn.XLOOKUP($I79,'Customized Embodied EF'!$B:$B,'Customized Embodied EF'!F:F,\"error\",0)),_xlfn.XLOOKUP($I79,'Customized Embodied EF'!$B:$B,'Customized Embodied EF'!$D:$D,\"error\",0)),\"Factor error\"),\"Factor error\")","v":0},{"$f":"IFERROR(IF(OR($I79='Customized Embodied EF'!$B:$B),SUMIFS(O:O,$I:$I,$I79,$C:$C,\"G4.\")*IF($F79=\"Customized\",(_xlfn.XLOOKUP($I79,'Customized Embodied EF'!$B:$B,'Customized Embodied EF'!G:G,\"error\",0)),_xlfn.XLOOKUP($I79,'Customized Embodied EF'!$B:$B,'Customized Embodied EF'!$D:$D,\"error\",0)),\"Factor error\"),\"Factor error\")","v":0},{"$f":"IFERROR(IF(OR($I79='Customized Embodied EF'!$B:$B),SUMIFS(P:P,$I:$I,$I79,$C:$C,\"G4.\")*IF($F79=\"Customized\",(_xlfn.XLOOKUP($I79,'Customized Embodied EF'!$B:$B,'Customized Embodied EF'!H:H,\"error\",0)),_xlfn.XLOOKUP($I79,'Customized Embodied EF'!$B:$B,'Customized Embodied EF'!$D:$D,\"error\",0)),\"Factor error\"),\"Factor error\")","v":0},{"$f":"IFERROR(IF(OR($I79='Customized Embodied EF'!$B:$B),SUMIFS(Q:Q,$I:$I,$I79,$C:$C,\"G4.\")*IF($F79=\"Customized\",(_xlfn.XLOOKUP($I79,'Customized Embodied EF'!$B:$B,'Customized Embodied EF'!I:I,\"error\",0)),_xlfn.XLOOKUP($I79,'Customized Embodied EF'!$B:$B,'Customized Embodied EF'!$D:$D,\"error\",0)),\"Factor error\"),\"Factor error\")","v":0},{"$f":"IFERROR(IF(OR($I79='Customized Embodied EF'!$B:$B),SUMIFS(R:R,$I:$I,$I79,$C:$C,\"G4.\")*IF($F79=\"Customized\",(_xlfn.XLOOKUP($I79,'Customized Embodied EF'!$B:$B,'Customized Embodied EF'!J:J,\"error\",0)),_xlfn.XLOOKUP($I79,'Customized Embodied EF'!$B:$B,'Customized Embodied EF'!$D:$D,\"error\",0)),\"Factor error\"),\"Factor error\")","v":0}]
[null,null,"A1.2.5",null,null,null,null,null,"Total CO2e in Stage A1","[t CO2e/reporting period]",{"$f":"SUM(M80:R80)","v":0},null,{"$f":"IF(AND(M58=\"\",M72=\"\"),\"\",(M58+M72))","v":0},0,0,0,0,0]
[null,"A2","PROJECT LIFE CYCLE STAGE: A2 OFF-SITE TRANSPORTATION OF RAW MATERIALS TO MANUFACTURING PLANT"]
[null,null,"A2.1 CO2e EMISSIONS ",null,null,null,null,null,null,"unit","Total",null,"Product 1","Product 2","Product 3","Product 4","Product 5","Product 6"]
[null,null,"A2.1.1",null,null,"CO2e from off-site transportation of raw material to manufacturing plant"]
[null,null,null,{"$f":"C83","v":"A2.1.1"},".1","CO2e calculated using either 1) WRI & WBCSD's protocol OR 2) EPD & EMSD's carbon audit tool)",null,null,null,"[t CO2e/reporting period]",{"$f":"SUM(M84:R84)","v":0}]
[null,null,"A2.1.2",null,null,null,null,null,"Total CO2e in Stage A2","[t CO2e/reporting period]",{"$f":"IF(AND(K84=\"\"),\"\",(K84))","v":0},null,{"$f":"IF(AND(M84=\"\"),\"\",(M84))","v":""},{"$f":"IF(AND(N84=\"\"),\"\",(N84))","v":""},{"$f":"IF(AND(O84=\"\"),\"\",(O84))","v":""},"","",""]
[null,"A3","PROJECT LIFE CYCLE STAGE: A3 PRODUCT MANUFACTURING AND FABRICATION (WITHOUT WASTAGE)"]
[null,null,"A3.1 CO2e EMISSIONS ",null,null,null,null,null,null,"unit","Total",null,"Product 1","Product 2","Product 3","Product 4","Product 5","Product 6"]
[null,null,"A3.1.1",null,null,"CO2e from industrial processes ",null,null,null,null,{"$f":"SUM(M88:R88)","v":0},null,{"$f":"SUMIF($D:$D,$C88,M:M)","v":0},0,0,0,0,0]
[null,null,null,{"$f":"C88","v":"A3.1.1"},".1","CO2e from carbonate decomposition",null,null,null,null,{"$f":"SUM(M89:R89)","v":0},null,{"$f":"SUMIF($D:$D,$D90,M:M)","v":0},0,0,0,0,0]
[null,null,null,{"$f":"D89&E89","v":"A3.1.1.1"},".1","Adopting Dolomite,CaMg(CO₃)₂ as raw materials",null,null,"Adopting CO2e Factors"]
[null,null,null,{"$f":"D90","v":"A3.1.1.1"},".2",null,null,null,null,"[t CO2e/reporting period]",{"$f":"SUM(M91:R91)","v":0},null,{"$f":"IF($F91=\"N\",\"N/A\",IF(OR($F91=\"\",$I91=\"\"),0,IF(OR(\"Dolomite, CaMg(CO₃)₂\"='Customized Process Factors'!$B:$B),(SUMIFS(M:M,$C:$C,\"G4.\",$F:$F,\"Dolomite, CaMg(CO₃)₂\"))*IF($I91=\"Customized\",_xlfn.XLOOKUP(\"Dolomite, CaMg(CO₃)₂\",'Customized Process Factors'!$B:$B,'Customized Process Factors'!G:G,\"No CO2e EF\",0),_xlfn.XLOOKUP(\"Dolomite, CaMg(CO₃)₂\",'Customized Process Factors'!$B:$B,'Customized Process Factors'!$E:$E,\"No CO2e EF\",0)),\"Factor error\")))","v":0},{"$f":"IF($F91=\"N\",\"N/A\",IF(OR($F91=\"\",$I91=\"\"),0,IF(OR(\"Dolomite, CaMg(CO₃)₂\"='Customized Process Factors'!$B:$B),(SUMIFS(N:N,$C:$C,\"G4.\",$F:$F,\"Dolomite, CaMg(CO₃)₂\"))*IF($I91=\"Customized\",_xlfn.XLOOKUP(\"Dolomite, CaMg(CO₃)₂\",'Customized Process Factors'!$B:$B,'Customized Process Factors'!H:H,\"No CO2e EF\",0),_xlfn.XLOOKUP(\"Dolomite, CaMg(CO₃)₂\",'Customized Process Factors'!$B:$B,'Customized Process Factors'!$E:$E,\"No CO2e EF\",0)),\"Factor error\")))","v":0},{"$f":"IF($F91=\"N\",\"N/A\",IF(OR($F91=\"\",$I91=\"\"),0,IF(OR(\"Dolomite, CaMg(CO₃)₂\"='Customized Process Factors'!$B:$B),(SUMIFS(O:O,$C:$C,\"G4.\",$F:$F,\"Dolomite, CaMg(CO₃)₂\"))*IF($I91=\"Customized\",_xlfn.XLOOKUP(\"Dolomite, CaMg(CO₃)₂\",'Customized Process Factors'!$B:$B,'Customized Process Factors'!I:I,\"No CO2e EF\",0),_xlfn.XLOOKUP(\"Dolomite, CaMg(CO₃)₂\",'Customized Process Factors'!$B:$B,'Customized Process Factors'!$E:$E,\"No CO2e EF\",0)),\"Factor error\")))","v":0},{"$f":"IF($F91=\"N\",\"N/A\",IF(OR($F91=\"\",$I91=\"\"),0,IF(OR(\"Dolomite, CaMg(CO₃)₂\"='Customized Process Factors'!$B:$B),(SUMIFS(P:P,$C:$C,\"G4.\",$F:$F,\"Dolomite, CaMg(CO₃)₂\"))*IF($I91=\"Customized\",_xlfn.XLOOKUP(\"Dolomite, CaMg(CO₃)₂\",'Customized Process Factors'!$B:$B,'Customized Process Factors'!J:J,\"No CO2e EF\",0),_xlfn.XLOOKUP(\"Dolomite, CaMg(CO₃)₂\",'Customized Process Factors'!$B:$B,'Customized Process Factors'!$E:$E,\"No CO2e EF\",0)),\"Factor error\")))","v":0},{"$f":"IF($F91=\"N\",\"N/A\",IF(OR($F91=\"\",$I91=\"\"),0,IF(OR(\"Dolomite, CaMg(CO₃)₂\"='Customized Process Factors'!$B:$B),(SUMIFS(Q:Q,$C:$C,\"G4.\",$F:$F,\"Dolomite, CaMg(CO₃)₂\"))*IF($I91=\"Customized\",_xlfn.XLOOKUP(\"Dolomite, CaMg(CO₃)₂\",'Customized Process Factors'!$B:$B,'Customized Process Factors'!K:K,\"No CO2e EF\",0),_xlfn.XLOOKUP(\"Dolomite, CaMg(CO₃)₂\",'Customized Process Factors'!$B:$B,'Customized Process Factors'!$E:$E,\"No CO2e EF\",0)),\"Factor error\")))","v":0},{"$f":"IF($F91=\"N\",\"N/A\",IF(OR($F91=\"\",$I91=\"\"),0,IF(OR(\"Dolomite, CaMg(CO₃)₂\"='Customized Process Factors'!$B:$B),(SUMIFS(R:R,$C:$C,\"G4.\",$F:$F,\"Dolomite, CaMg(CO₃)₂\"))*IF($I91=\"Customized\",_xlfn.XLOOKUP(\"Dolomite, CaMg(CO₃)₂\",'Customized Process Factors'!$B:$B,'Customized Process Factors'!L:L,\"No CO2e EF\",0),_xlfn.XLOOKUP(\"Dolomite, CaMg(CO₃)₂\",'Customized Process Factors'!$B:$B,'Customized Process Factors'!$E:$E,\"No CO2e EF\",0)),\"Factor error\")))","v":0}]
[null,null,null,{"$f":"D89","v":"A3.1.1"},".2","CO2e from carbonate decomposition",null,null,null,null,{"$f":"SUM(M92:R92)","v":0},null,{"$f":"SUMIF($D:$D,$D93,M:M)","v":0},0,0,0,0,0]
[null,null,null,{"$f":"D92&E92","v":"A3.1.1.2"},".1","Adopting Soda Ash as raw materials",null,null,"Adopting CO2e Factors"]
[null,null,null,{"$f":"D93","v":"A3.1.1.2"},".2",null,null,null,null,"[t CO2e/reporting period]",0,null,{"$f":"IF($F94=\"N\",\"N/A\",IF(OR($F94=\"\",$I94=\"\"),0,IF(OR(\"Soda Ash (Sodium Carbonate, Na₂CO₃)\"='Customized Process Factors'!$B:$B),(SUMIFS(M:M,$C:$C,\"G4.\",$F:$F,\"Soda Ash (Sodium Carbonate, Na₂CO₃)\"))*IF($I94=\"Customized\",_xlfn.XLOOKUP(\"Soda Ash (Sodium Carbonate, Na₂CO₃)\",'Customized Process Factors'!$B:$B,'Customized Process Factors'!G:G,\"No CO2e EF\",0),_xlfn.XLOOKUP(\"Soda Ash (Sodium Carbonate, Na₂CO₃)\",'Customized Process Factors'!$B:$B,'Customized Process Factors'!$E:$E,\"No CO2e EF\",0)),\"Factor error\")))","v":0},{"$f":"IF($F94=\"N\",\"N/A\",IF(OR($F94=\"\",$I94=\"\"),0,IF(OR(\"Soda Ash (Sodium Carbonate, Na₂CO₃)\"='Customized Process Factors'!$B:$B),(SUMIFS(N:N,$C:$C,\"G4.\",$F:$F,\"Soda Ash (Sodium Carbonate, Na₂CO₃)\"))*IF($I94=\"Customized\",_xlfn.XLOOKUP(\"Soda Ash (Sodium Carbonate, Na₂CO₃)\",'Customized Process Factors'!$B:$B,'Customized Process Factors'!H:H,\"No CO2e EF\",0),_xlfn.XLOOKUP(\"Soda Ash (Sodium Carbonate, Na₂CO₃)\",'Customized Process Factors'!$B:$B,'Customized Process Factors'!$E:$E,\"No CO2e EF\",0)),\"Factor error\")))","v":0},{"$f":"IF($F94=\"N\",\"N/A\",IF(OR($F94=\"\",$I94=\"\"),0,IF(OR(\"Soda Ash (Sodium Carbonate, Na₂CO₃)\"='Customized Process Factors'!$B:$B),(SUMIFS(O:O,$C:$C,\"G4.\",$F:$F,\"Soda Ash (Sodium Carbonate, Na₂CO₃)\"))*IF($I94=\"Customized\",_xlfn.XLOOKUP(\"Soda Ash (Sodium Carbonate, Na₂CO₃)\",'Customized Process Factors'!$B:$B,'Customized Process Factors'!I:I,\"No CO2e EF\",0),_xlfn.XLOOKUP(\"Soda Ash (Sodium Carbonate, Na₂CO₃)\",'Customized Process Factors'!$B:$B,'Customized Process Factors'!$E:$E,\"No CO2e EF\",0)),\"Factor error\")))","v":0},{"$f":"IF($F94=\"N\",\"N/A\",IF(OR($F94=\"\",$I94=\"\"),0,IF(OR(\"Soda Ash (Sodium Carbonate, Na₂CO₃)\"='Customized Process Factors'!$B:$B),(SUMIFS(P:P,$C:$C,\"G4.\",$F:$F,\"Soda Ash (Sodium Carbonate, Na₂CO₃)\"))*IF($I94=\"Customized\",_xlfn.XLOOKUP(\"Soda Ash (Sodium Carbonate, Na₂CO₃)\",'Customized Process Factors'!$B:$B,'Customized Process Factors'!J:J,\"No CO2e EF\",0),_xlfn.XLOOKUP(\"Soda Ash (Sodium Carbonate, Na₂CO₃)\",'Customized Process Factors'!$B:$B,'Customized Process Factors'!$E:$E,\"No CO2e EF\",0)),\"Factor error\")))","v":0},{"$f":"IF($F94=\"N\",\"N/A\",IF(OR($F94=\"\",$I94=\"\"),0,IF(OR(\"Soda Ash (Sodium Carbonate, Na₂CO₃)\"='Customized Process Factors'!$B:$B),(SUMIFS(Q:Q,$C:$C,\"G4.\",$F:$F,\"Soda Ash (Sodium Carbonate, Na₂CO₃)\"))*IF($I94=\"Customized\",_xlfn.XLOOKUP(\"Soda Ash (Sodium Carbonate, Na₂CO₃)\",'Customized Process Factors'!$B:$B,'Customized Process Factors'!K:K,\"No CO2e EF\",0),_xlfn.XLOOKUP(\"Soda Ash (Sodium Carbonate, Na₂CO₃)\",'Customized Process Factors'!$B:$B,'Customized Process Factors'!$E:$E,\"No CO2e EF\",0)),\"Factor error\")))","v":0},{"$f":"IF($F94=\"N\",\"N/A\",IF(OR($F94=\"\",$I94=\"\"),0,IF(OR(\"Soda Ash (Sodium Carbonate, Na₂CO₃)\"='Customized Process Factors'!$B:$B),(SUMIFS(R:R,$C:$C,\"G4.\",$F:$F,\"Soda Ash (Sodium Carbonate, Na₂CO₃)\"))*IF($I94=\"Customized\",_xlfn.XLOOKUP(\"Soda Ash (Sodium Carbonate, Na₂CO₃)\",'Customized Process Factors'!$B:$B,'Customized Process Factors'!L:L,\"No CO2e EF\",0),_xlfn.XLOOKUP(\"Soda Ash (Sodium Carbonate, Na₂CO₃)\",'Customized Process Factors'!$B:$B,'Customized Process Factors'!$E:$E,\"No CO2e EF\",0)),\"Factor error\")))","v":0}]
[null,null,null,{"$f":"D92","v":"A3.1.1"},".3","CO2e from Carbon powder oxidation",null,null,null,null,{"$f":"SUM(M95:R95)","v":0},null,{"$f":"SUMIF($D:$D,$D96,M:M)","v":0},0,0,0,0,0]
[null,null,null,{"$f":"D95&E95","v":"A3.1.1.3"},".1","Adopting Carbon powder as raw materials",null,null,"Adopting CO2e Factors"]
[null,null,null,{"$f":"D96","v":"A3.1.1.3"},".2",null,null,null,null,"[t CO2e/reporting period]",{"$f":"SUM(M97:R97)","v":0},null,{"$f":"IF($F97=\"N\",\"N/A\",IF(OR($F97=\"\",$I97=\"\"),0,IF(OR(\"Carbon Powder\"='Customized Process Factors'!$B:$B),(SUMIFS(M:M,$C:$C,\"G4.\",$F:$F,\"Carbon Powder\"))*IF($I97=\"Customized\",_xlfn.XLOOKUP(\"Carbon Powder\",'Customized Process Factors'!$B:$B,'Customized Process Factors'!G:G,\"No CO2e EF\",0),_xlfn.XLOOKUP(\"Carbon Powder\",'Customized Process Factors'!$B:$B,'Customized Process Factors'!$E:$E,\"No CO2e EF\",0)),\"Factor error\")))","v":0},{"$f":"IF($F97=\"N\",\"N/A\",IF(OR($F97=\"\",$I97=\"\"),0,IF(OR(\"Carbon Powder\"='Customized Process Factors'!$B:$B),(SUMIFS(N:N,$C:$C,\"G4.\",$F:$F,\"Carbon Powder\"))*IF($I97=\"Customized\",_xlfn.XLOOKUP(\"Carbon Powder\",'Customized Process Factors'!$B:$B,'Customized Process Factors'!H:H,\"No CO2e EF\",0),_xlfn.XLOOKUP(\"Carbon Powder\",'Customized Process Factors'!$B:$B,'Customized Process Factors'!$E:$E,\"No CO2e EF\",0)),\"Factor error\")))","v":0},{"$f":"IF($F97=\"N\",\"N/A\",IF(OR($F97=\"\",$I97=\"\"),0,IF(OR(\"Carbon Powder\"='Customized Process Factors'!$B:$B),(SUMIFS(O:O,$C:$C,\"G4.\",$F:$F,\"Carbon Powder\"))*IF($I97=\"Customized\",_xlfn.XLOOKUP(\"Carbon Powder\",'Customized Process Factors'!$B:$B,'Customized Process Factors'!I:I,\"No CO2e EF\",0),_xlfn.XLOOKUP(\"Carbon Powder\",'Customized Process Factors'!$B:$B,'Customized Process Factors'!$E:$E,\"No CO2e EF\",0)),\"Factor error\")))","v":0},{"$f":"IF($F97=\"N\",\"N/A\",IF(OR($F97=\"\",$I97=\"\"),0,IF(OR(\"Carbon Powder\"='Customized Process Factors'!$B:$B),(SUMIFS(P:P,$C:$C,\"G4.\",$F:$F,\"Carbon Powder\"))*IF($I97=\"Customized\",_xlfn.XLOOKUP(\"Carbon Powder\",'Customized Process Factors'!$B:$B,'Customized Process Factors'!J:J,\"No CO2e EF\",0),_xlfn.XLOOKUP(\"Carbon Powder\",'Customized Process Factors'!$B:$B,'Customized Process Factors'!$E:$E,\"No CO2e EF\",0)),\"Factor error\")))","v":0},{"$f":"IF($F97=\"N\",\"N/A\",IF(OR($F97=\"\",$I97=\"\"),0,IF(OR(\"Carbon Powder\"='Customized Process Factors'!$B:$B),(SUMIFS(Q:Q,$C:$C,\"G4.\",$F:$F,\"Carbon Powder\"))*IF($I97=\"Customized\",_xlfn.XLOOKUP(\"Carbon Powder\",'Customized Process Factors'!$B:$B,'Customized Process Factors'!K:K,\"No CO2e EF\",0),_xlfn.XLOOKUP(\"Carbon Powder\",'Customized Process Factors'!$B:$B,'Customized Process Factors'!$E:$E,\"No CO2e EF\",0)),\"Factor error\")))","v":0},{"$f":"IF($F97=\"N\",\"N/A\",IF(OR($F97=\"\",$I97=\"\"),0,IF(OR(\"Carbon Powder\"='Customized Process Factors'!$B:$B),(SUMIFS(R:R,$C:$C,\"G4.\",$F:$F,\"Carbon Powder\"))*IF($I97=\"Customized\",_xlfn.XLOOKUP(\"Carbon Powder\",'Customized Process Factors'!$B:$B,'Customized Process Factors'!L:L,\"No CO2e EF\",0),_xlfn.XLOOKUP(\"Carbon Powder\",'Customized Process Factors'!$B:$B,'Customized Process Factors'!$E:$E,\"No CO2e EF\",0)),\"Factor error\")))","v":0}]
[null,null,"A3.1.2",null,null,"CO2e from product manufacturing (stationary combustion sources)",null,null,null,"[t CO2e/reporting period]",0,null,{"$f":"SUMIF($D:$D,$C98,M:M)","v":0},0,0,0,0,0]
[null,null,null,null,null,"Adopting CO2e Factors ","Adopting LHV Factors ","[Please insert additional rows if more energy commodities are included]"]
[null,null,null,{"$f":"C98","v":"A3.1.2"},".1",null,null,null,null,"[t CO2e/reporting period]",{"$f":"SUM(M100:R100)","v":0},null,{"$f":"IF(OR($H100='Customized Fuel EF'!$B:$B),(SUMIFS(M:M,$D:$D,$D44,$I:$I,$H100)*IF($G100=\"Customized\",_xlfn.XLOOKUP($H100,'Customized Fuel LHV'!$B:$B,'Customized Fuel LHV'!E:E,\"No LHV\",0),_xlfn.XLOOKUP($H100,'Customized Fuel LHV'!$B:$B,'Customized Fuel LHV'!$D:$D,\"No LHV\",0)))*IF($F100=\"Customized\",(_xlfn.XLOOKUP($H100,'Customized Fuel EF'!$B:$B,'Customized Fuel EF'!E:E,\"No EF\",0)),_xlfn.XLOOKUP($H100,'Customized Fuel EF'!$B:$B,'Customized Fuel EF'!$D:$D,\"No EF\",0))/1000,\"Factor error\")","v":0},{"$f":"IF(OR($H100='Customized Fuel EF'!$B:$B),(SUMIFS(N:N,$D:$D,$D44,$I:$I,$H100)*IF($G100=\"Customized\",_xlfn.XLOOKUP($H100,'Customized Fuel LHV'!$B:$B,'Customized Fuel LHV'!F:F,\"No LHV\",0),_xlfn.XLOOKUP($H100,'Customized Fuel LHV'!$B:$B,'Customized Fuel LHV'!$D:$D,\"No LHV\",0)))*IF($F100=\"Customized\",(_xlfn.XLOOKUP($H100,'Customized Fuel EF'!$B:$B,'Customized Fuel EF'!F:F,\"No EF\",0)),_xlfn.XLOOKUP($H100,'Customized Fuel EF'!$B:$B,'Customized Fuel EF'!$D:$D,\"No EF\",0))/1000,\"Factor error\")","v":0},{"$f":"IF(OR($H100='Customized Fuel EF'!$B:$B),(SUMIFS(O:O,$D:$D,$D44,$I:$I,$H100)*IF($G100=\"Customized\",_xlfn.XLOOKUP($H100,'Customized Fuel LHV'!$B:$B,'Customized Fuel LHV'!G:G,\"No LHV\",0),_xlfn.XLOOKUP($H100,'Customized Fuel LHV'!$B:$B,'Customized Fuel LHV'!$D:$D,\"No LHV\",0)))*IF($F100=\"Customized\",(_xlfn.XLOOKUP($H100,'Customized Fuel EF'!$B:$B,'Customized Fuel EF'!G:G,\"No EF\",0)),_xlfn.XLOOKUP($H100,'Customized Fuel EF'!$B:$B,'Customized Fuel EF'!$D:$D,\"No EF\",0))/1000,\"Factor error\")","v":0},{"$f":"IF(OR($H100='Customized Fuel EF'!$B:$B),(SUMIFS(P:P,$D:$D,$D44,$I:$I,$H100)*IF($G100=\"Customized\",_xlfn.XLOOKUP($H100,'Customized Fuel LHV'!$B:$B,'Customized Fuel LHV'!H:H,\"No LHV\",0),_xlfn.XLOOKUP($H100,'Customized Fuel LHV'!$B:$B,'Customized Fuel LHV'!$D:$D,\"No LHV\",0)))*IF($F100=\"Customized\",(_xlfn.XLOOKUP($H100,'Customized Fuel EF'!$B:$B,'Customized Fuel EF'!H:H,\"No EF\",0)),_xlfn.XLOOKUP($H100,'Customized Fuel EF'!$B:$B,'Customized Fuel EF'!$D:$D,\"No EF\",0))/1000,\"Factor error\")","v":0},{"$f":"IF(OR($H100='Customized Fuel EF'!$B:$B),(SUMIFS(Q:Q,$D:$D,$D44,$I:$I,$H100)*IF($G100=\"Customized\",_xlfn.XLOOKUP($H100,'Customized Fuel LHV'!$B:$B,'Customized Fuel LHV'!I:I,\"No LHV\",0),_xlfn.XLOOKUP($H100,'Customized Fuel LHV'!$B:$B,'Customized Fuel LHV'!$D:$D,\"No LHV\",0)))*IF($F100=\"Customized\",(_xlfn.XLOOKUP($H100,'Customized Fuel EF'!$B:$B,'Customized Fuel EF'!I:I,\"No EF\",0)),_xlfn.XLOOKUP($H100,'Customized Fuel EF'!$B:$B,'Customized Fuel EF'!$D:$D,\"No EF\",0))/1000,\"Factor error\")","v":0},{"$f":"IF(OR($H100='Customized Fuel EF'!$B:$B),(SUMIFS(R:R,$D:$D,$D44,$I:$I,$H100)*IF($G100=\"Customized\",_xlfn.XLOOKUP($H100,'Customized Fuel LHV'!$B:$B,'Customized Fuel LHV'!J:J,\"No LHV\",0),_xlfn.XLOOKUP($H100,'Customized Fuel LHV'!$B:$B,'Customized Fuel LHV'!$D:$D,\"No LHV\",0)))*IF($F100=\"Customized\",(_xlfn.XLOOKUP($H100,'Customized Fuel EF'!$B:$B,'Customized Fuel EF'!J:J,\"No EF\",0)),_xlfn.XLOOKUP($H100,'Customized Fuel EF'!$B:$B,'Customized Fuel EF'!$D:$D,\"No EF\",0))/1000,\"Factor error\")","v":0}]
[null,null,null,{"$f":"D100","v":"A3.1.2"},".2",null,null,null,null,"[t CO2e/reporting period]",{"$f":"SUM(M101:R101)","v":0},null,{"$f":"IF(OR($H101='Customized Fuel EF'!$B:$B),(SUMIFS(M:M,$D:$D,$D45,$I:$I,$H101)*IF($G101=\"Customized\",_xlfn.XLOOKUP($H101,'Customized Fuel LHV'!$B:$B,'Customized Fuel LHV'!E:E,\"No LHV\",0),_xlfn.XLOOKUP($H101,'Customized Fuel LHV'!$B:$B,'Customized Fuel LHV'!$D:$D,\"No LHV\",0)))*IF($F101=\"Customized\",(_xlfn.XLOOKUP($H101,'Customized Fuel EF'!$B:$B,'Customized Fuel EF'!E:E,\"No EF\",0)),_xlfn.XLOOKUP($H101,'Customized Fuel EF'!$B:$B,'Customized Fuel EF'!$D:$D,\"No EF\",0))/1000,\"Factor error\")","v":0},{"$f":"IF(OR($H101='Customized Fuel EF'!$B:$B),(SUMIFS(N:N,$D:$D,$D45,$I:$I,$H101)*IF($G101=\"Customized\",_xlfn.XLOOKUP($H101,'Customized Fuel LHV'!$B:$B,'Customized Fuel LHV'!F:F,\"No LHV\",0),_xlfn.XLOOKUP($H101,'Customized Fuel LHV'!$B:$B,'Customized Fuel LHV'!$D:$D,\"No LHV\",0)))*IF($F101=\"Customized\",(_xlfn.XLOOKUP($H101,'Customized Fuel EF'!$B:$B,'Customized Fuel EF'!F:F,\"No EF\",0)),_xlfn.XLOOKUP($H101,'Customized Fuel EF'!$B:$B,'Customized Fuel EF'!$D:$D,\"No EF\",0))/1000,\"Factor error\")","v":0},{"$f":"IF(OR($H101='Customized Fuel EF'!$B:$B),(SUMIFS(O:O,$D:$D,$D45,$I:$I,$H101)*IF($G101=\"Customized\",_xlfn.XLOOKUP($H101,'Customized Fuel LHV'!$B:$B,'Customized Fuel LHV'!G:G,\"No LHV\",0),_xlfn.XLOOKUP($H101,'Customized Fuel LHV'!$B:$B,'Customized Fuel LHV'!$D:$D,\"No LHV\",0)))*IF($F101=\"Customized\",(_xlfn.XLOOKUP($H101,'Customized Fuel EF'!$B:$B,'Customized Fuel EF'!G:G,\"No EF\",0)),_xlfn.XLOOKUP($H101,'Customized Fuel EF'!$B:$B,'Customized Fuel EF'!$D:$D,\"No EF\",0))/1000,\"Factor error\")","v":0},{"$f":"IF(OR($H101='Customized Fuel EF'!$B:$B),(SUMIFS(P:P,$D:$D,$D45,$I:$I,$H101)*IF($G101=\"Customized\",_xlfn.XLOOKUP($H101,'Customized Fuel LHV'!$B:$B,'Customized Fuel LHV'!H:H,\"No LHV\",0),_xlfn.XLOOKUP($H101,'Customized Fuel LHV'!$B:$B,'Customized Fuel LHV'!$D:$D,\"No LHV\",0)))*IF($F101=\"Customized\",(_xlfn.XLOOKUP($H101,'Customized Fuel EF'!$B:$B,'Customized Fuel EF'!H:H,\"No EF\",0)),_xlfn.XLOOKUP($H101,'Customized Fuel EF'!$B:$B,'Customized Fuel EF'!$D:$D,\"No EF\",0))/1000,\"Factor error\")","v":0},{"$f":"IF(OR($H101='Customized Fuel EF'!$B:$B),(SUMIFS(Q:Q,$D:$D,$D45,$I:$I,$H101)*IF($G101=\"Customized\",_xlfn.XLOOKUP($H101,'Customized Fuel LHV'!$B:$B,'Customized Fuel LHV'!I:I,\"No LHV\",0),_xlfn.XLOOKUP($H101,'Customized Fuel LHV'!$B:$B,'Customized Fuel LHV'!$D:$D,\"No LHV\",0)))*IF($F101=\"Customized\",(_xlfn.XLOOKUP($H101,'Customized Fuel EF'!$B:$B,'Customized Fuel EF'!I:I,\"No EF\",0)),_xlfn.XLOOKUP($H101,'Customized Fuel EF'!$B:$B,'Customized Fuel EF'!$D:$D,\"No EF\",0))/1000,\"Factor error\")","v":0},{"$f":"IF(OR($H101='Customized Fuel EF'!$B:$B),(SUMIFS(R:R,$D:$D,$D45,$I:$I,$H101)*IF($G101=\"Customized\",_xlfn.XLOOKUP($H101,'Customized Fuel LHV'!$B:$B,'Customized Fuel LHV'!J:J,\"No LHV\",0),_xlfn.XLOOKUP($H101,'Customized Fuel LHV'!$B:$B,'Customized Fuel LHV'!$D:$D,\"No LHV\",0)))*IF($F101=\"Customized\",(_xlfn.XLOOKUP($H101,'Customized Fuel EF'!$B:$B,'Customized Fuel EF'!J:J,\"No EF\",0)),_xlfn.XLOOKUP($H101,'Customized Fuel EF'!$B:$B,'Customized Fuel EF'!$D:$D,\"No EF\",0))/1000,\"Factor error\")","v":0}]
[null,null,null,{"$f":"D101","v":"A3.1.2"},".3",null,null,null,null,"[t CO2e/reporting period]",0,null,{"$f":"IF(OR($H102='Customized Fuel EF'!$B:$B),(SUMIFS(M:M,$D:$D,$D46,$I:$I,$H102)*IF($G102=\"Customized\",_xlfn.XLOOKUP($H102,'Customized Fuel LHV'!$B:$B,'Customized Fuel LHV'!E:E,\"No LHV\",0),_xlfn.XLOOKUP($H102,'Customized Fuel LHV'!$B:$B,'Customized Fuel LHV'!$D:$D,\"No LHV\",0)))*IF($F102=\"Customized\",(_xlfn.XLOOKUP($H102,'Customized Fuel EF'!$B:$B,'Customized Fuel EF'!E:E,\"No EF\",0)),_xlfn.XLOOKUP($H102,'Customized Fuel EF'!$B:$B,'Customized Fuel EF'!$D:$D,\"No EF\",0))/1000,\"Factor error\")","v":0},{"$f":"IF(OR($H102='Customized Fuel EF'!$B:$B),(SUMIFS(N:N,$D:$D,$D46,$I:$I,$H102)*IF($G102=\"Customized\",_xlfn.XLOOKUP($H102,'Customized Fuel LHV'!$B:$B,'Customized Fuel LHV'!F:F,\"No LHV\",0),_xlfn.XLOOKUP($H102,'Customized Fuel LHV'!$B:$B,'Customized Fuel LHV'!$D:$D,\"No LHV\",0)))*IF($F102=\"Customized\",(_xlfn.XLOOKUP($H102,'Customized Fuel EF'!$B:$B,'Customized Fuel EF'!F:F,\"No EF\",0)),_xlfn.XLOOKUP($H102,'Customized Fuel EF'!$B:$B,'Customized Fuel EF'!$D:$D,\"No EF\",0))/1000,\"Factor error\")","v":0},{"$f":"IF(OR($H102='Customized Fuel EF'!$B:$B),(SUMIFS(O:O,$D:$D,$D46,$I:$I,$H102)*IF($G102=\"Customized\",_xlfn.XLOOKUP($H102,'Customized Fuel LHV'!$B:$B,'Customized Fuel LHV'!G:G,\"No LHV\",0),_xlfn.XLOOKUP($H102,'Customized Fuel LHV'!$B:$B,'Customized Fuel LHV'!$D:$D,\"No LHV\",0)))*IF($F102=\"Customized\",(_xlfn.XLOOKUP($H102,'Customized Fuel EF'!$B:$B,'Customized Fuel EF'!G:G,\"No EF\",0)),_xlfn.XLOOKUP($H102,'Customized Fuel EF'!$B:$B,'Customized Fuel EF'!$D:$D,\"No EF\",0))/1000,\"Factor error\")","v":0},{"$f":"IF(OR($H102='Customized Fuel EF'!$B:$B),(SUMIFS(P:P,$D:$D,$D46,$I:$I,$H102)*IF($G102=\"Customized\",_xlfn.XLOOKUP($H102,'Customized Fuel LHV'!$B:$B,'Customized Fuel LHV'!H:H,\"No LHV\",0),_xlfn.XLOOKUP($H102,'Customized Fuel LHV'!$B:$B,'Customized Fuel LHV'!$D:$D,\"No LHV\",0)))*IF($F102=\"Customized\",(_xlfn.XLOOKUP($H102,'Customized Fuel EF'!$B:$B,'Customized Fuel EF'!H:H,\"No EF\",0)),_xlfn.XLOOKUP($H102,'Customized Fuel EF'!$B:$B,'Customized Fuel EF'!$D:$D,\"No EF\",0))/1000,\"Factor error\")","v":0},{"$f":"IF(OR($H102='Customized Fuel EF'!$B:$B),(SUMIFS(Q:Q,$D:$D,$D46,$I:$I,$H102)*IF($G102=\"Customized\",_xlfn.XLOOKUP($H102,'Customized Fuel LHV'!$B:$B,'Customized Fuel LHV'!I:I,\"No LHV\",0),_xlfn.XLOOKUP($H102,'Customized Fuel LHV'!$B:$B,'Customized Fuel LHV'!$D:$D,\"No LHV\",0)))*IF($F102=\"Customized\",(_xlfn.XLOOKUP($H102,'Customized Fuel EF'!$B:$B,'Customized Fuel EF'!I:I,\"No EF\",0)),_xlfn.XLOOKUP($H102,'Customized Fuel EF'!$B:$B,'Customized Fuel EF'!$D:$D,\"No EF\",0))/1000,\"Factor error\")","v":0},{"$f":"IF(OR($H102='Customized Fuel EF'!$B:$B),(SUMIFS(R:R,$D:$D,$D46,$I:$I,$H102)*IF($G102=\"Customized\",_xlfn.XLOOKUP($H102,'Customized Fuel LHV'!$B:$B,'Customized Fuel LHV'!J:J,\"No LHV\",0),_xlfn.XLOOKUP($H102,'Customized Fuel LHV'!$B:$B,'Customized Fuel LHV'!$D:$D,\"No LHV\",0)))*IF($F102=\"Customized\",(_xlfn.XLOOKUP($H102,'Customized Fuel EF'!$B:$B,'Customized Fuel EF'!J:J,\"No EF\",0)),_xlfn.XLOOKUP($H102,'Customized Fuel EF'!$B:$B,'Customized Fuel EF'!$D:$D,\"No EF\",0))/1000,\"Factor error\")","v":0}]
[null,null,null,{"$f":"C98","v":"A3.1.2"},".4",null,null,null,null,"[t CO2e/reporting period]",{"$f":"SUM(M103:R103)","v":0},null,{"$f":"IF(OR($H103='Customized Fuel EF'!$B:$B),(SUMIFS(M:M,$D:$D,$D47,$I:$I,$H103)*IF($G103=\"Customized\",_xlfn.XLOOKUP($H103,'Customized Fuel LHV'!$B:$B,'Customized Fuel LHV'!E:E,\"No LHV\",0),_xlfn.XLOOKUP($H103,'Customized Fuel LHV'!$B:$B,'Customized Fuel LHV'!$D:$D,\"No LHV\",0)))*IF($F103=\"Customized\",(_xlfn.XLOOKUP($H103,'Customized Fuel EF'!$B:$B,'Customized Fuel EF'!E:E,\"No EF\",0)),_xlfn.XLOOKUP($H103,'Customized Fuel EF'!$B:$B,'Customized Fuel EF'!$D:$D,\"No EF\",0))/1000,\"Factor error\")","v":0},{"$f":"IF(OR($H103='Customized Fuel EF'!$B:$B),(SUMIFS(N:N,$D:$D,$D47,$I:$I,$H103)*IF($G103=\"Customized\",_xlfn.XLOOKUP($H103,'Customized Fuel LHV'!$B:$B,'Customized Fuel LHV'!F:F,\"No LHV\",0),_xlfn.XLOOKUP($H103,'Customized Fuel LHV'!$B:$B,'Customized Fuel LHV'!$D:$D,\"No LHV\",0)))*IF($F103=\"Customized\",(_xlfn.XLOOKUP($H103,'Customized Fuel EF'!$B:$B,'Customized Fuel EF'!F:F,\"No EF\",0)),_xlfn.XLOOKUP($H103,'Customized Fuel EF'!$B:$B,'Customized Fuel EF'!$D:$D,\"No EF\",0))/1000,\"Factor error\")","v":0},{"$f":"IF(OR($H103='Customized Fuel EF'!$B:$B),(SUMIFS(O:O,$D:$D,$D47,$I:$I,$H103)*IF($G103=\"Customized\",_xlfn.XLOOKUP($H103,'Customized Fuel LHV'!$B:$B,'Customized Fuel LHV'!G:G,\"No LHV\",0),_xlfn.XLOOKUP($H103,'Customized Fuel LHV'!$B:$B,'Customized Fuel LHV'!$D:$D,\"No LHV\",0)))*IF($F103=\"Customized\",(_xlfn.XLOOKUP($H103,'Customized Fuel EF'!$B:$B,'Customized Fuel EF'!G:G,\"No EF\",0)),_xlfn.XLOOKUP($H103,'Customized Fuel EF'!$B:$B,'Customized Fuel EF'!$D:$D,\"No EF\",0))/1000,\"Factor error\")","v":0},{"$f":"IF(OR($H103='Customized Fuel EF'!$B:$B),(SUMIFS(P:P,$D:$D,$D47,$I:$I,$H103)*IF($G103=\"Customized\",_xlfn.XLOOKUP($H103,'Customized Fuel LHV'!$B:$B,'Customized Fuel LHV'!H:H,\"No LHV\",0),_xlfn.XLOOKUP($H103,'Customized Fuel LHV'!$B:$B,'Customized Fuel LHV'!$D:$D,\"No LHV\",0)))*IF($F103=\"Customized\",(_xlfn.XLOOKUP($H103,'Customized Fuel EF'!$B:$B,'Customized Fuel EF'!H:H,\"No EF\",0)),_xlfn.XLOOKUP($H103,'Customized Fuel EF'!$B:$B,'Customized Fuel EF'!$D:$D,\"No EF\",0))/1000,\"Factor error\")","v":0},{"$f":"IF(OR($H103='Customized Fuel EF'!$B:$B),(SUMIFS(Q:Q,$D:$D,$D47,$I:$I,$H103)*IF($G103=\"Customized\",_xlfn.XLOOKUP($H103,'Customized Fuel LHV'!$B:$B,'Customized Fuel LHV'!I:I,\"No LHV\",0),_xlfn.XLOOKUP($H103,'Customized Fuel LHV'!$B:$B,'Customized Fuel LHV'!$D:$D,\"No LHV\",0)))*IF($F103=\"Customized\",(_xlfn.XLOOKUP($H103,'Customized Fuel EF'!$B:$B,'Customized Fuel EF'!I:I,\"No EF\",0)),_xlfn.XLOOKUP($H103,'Customized Fuel EF'!$B:$B,'Customized Fuel EF'!$D:$D,\"No EF\",0))/1000,\"Factor error\")","v":0},{"$f":"IF(OR($H103='Customized Fuel EF'!$B:$B),(SUMIFS(R:R,$D:$D,$D47,$I:$I,$H103)*IF($G103=\"Customized\",_xlfn.XLOOKUP($H103,'Customized Fuel LHV'!$B:$B,'Customized Fuel LHV'!J:J,\"No LHV\",0),_xlfn.XLOOKUP($H103,'Customized Fuel LHV'!$B:$B,'Customized Fuel LHV'!$D:$D,\"No LHV\",0)))*IF($F103=\"Customized\",(_xlfn.XLOOKUP($H103,'Customized Fuel EF'!$B:$B,'Customized Fuel EF'!J:J,\"No EF\",0)),_xlfn.XLOOKUP($H103,'Customized Fuel EF'!$B:$B,'Customized Fuel EF'!$D:$D,\"No EF\",0))/1000,\"Factor error\")","v":0}]
[null,null,"A3.1.3",null,null,"CO2e from on-site transportation (mobile combustion sources)",null,"CO2e from on-site power generation","CO2e from on-site power generation","[t CO2e/reporting period]",{"$f":"SUM(M104:R104)","v":0},null,{"$f":"SUMIF($D:$D,$C104,M:M)","v":0},0,0,0,0,0]
[null,null,null,null,null,"Adopting CO2e Factors ","Adopting LHV Factors ","[Please insert additional rows if more energy commodities are included]"]
[null,null,null,{"$f":"C104","v":"A3.1.3"},".1",null,null,null,null,"[t CO2e/reporting period]",{"$f":"SUM(M106:R106)","v":0},null,{"$f":"IF(OR($H106='Customized Fuel EF'!$B:$B),(SUMIFS(M:M,$D:$D,$D49,$I:$I,$H106)*IF($G106=\"Customized\",_xlfn.XLOOKUP($H106,'Customized Fuel LHV'!$B:$B,'Customized Fuel LHV'!E:E,\"No LHV\",0),_xlfn.XLOOKUP($H106,'Customized Fuel LHV'!$B:$B,'Customized Fuel LHV'!$D:$D,\"No LHV\",0)))*IF($F106=\"Customized\",(_xlfn.XLOOKUP($H106,'Customized Fuel EF'!$B:$B,'Customized Fuel EF'!E:E,\"No EF\",0)),_xlfn.XLOOKUP($H106,'Customized Fuel EF'!$B:$B,'Customized Fuel EF'!$D:$D,\"No EF\",0))/1000,\"Factor error\")","v":0},{"$f":"IF(OR($H106='Customized Fuel EF'!$B:$B),(SUMIFS(N:N,$D:$D,$D49,$I:$I,$H106)*IF($G106=\"Customized\",_xlfn.XLOOKUP($H106,'Customized Fuel LHV'!$B:$B,'Customized Fuel LHV'!F:F,\"No LHV\",0),_xlfn.XLOOKUP($H106,'Customized Fuel LHV'!$B:$B,'Customized Fuel LHV'!$D:$D,\"No LHV\",0)))*IF($F106=\"Customized\",(_xlfn.XLOOKUP($H106,'Customized Fuel EF'!$B:$B,'Customized Fuel EF'!F:F,\"No EF\",0)),_xlfn.XLOOKUP($H106,'Customized Fuel EF'!$B:$B,'Customized Fuel EF'!$D:$D,\"No EF\",0))/1000,\"Factor error\")","v":0},{"$f":"IF(OR($H106='Customized Fuel EF'!$B:$B),(SUMIFS(O:O,$D:$D,$D49,$I:$I,$H106)*IF($G106=\"Customized\",_xlfn.XLOOKUP($H106,'Customized Fuel LHV'!$B:$B,'Customized Fuel LHV'!G:G,\"No LHV\",0),_xlfn.XLOOKUP($H106,'Customized Fuel LHV'!$B:$B,'Customized Fuel LHV'!$D:$D,\"No LHV\",0)))*IF($F106=\"Customized\",(_xlfn.XLOOKUP($H106,'Customized Fuel EF'!$B:$B,'Customized Fuel EF'!G:G,\"No EF\",0)),_xlfn.XLOOKUP($H106,'Customized Fuel EF'!$B:$B,'Customized Fuel EF'!$D:$D,\"No EF\",0))/1000,\"Factor error\")","v":0},{"$f":"IF(OR($H106='Customized Fuel EF'!$B:$B),(SUMIFS(P:P,$D:$D,$D49,$I:$I,$H106)*IF($G106=\"Customized\",_xlfn.XLOOKUP($H106,'Customized Fuel LHV'!$B:$B,'Customized Fuel LHV'!H:H,\"No LHV\",0),_xlfn.XLOOKUP($H106,'Customized Fuel LHV'!$B:$B,'Customized Fuel LHV'!$D:$D,\"No LHV\",0)))*IF($F106=\"Customized\",(_xlfn.XLOOKUP($H106,'Customized Fuel EF'!$B:$B,'Customized Fuel EF'!H:H,\"No EF\",0)),_xlfn.XLOOKUP($H106,'Customized Fuel EF'!$B:$B,'Customized Fuel EF'!$D:$D,\"No EF\",0))/1000,\"Factor error\")","v":0},{"$f":"IF(OR($H106='Customized Fuel EF'!$B:$B),(SUMIFS(Q:Q,$D:$D,$D49,$I:$I,$H106)*IF($G106=\"Customized\",_xlfn.XLOOKUP($H106,'Customized Fuel LHV'!$B:$B,'Customized Fuel LHV'!I:I,\"No LHV\",0),_xlfn.XLOOKUP($H106,'Customized Fuel LHV'!$B:$B,'Customized Fuel LHV'!$D:$D,\"No LHV\",0)))*IF($F106=\"Customized\",(_xlfn.XLOOKUP($H106,'Customized Fuel EF'!$B:$B,'Customized Fuel EF'!I:I,\"No EF\",0)),_xlfn.XLOOKUP($H106,'Customized Fuel EF'!$B:$B,'Customized Fuel EF'!$D:$D,\"No EF\",0))/1000,\"Factor error\")","v":0},{"$f":"IF(OR($H106='Customized Fuel EF'!$B:$B),(SUMIFS(R:R,$D:$D,$D49,$I:$I,$H106)*IF($G106=\"Customized\",_xlfn.XLOOKUP($H106,'Customized Fuel LHV'!$B:$B,'Customized Fuel LHV'!J:J,\"No LHV\",0),_xlfn.XLOOKUP($H106,'Customized Fuel LHV'!$B:$B,'Customized Fuel LHV'!$D:$D,\"No LHV\",0)))*IF($F106=\"Customized\",(_xlfn.XLOOKUP($H106,'Customized Fuel EF'!$B:$B,'Customized Fuel EF'!J:J,\"No EF\",0)),_xlfn.XLOOKUP($H106,'Customized Fuel EF'!$B:$B,'Customized Fuel EF'!$D:$D,\"No EF\",0))/1000,\"Factor error\")","v":0}]
[null,null,null,{"$f":"C104","v":"A3.1.3"},".2",null,null,null,null,"[t CO2e/reporting period]",{"$f":"SUM(M107:R107)","v":0},null,{"$f":"IF(OR($H107='Customized Fuel EF'!$B:$B),(SUMIFS(M:M,$D:$D,$D50,$I:$I,$H107)*IF($G107=\"Customized\",_xlfn.XLOOKUP($H107,'Customized Fuel LHV'!$B:$B,'Customized Fuel LHV'!E:E,\"No LHV\",0),_xlfn.XLOOKUP($H107,'Customized Fuel LHV'!$B:$B,'Customized Fuel LHV'!$D:$D,\"No LHV\",0)))*IF($F107=\"Customized\",(_xlfn.XLOOKUP($H107,'Customized Fuel EF'!$B:$B,'Customized Fuel EF'!E:E,\"No EF\",0)),_xlfn.XLOOKUP($H107,'Customized Fuel EF'!$B:$B,'Customized Fuel EF'!$D:$D,\"No EF\",0))/1000,\"Factor error\")","v":0},{"$f":"IF(OR($H107='Customized Fuel EF'!$B:$B),(SUMIFS(N:N,$D:$D,$D50,$I:$I,$H107)*IF($G107=\"Customized\",_xlfn.XLOOKUP($H107,'Customized Fuel LHV'!$B:$B,'Customized Fuel LHV'!F:F,\"No LHV\",0),_xlfn.XLOOKUP($H107,'Customized Fuel LHV'!$B:$B,'Customized Fuel LHV'!$D:$D,\"No LHV\",0)))*IF($F107=\"Customized\",(_xlfn.XLOOKUP($H107,'Customized Fuel EF'!$B:$B,'Customized Fuel EF'!F:F,\"No EF\",0)),_xlfn.XLOOKUP($H107,'Customized Fuel EF'!$B:$B,'Customized Fuel EF'!$D:$D,\"No EF\",0))/1000,\"Factor error\")","v":0},{"$f":"IF(OR($H107='Customized Fuel EF'!$B:$B),(SUMIFS(O:O,$D:$D,$D50,$I:$I,$H107)*IF($G107=\"Customized\",_xlfn.XLOOKUP($H107,'Customized Fuel LHV'!$B:$B,'Customized Fuel LHV'!G:G,\"No LHV\",0),_xlfn.XLOOKUP($H107,'Customized Fuel LHV'!$B:$B,'Customized Fuel LHV'!$D:$D,\"No LHV\",0)))*IF($F107=\"Customized\",(_xlfn.XLOOKUP($H107,'Customized Fuel EF'!$B:$B,'Customized Fuel EF'!G:G,\"No EF\",0)),_xlfn.XLOOKUP($H107,'Customized Fuel EF'!$B:$B,'Customized Fuel EF'!$D:$D,\"No EF\",0))/1000,\"Factor error\")","v":0},{"$f":"IF(OR($H107='Customized Fuel EF'!$B:$B),(SUMIFS(P:P,$D:$D,$D50,$I:$I,$H107)*IF($G107=\"Customized\",_xlfn.XLOOKUP($H107,'Customized Fuel LHV'!$B:$B,'Customized Fuel LHV'!H:H,\"No LHV\",0),_xlfn.XLOOKUP($H107,'Customized Fuel LHV'!$B:$B,'Customized Fuel LHV'!$D:$D,\"No LHV\",0)))*IF($F107=\"Customized\",(_xlfn.XLOOKUP($H107,'Customized Fuel EF'!$B:$B,'Customized Fuel EF'!H:H,\"No EF\",0)),_xlfn.XLOOKUP($H107,'Customized Fuel EF'!$B:$B,'Customized Fuel EF'!$D:$D,\"No EF\",0))/1000,\"Factor error\")","v":0},{"$f":"IF(OR($H107='Customized Fuel EF'!$B:$B),(SUMIFS(Q:Q,$D:$D,$D50,$I:$I,$H107)*IF($G107=\"Customized\",_xlfn.XLOOKUP($H107,'Customized Fuel LHV'!$B:$B,'Customized Fuel LHV'!I:I,\"No LHV\",0),_xlfn.XLOOKUP($H107,'Customized Fuel LHV'!$B:$B,'Customized Fuel LHV'!$D:$D,\"No LHV\",0)))*IF($F107=\"Customized\",(_xlfn.XLOOKUP($H107,'Customized Fuel EF'!$B:$B,'Customized Fuel EF'!I:I,\"No EF\",0)),_xlfn.XLOOKUP($H107,'Customized Fuel EF'!$B:$B,'Customized Fuel EF'!$D:$D,\"No EF\",0))/1000,\"Factor error\")","v":0},{"$f":"IF(OR($H107='Customized Fuel EF'!$B:$B),(SUMIFS(R:R,$D:$D,$D50,$I:$I,$H107)*IF($G107=\"Customized\",_xlfn.XLOOKUP($H107,'Customized Fuel LHV'!$B:$B,'Customized Fuel LHV'!J:J,\"No LHV\",0),_xlfn.XLOOKUP($H107,'Customized Fuel LHV'!$B:$B,'Customized Fuel LHV'!$D:$D,\"No LHV\",0)))*IF($F107=\"Customized\",(_xlfn.XLOOKUP($H107,'Customized Fuel EF'!$B:$B,'Customized Fuel EF'!J:J,\"No EF\",0)),_xlfn.XLOOKUP($H107,'Customized Fuel EF'!$B:$B,'Customized Fuel EF'!$D:$D,\"No EF\",0))/1000,\"Factor error\")","v":0}]
[null,null,"A3.1.4",null,null,"Total CO2e from fuels combustion",null,null,null,"[t CO2e/reporting period]",{"$f":"SUM(M108:R108)","v":0},null,{"$f":"IF(AND(M98=\"\",M104=\"\"),\"\",M98+M104+M88)","v":0},0,0,0,0,0]
[null,null,"A3.1.5",null,null,"CO2e from external electricity production",null,null,null,"[t CO2e/reporting period]",{"$f":"SUM(M109:R109)","v":0},null,{"$f":"IFERROR(M52*$K$53/1000,\"\")","v":""},"","","","",""]
[null,null,"A3.1.6",null,null,null,null,null,"Total CO2e in Stage A3","[t CO2e/reporting period]",{"$f":"SUM(M110:R110)","v":0},null,{"$f":"M88+M98+M104+M108","v":0},{"$f":"N88+N98+N104+N108","v":0},0,0,0,0]
[null,"A4","PROJECT LIFE CYCLE STAGE: A4 OFF-SITE TRANSPORTATION OF PRODUCT TO CONSTRUCTION SITE "]
[null,null,"A4.1 CO2e EMISSIONS ",null,null,null,null,null,null,"unit","Total",null,"Product 1","Product 2","Product 3","Product 4","Product 5","Product 6"]
[null,null,"A4.1.1",null,null,"CO2e from off-site transportation of product to construction site (excluded from assessment boundary)"]
[null,null,null,{"$f":"C113","v":"A4.1.1"},".1","CO2e calculated using either 1) WRI & WBCSD's protocol OR 2) EPD & EMSD's carbon audit tool)",null,null,null,"[t CO2e/reporting period]",{"$f":"SUM(M114:R114)","v":0}]
[null,null,"A4.1.2",null,null,null,null,null,"Total CO2e in Stage A4","[t CO2e/reporting period]",{"$f":"SUM(M115:R115)","v":0},null,{"$f":"IFERROR(IF(M114=\"\",\"\",M114),\"\")","v":""},"","","","",""]
[]
[null,"P ","PERFORMANCE INDICATORS",null,null,null,null,null,null,"unit","Total",null,"Product 1","Product 2","Product 3","Product 4","Product 5","Product 6"]
[null,"P",{"$f":"LEFT($B$117,2)","v":"P "},1,null,"Gross CO2e (A1-A3)",null,null,null,"[t CO2e/reporting period]",{"$f":"IF(AND(M118:R118=\"\"),\"\",SUM(M118:R118))","v":0},null,{"$f":"SUM(M119:M121)","v":0},{"$f":"SUM(N119:N121)","v":0},0,0,0,0]
[null,null,"P ",{"$f":"D118","v":1},".1","A1 Raw material extraction and upstream production",null,null,null,"[t CO2e/reporting period]",{"$f":"IF(AND(M119:R119=\"\"),\"\",SUM(M119:R119))","v":0},null,{"$f":"SUMIF($I:$I,\"Total CO2e in Stage A1\",M:M)","v":0},0,0,0,0,0]
[null,null,"P ",{"$f":"D119","v":1},".2","A2 Off-site transportation of raw materials to manufacturing plant",null,null,null,"[t CO2e/reporting period]",{"$f":"IF(AND(M120:R120=\"\"),\"\",SUM(M120:R120))","v":0},null,{"$f":"SUMIF($I:$I,\"Total CO2e in Stage A2\",M:M)","v":0},0,0,0,0,0]
[null,null,"P ",{"$f":"D120","v":1},".3","A3 Product manufacturing and fabrication (without wastage)",null,null,null,"[t CO2e/reporting period]",{"$f":"IF(AND(M121:R121=\"\"),\"\",SUM(M121:R121))","v":0},null,{"$f":"SUMIF($I:$I,\"Total CO2e in Stage A3\",M:M)","v":0},0,0,0,0,0]
[null,null,"P ",{"$f":"D121","v":1},".4","A4 Off-site transportation of product to construction site (for reference only, excluded from assessment boundary)",null,null,null,"[t CO2e/reporting period]",{"$f":"IF(AND(M122:R122=\"\"),\"\",SUM(M122:R122))","v":0},null,{"$f":"SUMIF($I:$I,\"Total CO2e in Stage A4\",M:M)","v":0},0,0,0,0,0]
[null,null,"P ",2,null,"Specific gross CO2e per t of glazing product produced (A1-A3)",null,null,null,"[t CO2e/t Glazing]",{"$f":"IF(K118=\"\",\"\",(K118/$K$28))","v":{"$error":"#VALUE!"}},null,{"$f":"IF(M$28=0,\"n.a.\",IF(M118=\"\",\"\",(M118/M$28)))","v":"n.a."},{"$f":"IF(N$28=0,\"n.a.\",IF(N118=\"\",\"\",(N118/N$28)))","v":"n.a."},"n.a.","n.a.","n.a.",{"$f":"IF(R$28=0,\"n.a.\",IF(R118=\"\",\"\",(R118/R$28)))","v":"n.a."}]
[null,null,"P ",{"$f":"D123","v":2},".1","A1 Raw material extraction and upstream production",null,null,null,"[t CO2e/t Glazing]",{"$f":"IF(K119=\"\",\"\",(K119/$K$28))","v":{"$error":"#VALUE!"}},null,{"$f":"IF(M$28=0,\"n.a.\",IF(M119=\"\",\"\",(M119/M$28)))","v":"n.a."},{"$f":"IF(N$28=0,\"n.a.\",IF(N119=\"\",\"\",(N119/N$28)))","v":"n.a."},"n.a.","n.a.","n.a.","n.a."]
[null,null,"P ",{"$f":"D124","v":2},".2","A2 Off-site transportation of raw materials to manufacturing plant",null,null,null,"[t CO2e/t Glazing]",{"$error":"#VALUE!"},null,{"$f":"IF(M$28=0,\"n.a.\",IF(M120=\"\",\"\",(M120/M$28)))","v":"n.a."},{"$f":"IF(N$28=0,\"n.a.\",IF(N120=\"\",\"\",(N120/N$28)))","v":"n.a."},"n.a.","n.a.","n.a.",{"$f":"IF(R$28=0,\"n.a.\",IF(R120=\"\",\"\",(R120/R$28)))","v":"n.a."}]
[null,null,"P ",{"$f":"D124","v":2},".3","A3 Product manufacturing and fabrication (without wastage)",null,null,null,"[t CO2e/t Glazing]",{"$error":"#VALUE!"},null,{"$f":"IF(M$28=0,\"n.a.\",IF(M121=\"\",\"\",(M121/M$28)))","v":"n.a."},{"$f":"IF(N$28=0,\"n.a.\",IF(N121=\"\",\"\",(N121/N$28)))","v":"n.a."},"n.a.","n.a.","n.a.",{"$f":"IF(R$28=0,\"n.a.\",IF(R121=\"\",\"\",(R121/R$28)))","v":"n.a."}]
[null,null,"P ",{"$f":"D125","v":2},".4","A4 Off-site transportation of product to construction site (for reference only, excluded from assessment boundary)",null,null,null,"[t CO2e/t Glazing]",{"$f":"IF(K122=\"\",\"\",(K122/$K$28))","v":{"$error":"#VALUE!"}},null,{"$f":"IF(M$28=0,\"n.a.\",IF(M122=\"\",\"\",(M122/M$28)))","v":"n.a."},{"$f":"IF(N$28=0,\"n.a.\",IF(N122=\"\",\"\",(N122/N$28)))","v":"n.a."},"n.a.","n.a.","n.a.",{"$f":"IF(R$28=0,\"n.a.\",IF(R122=\"\",\"\",(R122/R$28)))","v":"n.a."}]

{"sheet":"Customized Embodied EF","index":3,"n_rows":24,"n_cols":12,"rows_kept":24,"cut":false,"hidden":false,"merged":[[23,0,23,10],[1,4,1,11],[3,0,14,0],[15,0,21,0]]}
[]
[null,null,null,null,"Customized CO2e Emission Factors for Raw Materials"]
[null,null,null,"Default EF","Product 1","Product 2","Product 3","Product 4","Product 5","Product 6","Supporting document ","Explanation"]
["Raw material ","Sandstone","[t CO2e/ t ]",0.06,null,null,null,null,null,null,"Default value is used"]
[null,"Limestone, CaCO₃","[t CO2e/ t ]",1.5769999999999999E-2,null,null,null,null,null,null,"Default value is used"]
[null,"Dolomite, CaMg(CO₃)₂","[t CO2e/ t ]",1.1730000000000001E-2,null,null,null,null,null,null,"Default value is used"]
[null,"Soda Ash (Sodium Carbonate, Na₂CO₃)","[t CO2e/ t ]",1.875,null,null,null,null,null,null,"Default value is used"]
[null,"Sodium Sulfate (Na₂SO₄)","[t CO2e/ t ]",0.499,null,null,null,null,null,null,"Default value is used"]
[null,"Flat Glass","[t CO2e/ t ]",1.681,null,null,null,null,null,null,"Default value is used"]
[null,"EVA Film","[t CO2e/ t ]",2.97,null,null,null,null,null,null,"Default value is used"]
[null,"Silver (Ag)","[t CO2e/ t ]",28.1,null,null,null,null,null,null,"Default value is used"]
[null,"Nickel (Ni)","[t CO2e/ t ]",24.7,null,null,null,null,null,null,"Default value is used"]
[null,"Nitrogen (N₂)","[t CO2e/ m3 ]",90.8,null,null,null,null,null,null,"Default value is used"]
[null,"Carbon Powder","[t CO2e/ t ]","N/A"]
[null,null,"[t CO2e/ t ]","N/A"]
["Energy Commodity","Diesel oil","[t CO2e/ t ]",0.75202760000000002,null,null,null,null,null,null,"Default value is used"]
[null,"Gasoline","[t CO2e/ t ]",0.81593523000000001,null,null,null,null,null,null,"Default value is used"]
[null,"Petrol coke","[t CO2e/ t ]",0.40262468000000001,null,null,null,null,null,null,"Default value is used"]
[null,"Natural gas","[t CO2e/ t ]",0.42316367999999999,null,null,null,null,null,null,"Default value is used"]
[null,"Waste oil","[t CO2e/ t ]",1.11683712,null,null,null,null,null,null,"Default value is used"]
[null,null,"[t CO2e/ t ]","N/A"]
[null,null,"[t CO2e/ t ]","N/A"]
[]
["Factor sheet Guide :\n1. Each material with a customized EF has its own specific EF type. Even if the applicant decides that certain products will adopt the default EF value for that material, the value must be copied and displayed in the matrix.\n2. The material name must be consistent across all sheets to ensure the Excel file functions as intended.\n3. The \"Supporting Document\" column must be completed by selecting either \"Yes\" or \"No\" if a customized factor is utilized. If the customized row is not applicable, the applicant should select \"Default value is used\". If there is no supporting document , applicant can select “No (Please explain)” and provide explanation for the missing supporting documents."]

{"sheet":"Customized Process Factors","index":4,"n_rows":9,"n_cols":14,"rows_kept":9,"cut":false,"hidden":false,"merged":[[4,1,4,2],[6,1,6,2],[2,6,2,13],[8,0,8,13],[3,0,3,3]]}
["Table 2 : Customized Process CO2e Emission Factor"]
[]
[null,null,null,null,null,null,"Customized CO2e EF from Industrial Processes"]
["GHG emission sources",null,null,null,"Default CO2e EF","Default CO2 EF","Product 1","Product 2","Product 3","Product 4","Product 5","Product 6","Supporting document ","Explaination"]
["Dolomite Consumption","Dolomite, CaMg(CO₃)₂",null,"[t CO2e/ t material]",0.47732000000000002,null,null,null,null,null,null,null,"Default value is used"]
["Soda Ash Consumption","Soda Ash (Sodium Carbonate, Na₂CO₃)",null,"[t CO2e/ t material]",0.39,null,null,null,null,null,null,null,"Default value is used"]
["Petrol coke calcination","Carbon Powder",null,"[t CO2e/ t material]",3.6642000000000001,null,null,null,null,null,null,null,"Default value is used"]
[]
["Factor sheet Guide :\n1. Each process  with a customized factors has its own specific factor type. Even if the applicant decides that certain products will adopt the default value for that process materials, the value must be copied and displayed in the matrix.\n2. The  process material's name must be consistent across all sheets to ensure the Excel file functions as intended.\n3. The \"Supporting Document\" column must be completed by selecting either \"Yes\" or \"No\" if a customized factor is utilized. If the customized row is not applicable, the applicant should select \"Default value is used\". If there is no supporting document , applicant can select “No (Please explain)” and provide explanation for the missing supporting documents."]

{"sheet":"Customized Fuel EF","index":5,"n_rows":66,"n_cols":12,"rows_kept":66,"cut":false,"hidden":false,"merged":[[65,0,65,11],[1,4,1,11],[3,0,24,0],[25,0,41,0],[42,0,44,0],[45,0,49,0],[51,0,63,0]]}
[]
[null,null,null,null,"Customized CO2e Direct Emission Factors for Fuel"]
[null,null,null,"Default EF","Product 1","Product 2","Product 3","Product 4","Product 5","Product 6","Supporting document ","Explanation"]
["Crude oil and derived substances","Crude oil","[kg CO2e/ GJ ]",73.303600000000003,null,null,null,null,null,null,"Default value is used"]
[null,"Orimulsion","[kg CO2e/ GJ ]",77.003600000000006,null,null,null,null,null,null,"Default value is used"]
[null,"Natural gas liquids","[kg CO2e/ GJ ]",64.203599999999994,null,null,null,null,null,null,"Default value is used"]
[null,"Gasoline","[kg CO2e/ GJ ]",69.303600000000003,null,null,null,null,null,null,"Default value is used"]
[null,"Jet kerosene","[kg CO2e/ GJ ]",71.503600000000006,null,null,null,null,null,null,"Default value is used"]
[null,"Other kerosene","[kg CO2e/ GJ ]",71.903600000000012,null,null,null,null,null,null,"Default value is used"]
[null,"Shale oil","[kg CO2e/ GJ ]",73.303600000000003,null,null,null,null,null,null,"Default value is used"]
[null,"Diesel oil","[kg CO2e/ GJ ]",74.1036,null,null,null,null,null,null,"Default value is used"]
[null,"Residual fuel oil","[kg CO2e/ GJ ]",77.403600000000012,null,null,null,null,null,null,"Default value is used"]
[null,"Liquified petroleum gases","[kg CO2e/ GJ ]",63.101099999999995,null,null,null,null,null,null,"Default value is used"]
[null,"Ethane","[kg CO2e/ GJ ]",61.601099999999995,null,null,null,null,null,null,"Default value is used"]
[null,"Naphtha","[kg CO2e/ GJ ]",73.303600000000003,null,null,null,null,null,null,"Default value is used"]
[null,"Bitumen","[kg CO2e/ GJ ]",80.703600000000009,null,null,null,null,null,null,"Default value is used"]
[null,"Lubricants","[kg CO2e/ GJ ]",73.303600000000003,null,null,null,null,null,null,"Default value is used"]
[null,"Petrol coke","[kg CO2e/ GJ ]",97.503600000000006,null,null,null,null,null,null,"Default value is used"]
[null,"Refinery feedstocks","[kg CO2e/ GJ ]",73.303600000000003,null,null,null,null,null,null,"Default value is used"]
[null,"Refinery gas","[kg CO2e/ GJ ]",57.601099999999995,null,null,null,null,null,null,"Default value is used"]
[null,"Paraffin waxes","[kg CO2e/ GJ ]",73.303600000000003,null,null,null,null,null,null,"Default value is used"]
[null,"White spirit & SBP","[kg CO2e/ GJ ]",73.303600000000003,null,null,null,null,null,null,"Default value is used"]
[null,"Other petroleum products","[kg CO2e/ GJ ]",73.303600000000003,null,null,null,null,null,null,"Default value is used"]
[null," ","[kg CO2e/ GJ ]","N/A"]
[null," ","[kg CO2e/ GJ ]","N/A"]
["Coal and derived products","Anthracite","[kg CO2e/ GJ ]",98.302499999999995,null,null,null,null,null,null,"Default value is used"]
[null,"Coking coal","[kg CO2e/ GJ ]",94.611500000000007,null,null,null,null,null,null,"Default value is used"]
[null,"Other bituminous coal","[kg CO2e/ GJ ]",94.611500000000007,null,null,null,null,null,null,"Default value is used"]
[null,"Sub-bituminous coal","[kg CO2e/ GJ ]",96.111500000000007,null,null,null,null,null,null,"Default value is used"]
[null,"Lignite","[kg CO2e/ GJ ]",101.0115,null,null,null,null,null,null,"Default value is used"]
[null,"Oil shale and tar sands","[kg CO2e/ GJ ]",107.0115,null,null,null,null,null,null,"Default value is used"]
[null,"Brown coal briquettes","[kg CO2e/ GJ ]",97.511499999999998,null,null,null,null,null,null,"Default value is used"]
[null,"Patent fuel","[kg CO2e/ GJ ]",97.511499999999998,null,null,null,null,null,null,"Default value is used"]
[null,"Coke oven coke / lignite coke / coke breeze","[kg CO2e/ GJ ]",107.0115,null,null,null,null,null,null,"Default value is used"]
[null,"Gas coke","[kg CO2e/ GJ ]",107.00110000000001,null,null,null,null,null,null,"Default value is used"]
[null,"Coal tar","[kg CO2e/ GJ ]",80.711500000000001,null,null,null,null,null,null,"Default value is used"]
[null,"Gas works gas","[kg CO2e/ GJ ]",44.4011,null,null,null,null,null,null,"Default value is used"]
[null,"Coke oven gas","[kg CO2e/ GJ ]",44.4011,null,null,null,null,null,null,"Default value is used"]
[null,"Blast furnace gas","[kg CO2e/ GJ ]",260.00110000000001,null,null,null,null,null,null,"Default value is used"]
[null,"Oxygen steel furnace gas","[kg CO2e/ GJ ]",182.00110000000001,null,null,null,null,null,null,"Default value is used"]
[null," ","[kg CO2e/ GJ ]","N/A"]
[null," ","[kg CO2e/ GJ ]","N/A"]
["Gas","Natural gas","[kg CO2e/ GJ ]",56.101099999999995,null,null,null,null,null,null,"Default value is used"]
[null," ","[kg CO2e/ GJ ]","N/A"]
[null," ","[kg CO2e/ GJ ]","N/A"]
["Non-biomass waste","Municipal wastes (non-biomass fraction)","[kg CO2e/ GJ ]",91.733999999999995,null,null,null,null,null,null,"Default value is used"]
[null,"Industrial wastes","[kg CO2e/ GJ ]","NA",null,null,null,null,null,null,"Default value is used"]
[null,"Waste oil","[kg CO2e/ GJ ]",73.334000000000003,null,null,null,null,null,null,"Default value is used"]
[null," ","[kg CO2e/ GJ ]","N/A"]
[null," ","[kg CO2e/ GJ ]","N/A"]
["Peat","Peat","[kg CO2e/ GJ ]",106.0035,null,null,null,null,null,null,"Default value is used"]
["Biomass waste","Wood/Wood waste","[kg CO2e/ GJ ]",112.03400000000001,null,null,null,null,null,null,"Default value is used"]
[null,"Sulphite lyes (Black liquor)","[kg CO2e/ GJ ]",95.305000000000007,null,null,null,null,null,null,"Default value is used"]
[null,"Other primary solid biomass fuels","[kg CO2e/ GJ ]",100.03400000000001,null,null,null,null,null,null,"Default value is used"]
[null,"Charcoal","[kg CO2e/ GJ ]",112.20399999999999,null,null,null,null,null,null,"Default value is used"]
[null,"Biogasoline","[kg CO2e/ GJ ]",70.803600000000003,null,null,null,null,null,null,"Default value is used"]
[null,"Biodiesel","[kg CO2e/ GJ ]",70.803600000000003,null,null,null,null,null,null,"Default value is used"]
[null,"Other liquid biofuels","[kg CO2e/ GJ ]",79.6036,null,null,null,null,null,null,"Default value is used"]
[null,"Landfill gas","[kg CO2e/ GJ ]",54.601099999999995,null,null,null,null,null,null,"Default value is used"]
[null,"Sludge gas","[kg CO2e/ GJ ]",54.601099999999995,null,null,null,null,null,null,"Default value is used"]
[null,"Other biogas","[kg CO2e/ GJ ]",54.601099999999995,null,null,null,null,null,null,"Default value is used"]
[null,"Municipal wastes (biomass fraction)","[kg CO2e/ GJ ]",100.03400000000001,null,null,null,null,null,null,"Default value is used"]
[null," ","[kg CO2e/ GJ ]","N/A"]
[null," ","[kg CO2e/ GJ ]","N/A"]
[]
["Factor sheet Guide :\n1. Each energy commodity with a customized EF has its own specific EF type. Even if the applicant decides that certain products will adopt the default EF value for that energy commodity, the value must be copied and displayed in the matrix.\n2. The energy commodity name must be consistent across all sheets to ensure the Excel file functions as intended.\n3. The \"Supporting Document\" column must be completed by selecting either \"Yes\" or \"No\" if a customized factor is utilized. If the customized row is not applicable, the applicant should select \"Default value is used\". If there is no supporting document , applicant can select “No (Please explain)” and provide explanation for the missing supporting documents."]

{"sheet":"Customized Fuel LHV","index":6,"n_rows":66,"n_cols":12,"rows_kept":66,"cut":false,"hidden":false,"merged":[[65,0,65,11],[51,0,63,0],[1,4,1,11],[3,0,24,0],[25,0,41,0],[42,0,44,0],[45,0,49,0]]}
[]
[null,null,null,null,"Customized LHVs for Fuel"]
[null,null,null,"Default LHV","Product 1","Product 2","Product 3","Product 4","Product 5","Product 6","Supporting document ","Explanation"]
["Crude oil and derived substances","Crude oil","MJ/kg",42.3,null,null,null,null,null,null,"Default value is used"]
[null,"Orimulsion","MJ/kg",27.5,null,null,null,null,null,null,"Default value is used"]
[null,"Natural gas liquids","MJ/kg",44.2,null,null,null,null,null,null,"Default value is used"]
[null,"Gasoline","MJ/kg",44.3,null,null,null,null,null,null,"Default value is used"]
[null,"Jet kerosene","MJ/kg",44.1,null,null,null,null,null,null,"Default value is used"]
[null,"Other kerosene","MJ/kg",43.8,null,null,null,null,null,null,"Default value is used"]
[null,"Shale oil","MJ/kg",38.1,null,null,null,null,null,null,"Default value is used"]
[null,"Diesel oil","MJ/kg",43,null,null,null,null,null,null,"Default value is used"]
[null,"Residual fuel oil","MJ/kg",40.4,null,null,null,null,null,null,"Default value is used"]
[null,"Liquified petroleum gases","MJ/kg",47.3,null,null,null,null,null,null,"Default value is used"]
[null,"Ethane","MJ/kg",46.4,null,null,null,null,null,null,"Default value is used"]
[null,"Naphtha","MJ/kg",44.5,null,null,null,null,null,null,"Default value is used"]
[null,"Bitumen","MJ/kg",40.200000000000003,null,null,null,null,null,null,"Default value is used"]
[null,"Lubricants","MJ/kg",40.200000000000003,null,null,null,null,null,null,"Default value is used"]
[null,"Petrol coke","MJ/kg",32.5,null,null,null,null,null,null,"Default value is used"]
[null,"Refinery feedstocks","MJ/kg",43,null,null,null,null,null,null,"Default value is used"]
[null,"Refinery gas","MJ/kg",49.5,null,null,null,null,null,null,"Default value is used"]
[null,"Paraffin waxes","MJ/kg",40.200000000000003,null,null,null,null,null,null,"Default value is used"]
[null,"White spirit & SBP","MJ/kg",40.200000000000003,null,null,null,null,null,null,"Default value is used"]
[null,"Other petroleum products","MJ/kg",40.200000000000003,null,null,null,null,null,null,"Default value is used"]
[null,{"$f":"'Customized Fuel EF'!B24","v":" "},"MJ/kg","N/A"]
[null,{"$f":"'Customized Fuel EF'!B25","v":" "},"MJ/kg","N/A"]
["Coal and derived products","Anthracite","MJ/kg",26.7,null,null,null,null,null,null,"Default value is used"]
[null,"Coking coal","MJ/kg",28.2,null,null,null,null,null,null,"Default value is used"]
[null,"Other bituminous coal","MJ/kg",25.8,null,null,null,null,null,null,"Default value is used"]
[null,"Sub-bituminous coal","MJ/kg",18.899999999999999,null,null,null,null,null,null,"Default value is used"]
[null,"Lignite","MJ/kg",11.9,null,null,null,null,null,null,"Default value is used"]
[null,"Oil shale and tar sands","MJ/kg",8.9,null,null,null,null,null,null,"Default value is used"]
[null,"Brown coal briquettes","MJ/kg",20.7,null,null,null,null,null,null,"Default value is used"]
[null,"Patent fuel","MJ/kg",20.7,null,null,null,null,null,null,"Default value is used"]
[null,"Coke oven coke / lignite coke / coke breeze","MJ/kg",28.2,null,null,null,null,null,null,"Default value is used"]
[null,"Gas coke","MJ/kg",28.2,null,null,null,null,null,null,"Default value is used"]
[null,"Coal tar","MJ/kg",28,null,null,null,null,null,null,"Default value is used"]
[null,"Gas works gas","MJ/kg",38.700000000000003,null,null,null,null,null,null,"Default value is used"]
[null,"Coke oven gas","MJ/kg",38.700000000000003,null,null,null,null,null,null,"Default value is used"]
[null,"Blast furnace gas","MJ/kg",2.4700000000000002,null,null,null,null,null,null,"Default value is used"]
[null,"Oxygen steel furnace gas","MJ/kg",7.06,null,null,null,null,null,null,"Default value is used"]
[null,{"$f":"'Customized Fuel EF'!B41","v":" "},"MJ/kg","N/A"]
[null,{"$f":"'Customized Fuel EF'!B42","v":" "},"MJ/kg","N/A"]
["Gas","Natural gas","MJ/kg",48,null,null,null,null,null,null,"Default value is used"]
[null,{"$f":"'Customized Fuel EF'!B44","v":" "},"MJ/kg","N/A"]
[null,{"$f":"'Customized Fuel EF'!B45","v":" "},"MJ/kg","N/A"]
["Non-biomass waste","Municipal wastes (non-biomass fraction)","MJ/kg",10,null,null,null,null,null,null,"Default value is used"]
[null,"Industrial wastes","MJ/kg","NA",null,null,null,null,null,null,"Default value is used"]
[null,"Waste oil","MJ/kg",40.200000000000003,null,null,null,null,null,null,"Default value is used"]
[null,{"$f":"'Customized Fuel EF'!B49","v":" "},"MJ/kg","N/A"]
[null,{"$f":"'Customized Fuel EF'!B50","v":" "},"MJ/kg","N/A"]
["Peat","Peat","MJ/kg",9.76,null,null,null,null,null,null,"Default value is used"]
["Biomass waste","Wood/Wood waste","MJ/kg",15.6,null,null,null,null,null,null,"Default value is used"]
[null,"Sulphite lyes (Black liquor)","MJ/kg",11.8,null,null,null,null,null,null,"Default value is used"]
[null,"Other primary solid biomass fuels","MJ/kg",11.6,null,null,null,null,null,null,"Default value is used"]
[null,"Charcoal","MJ/kg",29.5,null,null,null,null,null,null,"Default value is used"]
[null,"Biogasoline","MJ/kg",27,null,null,null,null,null,null,"Default value is used"]
[null,"Biodiesel","MJ/kg",27,null,null,null,null,null,null,"Default value is used"]
[null,"Other liquid biofuels","MJ/kg",27.4,null,null,null,null,null,null,"Default value is used"]
[null,"Landfill gas","MJ/kg",50.4,null,null,null,null,null,null,"Default value is used"]
[null,"Sludge gas","MJ/kg",50.4,null,null,null,null,null,null,"Default value is used"]
[null,"Other biogas","MJ/kg",50.4,null,null,null,null,null,null,"Default value is used"]
[null,"Municipal wastes (biomass fraction)","MJ/kg",11.6,null,null,null,null,null,null,"Default value is used"]
[null,{"$f":"'Customized Fuel EF'!B63","v":" "},"MJ/kg","N/A"]
[null,{"$f":"'Customized Fuel EF'!B64","v":" "},"MJ/kg","N/A"]
[]
["Factor sheet Guide :\n1. Each energy commodity with a customized LHV has its own specific LHV type. Even if the applicant decides that certain products will adopt the default LHV value for that energy commodity, the value must be copied and displayed in the matrix.\n2. The energy commodity name must be consistent across all sheets to ensure the Excel file functions as intended.\n3. The \"Supporting Document\" column must be completed by selecting either \"Yes\" or \"No\" if a customized factor is utilized. If the customized row is not applicable, the applicant should select \"Default value is used\". If there is no supporting document , applicant can select “No (Please explain)” and provide explanation for the missing supporting documents."]

{"sheet":"Default EF&LHV References ","index":7,"n_rows":50,"n_cols":3,"rows_kept":50,"cut":false,"hidden":false,"merged":[[25,0,25,2],[29,0,29,2],[40,0,40,2],[0,0,0,1],[1,0,1,2],[15,0,15,2],[19,0,19,2]]}
["Date of latest update",null,"2025-03-24"]
["Default CO2e Emission Factors for Raw Materials"]
["Item","Category","References"]
["/","Raw Materials","various"]
[1,"Limestone, CaCO₃","ICE Cement, Mortar and Concrete Model – V1.2 – Dec 2024. Available from: https://circularecology.com/embodied-carbon-footprint-database.html"]
[2,"Dolomite, CaMg(CO₃)₂","中国产品全生命周期温室气体排放系数库（CPCD）. Available from:https://lca.cityghg.com/"]
[3,"Soda Ash (Sodium Carbonate, Na₂CO₃)","中国产品全生命周期温室气体排放系数库（CPCD）. Available from:https://lca.cityghg.com/"]
[4,"Sodium Sulfate (Na₂SO₄)","中国产品全生命周期温室气体排放系数库（CPCD）. Available from:https://lca.cityghg.com/"]
[5,"Flat Glass","CIC Green Product Certification Assessment Standard Glazing."]
[6,"EVA Film","中国产品全生命周期温室气体排放系数库（CPCD）. Available from:https://lca.cityghg.com/"]
[7,"Silver (Ag)","中国产品全生命周期温室气体排放系数库（CPCD）. Available from:https://lca.cityghg.com/"]
[8,"Nickel (Ni)","中国产品全生命周期温室气体排放系数库（CPCD）. Available from:https://lca.cityghg.com/"]
[9,"Nitrogen (N₂)","中国产品全生命周期温室气体排放系数库（CPCD）. Available from:https://lca.cityghg.com/"]
["/","Energy commodity","UK Department for Energy Security and Net Zero (2024). Greenhouse gas reporting: conversion factors 2024."]
[]
["(Table 1) Lime specific emission factors used in offsite lime production"]
["Item","Category","References"]
["/","Lime","Volume 3 Chapter 2, Table 2.4 of IPCC 2006 Guideline for National Greenhous Gas Inventories."]
[]
["(Table 2) Default Process CO2e Emission Factor"]
["Item","Category","References"]
["/","Dolomite, CaMg(CO₃)₂","GB/T 32151.7-2023 Requirements of the carbon emissions accounting and reporting—Part 7: Flat glass enterprise. Available from: https://std.samr.gov.cn/gb/search/gbDetailed?id=0DF2F72AE33D403DE06397BE0A0A87C4"]
["/","Soda ash consumption","Rocky Mountain Institute (RMI) (2023). Aluminum GHG Emissions Reporting Guidance.  Available from: https://rmi.org/wp-content/uploads/2023/11/aluminum_guidance.pdf"]
["/","Carbon Powder","GB/T 32151.7-2023 Requirements of the carbon emissions accounting and reporting—Part 7: Flat glass enterprise. Available from: https://std.samr.gov.cn/gb/search/gbDetailed?id=0DF2F72AE33D403DE06397BE0A0A87C4"]
[]
["(Table 3) Global Warming Potential of Greenhouse Gases"]
["Item","Category","References"]
["/","Greenhouse gases","Global Warming Potential (100-year horizon), IPCC Sixth Assessment Report, 2021 (AR6).  Available from: https://ghgprotocol.org/sites/default/files/2024-08/Global-Warming-Potential-Values%20%28August%202024%29.pdf"]
[]
["Default CO2e Emission Factors for Fuel"]
["Item","Category","References"]
["/","Common Process Materials","Volume 2 Chapter 2, Table 2.3 of IPCC 2006 Guideline for National Greenhous Gas Inventories."]
["/","Coke-oven byproducts transferred offsite","Volume 2 Chapter 2, Table 2.3 of IPCC 2006 Guideline for National Greenhous Gas Inventories."]
["/","Crude oil and derived substances","Volume 2 Chapter 2, Table 2.3 of IPCC 2006 Guideline for National Greenhous Gas Inventories."]
["/","Coal and derived products","Volume 2 Chapter 2, Table 2.3 of IPCC 2006 Guideline for National Greenhous Gas Inventories."]
["/","Gas","Volume 2 Chapter 2, Table 2.3 of IPCC 2006 Guideline for National Greenhous Gas Inventories."]
["/","Non-biomass waste","Volume 2 Chapter 2, Table 2.3 of IPCC 2006 Guideline for National Greenhous Gas Inventories."]
["/","Peat","Volume 2 Chapter 2, Table 2.3 of IPCC 2006 Guideline for National Greenhous Gas Inventories."]
["/","Biomass waste","Volume 2 Chapter 2, Table 2.3 of IPCC 2006 Guideline for National Greenhous Gas Inventories."]
[]
["Default  LHVs for Fuel"]
["Item","Category","References"]
["/","Common Process Materials","Volume 2 Chapter 1, Tables 1.2 of IPCC 2006 Guideline for National Greenhous Gas Inventories."]
["/","Coke-oven byproducts transferred offsite","Volume 2 Chapter 1, Tables 1.2 of IPCC 2006 Guideline for National Greenhous Gas Inventories."]
["/","Crude oil and derived substances","Volume 2 Chapter 1, Tables 1.2 of IPCC 2006 Guideline for National Greenhous Gas Inventories."]
["/","Coal and derived products","Volume 2 Chapter 1, Tables 1.2 of IPCC 2006 Guideline for National Greenhous Gas Inventories."]
["/","Gas","Volume 2 Chapter 1, Tables 1.2 of IPCC 2006 Guideline for National Greenhous Gas Inventories."]
["/","Non-biomass waste","Volume 2 Chapter 1, Tables 1.2 of IPCC 2006 Guideline for National Greenhous Gas Inventories."]
["/","Peat","Volume 2 Chapter 1, Tables 1.2 of IPCC 2006 Guideline for National Greenhous Gas Inventories."]
["/","Biomass waste","Volume 2 Chapter 1, Tables 1.2 of IPCC 2006 Guideline for National Greenhous Gas Inventories."]